{"text_format":"1","workbook":"xlsx","n_sheets":6,"sheets":["Notes","Summary","ICB","Trusts","Categories","BS"],"not_rendered":{"charts":0,"images":0,"macros":1,"external_links":0,"defined_names":14,"comments":0,"pivot_tables":0},"unopened":[],"bounds":{"document_bytes":16777216,"sheet_cells":100000,"rows_first":2000,"rows_last":500,"rows_between":2000,"halvings":0,"cell_chars":16384,"cell_head_chars":4096},"cells_cut":0,"cells_raw":0,"read":"whole","date_system":"1900"}

{"sheet":"Notes","index":0,"n_rows":2,"n_cols":8,"rows_kept":2,"cut":false,"hidden":false,"merged":[[1,1,1,4]]}
[]
[null,"Community Health Friends and Family Test (FFT) data - March 2024",null,null,null,null,null,"  Show data for:"]

{"sheet":"Summary","index":1,"n_rows":11,"n_cols":10,"rows_kept":11,"cut":false,"hidden":false,"merged":[[2,1,3,1],[2,4,2,5],[2,6,2,7],[2,8,2,9]]}
[]
[]
[null,"FFT","Number of organisations submitting","Total responses to date","Responses",null,"Percentage Positive",null,"Percentage Negative"]
[null,null,"2024-03-01","2024-03-01","2024-03-01","2024-02-25","2024-03-01","2024-02-25","2024-03-01","2024-02-25"]
[null,"Community Health Overall",145,10092664,102412,100489,0.94306331289302037,0.94276985540705949,2.8443932351677539E-2,2.6221775517718357E-2]
[null,"Community Inpatient Services",70,346954,4933,2916,0.94141496047030204,0.94753086419753085,2.3515102371781876E-2,1.3031550068587106E-2]
[null,"Community Nursing Services",93,1300226,14858,14307,0.95955041055323731,0.9523310267701125,1.6220218064342443E-2,1.6495421821485987E-2]
[null,"Rehabilitation and Therapy Services",91,1880686,19422,19447,0.95597775718257649,0.94832107780120323,1.9668417258778704E-2,2.2677019591710805E-2]
[null,"Specialist Services",86,2279053,22434,22916,0.96451814210573239,0.96727177517891427,1.7206026566818224E-2,1.3658579158666435E-2]
[null,"Children and Family Services",80,1424456,10412,11394,0.94371878601613524,0.93215727575917151,2.295428351901652E-2,2.7821660523082326E-2]
[null,"Community Healthcare Other",101,2861289,30353,29509,0.91091490132771058,0.91907553627706806,5.1032846835568149E-2,4.3715476634247179E-2]

{"sheet":"ICB","index":2,"n_rows":47,"n_cols":12,"rows_kept":47,"cut":false,"hidden":false,"merged":[[2,6,2,11],[2,0,3,0],[2,1,3,1],[2,2,3,2],[2,3,3,3],[2,4,3,4],[2,5,3,5]]}
[]
[]
["ICB Code","ICB Name","Total Responses","Total Eligible","Percentage Positive","Percentage Negative","Breakdown of Responses"]
[null,null,null,null,null,null,"Very Good","Good","Neither Good nor Poor","Poor","Very Poor","Don't Know"]
[null,"England (including Independent Sector Providers)",102412,2562242,0.94306331289302037,2.8443932351677539E-2,81403,15178,2257,1375,1538,661]
[null,"England (excluding Independent Sector Providers)",76400,2034408,0.94756544502617801,2.4895287958115183E-2,61112,11282,1618,895,1007,486]
[null,"Selection (excluding suppressed data)",{"$f":"SUBTOTAL(9,C8:C49)","v":102412},{"$f":"SUBTOTAL(9,D8:D49)","v":2562242},{"$f":"IFERROR((G7+H7)/SUM(G7:L7), \"-\")","v":0.94306331289302037},{"$f":"IFERROR((J7+K7)/SUM(G7:L7), \"-\")","v":2.8443932351677539E-2},{"$f":"SUBTOTAL(9,G8:G49)","v":81403},{"$f":"SUBTOTAL(9,H8:H49)","v":15178},2257,1375,1538,661]
["QE1","LANCASHIRE AND SOUTH CUMBRIA ICB",3127,147781,0.95746722097857373,1.6949152542372881E-2,2695,299,42,20,33,38]
["QF7","SOUTH YORKSHIRE ICB",989,34166,0.94843276036400403,1.8200202224469161E-2,830,108,26,9,9,7]
["QGH","HEREFORDSHIRE AND WORCESTERSHIRE ICB",5,5898,0.8,0.2,2,2,0,0,1,0]
["QH8","MID AND SOUTH ESSEX ICB",292,19922,0.94178082191780821,2.0547945205479451E-2,255,20,1,1,5,10]
["QHL","BIRMINGHAM AND SOLIHULL ICB",349,56393,0.97421203438395421,5.7306590257879654E-3,308,32,7,0,2,0]
["QHM","NORTH EAST AND NORTH CUMBRIA ICB",2974,117793,0.96334902488231333,1.7821116341627436E-2,2553,312,49,25,28,7]
["QJ2","DERBY AND DERBYSHIRE ICB",3438,40781,0.93077370564281559,3.5194880744618962E-2,2844,356,106,62,59,11]
["QJG","SUFFOLK AND NORTH EAST ESSEX ICB",315,10060,0.9555555555555556,9.5238095238095247E-3,256,45,10,0,3,1]
["QJK","DEVON ICB",655,41961,0.97862595419847331,9.1603053435114507E-3,556,85,7,4,2,1]
["QJM","LINCOLNSHIRE ICB",4336,25739,0.89045202952029523,6.4575645756457564E-2,3351,510,152,127,153,43]
["QK1","LEICESTER, LEICESTERSHIRE AND RUTLAND ICB",1292,43413,0.92337461300309598,3.1733746130030958E-2,969,224,52,16,25,6]
["QKK","SOUTH EAST LONDON ICB",2364,57432,0.91666666666666663,2.9187817258883249E-2,1799,368,110,32,37,18]
["QKS","KENT AND MEDWAY ICB",4878,65000,0.97621976219762197,8.2000820008200082E-3,4240,522,69,15,25,7]
["QM7","HERTFORDSHIRE AND WEST ESSEX ICB",516,43590,0.93604651162790697,2.7131782945736434E-2,419,64,17,7,7,2]
["QMF","NORTH EAST LONDON ICB",5470,70309,0.95228519195612427,2.376599634369287E-2,2580,2629,98,58,72,33]
["QMJ","NORTH CENTRAL LONDON ICB",1147,58132,0.96251089799476897,1.8308631211857017E-2,918,186,17,9,12,5]
["QMM","NORFOLK AND WAVENEY ICB",352,23875,0.99147727272727271,0,313,36,2,0,0,1]
["QNC","STAFFORDSHIRE AND STOKE-ON-TRENT ICB",843,44043,0.94543297746144717,3.6773428232502965E-2,707,90,15,8,23,0]
["QNQ","FRIMLEY ICB",2262,58059,0.95534924845269675,2.1220159151193633E-2,1976,185,41,20,28,12]
["QNX","SUSSEX ICB",3094,105853,0.9696186166774402,1.1958629605688428E-2,2644,356,51,22,15,6]
["QOC","SHROPSHIRE, TELFORD AND WREKIN ICB",248,20931,0.97983870967741937,1.2096774193548387E-2,221,22,2,1,2,0]
["QOP","GREATER MANCHESTER ICB",2907,65698,0.98073615411076709,8.5999312005503956E-3,2473,378,25,15,10,6]
["QOQ","HUMBER AND NORTH YORKSHIRE ICB",370,29877,0.96216216216216222,1.891891891891892E-2,318,38,7,3,4,0]
["QPM","NORTHAMPTONSHIRE ICB",279,34524,0.95340501792114696,3.5842293906810036E-3,233,33,7,1,0,5]
["QR1","GLOUCESTERSHIRE ICB",2215,20840,0.93905191873589167,2.5733634311512415E-2,1801,279,62,38,19,16]
["QRL","HAMPSHIRE AND ISLE OF WIGHT ICB",2464,75297,0.94926948051948057,1.5422077922077922E-2,1971,368,68,27,11,19]
["QRV","NORTH WEST LONDON ICB",2715,88544,0.97458563535911602,1.0681399631675874E-2,2329,317,25,11,18,15]
["QSL","SOMERSET ICB",0,17482,"NA","NA",0,0,0,0,0,0]
["QT1","NOTTINGHAM AND NOTTINGHAMSHIRE ICB",190,36849,0.96842105263157896,1.5789473684210527E-2,165,19,3,0,3,0]
["QT6","CORNWALL AND THE ISLES OF SCILLY ICB",1980,26450,0.92272727272727273,4.2424242424242427E-2,1524,303,53,36,48,16]
["QU9","BUCKINGHAMSHIRE, OXFORDSHIRE AND BERKSHIRE WEST ICB",516,4380,0.91279069767441856,3.1007751937984496E-2,389,82,19,6,10,10]
["QUA","BLACK COUNTRY ICB",1521,27462,0.92899408284023666,1.3149243918474688E-2,1240,173,30,12,8,58]
["QUE","CAMBRIDGESHIRE AND PETERBOROUGH ICB",3193,74106,0.96022549326652051,2.0670216097713748E-2,2621,445,52,37,29,9]
["QVV","DORSET ICB",1155,36688,0.94112554112554114,3.2900432900432902E-2,943,144,28,15,23,2]
["QWE","SOUTH WEST LONDON ICB",3948,183552,0.94022289766970613,3.292806484295846E-2,3125,587,85,69,61,21]
["QWO","WEST YORKSHIRE ICB",3575,64318,0.9490909090909091,3.104895104895105E-2,2979,414,59,79,32,12]
["QWU","COVENTRY AND WARWICKSHIRE ICB",154,7416,1,0,140,14,0,0,0,0]
["QXU","SURREY HEARTLANDS ICB",138,3439,0.98550724637681164,0,117,19,0,0,0,2]
["QYG","CHESHIRE AND MERSEYSIDE ICB",10134,146355,0.9400039471087428,2.9603315571343991E-2,8308,1218,221,110,190,87]
["IS1","INDEPENDENT SECTOR PROVIDERS",26012,527834,0.92984007381208678,3.8866676918345382E-2,20291,3896,639,480,531,175]

{"sheet":"Trusts","index":3,"n_rows":152,"n_cols":19,"rows_kept":152,"cut":false,"hidden":false,"merged":[[2,6,3,6],[2,7,2,12],[2,13,2,18],[2,0,3,0],[2,1,3,1],[2,2,3,2],[2,3,3,3],[2,4,3,4],[2,5,3,5]]}
[]
[]
["ICB Code","Trust Code","Trust Name","Total Responses","Total Eligible","Percentage Positive","Percentage Negative","Breakdown of Responses",null,null,null,null,null,"Mode of Collection"]
[null,null,null,null,null,null,null,"Very Good","Good","Neither Good nor Poor","Poor","Very Poor","Don't Know","Mode SMS","Mode Electronic Discharge","Mode Paper Home","Mode Telephone","Mode Online","Mode Other"]
[null,null,"England (including Independent Sector Providers)",102412,2562242,0.94306331289302037,2.8443932351677539E-2,81403,15178,2257,1375,1538,661,34763,4564,22450,2739,35367,2529]
[null,null,"England (excluding Independent Sector Providers)",76400,2034408,0.94756544502617801,2.4895287958115183E-2,61112,11282,1618,895,1007,486,25751,4178,16982,2554,24677,2258]
[null,null,"Selection (excluding suppressed data)",{"$f":"SUBTOTAL(9,D8:D294)","v":102412},{"$f":"SUBTOTAL(9,E8:E294)","v":2562242},{"$f":"IFERROR((H7+I7)/SUM(H7:M7), \"-\")","v":0.94305942092671258},{"$f":"IFERROR((K7+L7)/SUM(H7:M7), \"-\")","v":2.8445876666178409E-2},{"$f":"SUBTOTAL(9,H8:H294)","v":81398},15176,2257,1375,1538,661,34763,4564,22450,2733,35367,2528]
["QE1","RXL","BLACKPOOL TEACHING HOSPITALS NHS FOUNDATION TRUST",1316,22610,0.97416413373860178,1.2158054711246201E-2,1160,122,15,6,10,3,178,2,619,0,517,0]
["QE1","RXR","EAST LANCASHIRE HOSPITALS NHS TRUST",765,56482,0.92549019607843142,2.4836601307189541E-2,622,86,14,8,11,24,345,0,241,93,86,0]
["QE1","RW5","LANCASHIRE & SOUTH CUMBRIA NHS FOUNDATION TRUST",419,64052,0.9761336515513126,7.1599045346062056E-3,383,26,5,0,3,2,0,0,0,0,419,0]
["QE1","RTX","UNIVERSITY HOSPITALS OF MORECAMBE BAY NHS FOUNDATION TRUST",627,4637,0.94896331738437001,2.3923444976076555E-2,530,65,8,6,9,9,481,0,0,129,17,0]
["QF7","RXE","ROTHERHAM DONCASTER AND SOUTH HUMBER NHS FOUNDATION TRUST",88,0,0.94318181818181823,2.2727272727272728E-2,71,12,3,0,2,0,0,11,77,0,0,0]
["QF7","RCU","SHEFFIELD CHILDREN'S NHS FOUNDATION TRUST",41,4768,0.97560975609756095,0,40,0,1,0,0,0,0,0,2,0,39,0]
["QF7","RHQ","SHEFFIELD TEACHING HOSPITALS NHS FOUNDATION TRUST",470,2838,0.91276595744680855,3.1914893617021274E-2,341,88,20,8,7,6,128,0,52,268,22,0]
["QF7","RFR","THE ROTHERHAM NHS FOUNDATION TRUST",390,26560,0.98974358974358978,2.5641025641025641E-3,378,8,2,1,0,1,0,0,264,0,126,0]
["QGH","RLQ","WYE VALLEY NHS TRUST",5,5898,0.8,0.2,2,2,0,0,1,0,5,0,0,0,0,0]
["QH8","R1L","ESSEX PARTNERSHIP UNIVERSITY NHS FOUNDATION TRUST",292,19922,0.94178082191780821,2.0547945205479451E-2,255,20,1,1,5,10,0,0,195,0,97,0]
["QHL","RYW","BIRMINGHAM COMMUNITY HEALTHCARE NHS FOUNDATION TRUST",308,56393,0.97077922077922074,6.4935064935064939E-3,267,32,7,0,2,0,0,0,0,0,308,0]
["QHL","RRK","UNIVERSITY HOSPITALS BIRMINGHAM NHS FOUNDATION TRUST",41,0,1,0,41,0,0,0,0,0,0,0,41,0,0,0]
["QHM","RXP","COUNTY DURHAM AND DARLINGTON NHS FOUNDATION TRUST",41,690,1,0,35,6,0,0,0,0,0,0,41,0,0,0]
["QHM","RR7","GATESHEAD HEALTH NHS FOUNDATION TRUST",30,52287,1,0,29,1,0,0,0,0,30,0,0,0,0,0]
["QHM","RNN","NORTH CUMBRIA INTEGRATED CARE NHS FOUNDATION TRUST",854,14211,0.96721311475409832,1.6393442622950821E-2,758,68,12,4,10,2,204,0,344,0,306,0]
["QHM","RVW","NORTH TEES AND HARTLEPOOL NHS FOUNDATION TRUST",292,10011,0.95547945205479456,1.0273972602739725E-2,246,33,9,1,2,1,256,0,36,0,0,0]
["QHM","RTF","NORTHUMBRIA HEALTHCARE NHS FOUNDATION TRUST",1136,23580,0.948943661971831,2.9929577464788731E-2,947,131,21,19,15,3,1133,0,3,0,0,0]
["QHM","RTR","SOUTH TEES HOSPITALS NHS FOUNDATION TRUST",287,6437,0.97909407665505221,0,242,39,6,0,0,0,106,169,8,0,4,0]
["QHM","R0B","SOUTH TYNESIDE AND SUNDERLAND NHS FOUNDATION TRUST",292,7974,0.99315068493150682,3.4246575342465752E-3,260,30,0,0,1,1,0,122,69,0,101,0]
["QHM","RTD","THE NEWCASTLE UPON TYNE HOSPITALS NHS FOUNDATION TRUST",42,2603,0.95238095238095233,2.3809523809523808E-2,36,4,1,1,0,0,0,0,0,0,42,0]
["QJ2","RY8","DERBYSHIRE COMMUNITY HEALTH SERVICES NHS FOUNDATION TRUST",3427,35013,0.9317187044061862,3.4724248613948058E-2,2838,355,104,61,58,11,3162,0,11,0,254,0]
["QJ2","RXM","DERBYSHIRE HEALTHCARE NHS FOUNDATION TRUST",11,5768,0.63636363636363635,0.18181818181818182,6,1,2,1,1,0,0,0,0,0,11,0]
["QJG","RDE","EAST SUFFOLK AND NORTH ESSEX NHS FOUNDATION TRUST",255,8103,0.96470588235294119,7.8431372549019607E-3,213,33,6,0,2,1,23,0,158,0,70,4]
["QJG","RGR","WEST SUFFOLK NHS FOUNDATION TRUST",60,1957,0.91666666666666663,1.6666666666666666E-2,43,12,4,0,1,0,0,42,7,0,11,0]
["QJK","RH8","ROYAL DEVON UNIVERSITY HEALTHCARE NHS FOUNDATION TRUST",461,19006,0.97830802603036882,8.6767895878524948E-3,401,50,6,3,1,0,0,0,25,0,436,0]
["QJK","RA9","TORBAY AND SOUTH DEVON NHS FOUNDATION TRUST",194,22770,0.97938144329896903,1.0309278350515464E-2,155,35,1,1,1,1,0,0,194,0,0,0]
["QJK","RK9","UNIVERSITY HOSPITALS PLYMOUTH NHS TRUST",0,185,"NA","NA",0,0,0,0,0,0,0,0,0,0,0,0]
["QJM","RY5","LINCOLNSHIRE COMMUNITY HEALTH SERVICES NHS TRUST",4336,25739,0.89045202952029523,6.4575645756457564E-2,3351,510,152,127,153,43,3747,0,542,0,47,0]
["QK1","RT5","LEICESTERSHIRE PARTNERSHIP NHS TRUST",1292,43413,0.92337461300309598,3.1733746130030958E-2,969,224,52,16,25,6,533,8,0,69,682,0]
["QKK","RJ1","GUY'S AND ST THOMAS' NHS FOUNDATION TRUST",279,4729,0.967741935483871,1.7921146953405017E-2,213,57,3,1,4,1,0,0,213,0,66,0]
["QKK","RJ2","LEWISHAM AND GREENWICH NHS TRUST",319,25282,0.95924764890282133,2.5078369905956112E-2,261,45,5,5,3,0,24,0,22,0,273,0]
["QKK","RPG","OXLEAS NHS FOUNDATION TRUST",1766,27421,0.90090600226500561,3.1710079275198186E-2,1325,266,102,26,30,17,1112,189,403,0,24,38]
["QKS","RYY","KENT COMMUNITY HEALTH NHS FOUNDATION TRUST",4878,65000,0.97621976219762197,8.2000820008200082E-3,4240,522,69,15,25,7,989,262,2331,102,996,198]
["QM7","RY4","HERTFORDSHIRE COMMUNITY NHS TRUST",516,43590,0.93604651162790697,2.7131782945736434E-2,419,64,17,7,7,2,55,0,84,0,372,5]
["QMF","R1H","BARTS HEALTH NHS TRUST",0,11325,"NA","NA",0,0,0,0,0,0,0,0,0,0,0,0]
["QMF","RWK","EAST LONDON NHS FOUNDATION TRUST",2288,20973,0.99300699300699302,3.9335664335664339E-3,267,2005,6,6,3,1,31,0,0,0,325,1932]
["QMF","RQX","HOMERTON HEALTHCARE NHS FOUNDATION TRUST",1197,15429,0.9757727652464494,9.1896407685881365E-3,957,211,14,4,7,4,1104,0,25,0,68,0]
["QMF","RAT","NORTH EAST LONDON NHS FOUNDATION TRUST",1985,22582,0.89118387909319896,5.5415617128463476E-2,1356,413,78,48,62,28,0,0,0,0,1985,0]
["QMJ","RV3","CENTRAL AND NORTH WEST LONDON NHS FOUNDATION TRUST",495,31367,0.97575757575757571,8.0808080808080808E-3,399,84,7,2,2,1,1,0,219,0,275,0]
["QMJ","RAP","NORTH MIDDLESEX UNIVERSITY HOSPITAL NHS TRUST",120,120,0.97499999999999998,0,80,37,3,0,0,0,52,0,68,0,0,0]
["QMJ","RKE","WHITTINGTON HEALTH NHS TRUST",532,26645,0.94736842105263153,3.1954887218045111E-2,439,65,7,7,10,4,28,274,29,0,201,0]
["QMM","RY3","NORFOLK COMMUNITY HEALTH AND CARE NHS TRUST",352,23875,0.99147727272727271,0,313,36,2,0,0,1,0,0,0,0,352,0]
["QNC","RRE","MIDLANDS PARTNERSHIP NHS FOUNDATION TRUST",843,44043,0.94543297746144717,3.6773428232502965E-2,707,90,15,8,23,0,0,0,0,0,793,50]
["QNQ","RWX","BERKSHIRE HEALTHCARE NHS FOUNDATION TRUST",2239,58059,0.95489057615006701,2.1438142027690933E-2,1957,181,41,20,28,12,0,182,276,0,1781,0]
["QNQ","RDU","FRIMLEY HEALTH NHS FOUNDATION TRUST",23,0,1,0,19,4,0,0,0,0,0,0,16,0,7,0]
["QNX","RXC","EAST SUSSEX HEALTHCARE NHS TRUST",403,48277,0.98511166253101734,7.4441687344913151E-3,359,38,3,1,2,0,0,0,260,0,143,0]
["QNX","RDR","SUSSEX COMMUNITY NHS FOUNDATION TRUST",2691,57576,0.96729840208101081,1.26347082868822E-2,2285,318,48,21,13,6,0,0,0,0,2691,0]
["QOC","R1D","SHROPSHIRE COMMUNITY HEALTH NHS TRUST",248,20931,0.97983870967741937,1.2096774193548387E-2,221,22,2,1,2,0,1,163,84,0,0,0]
["QOP","RMC","BOLTON NHS FOUNDATION TRUST",1081,11669,0.9944495837187789,1.8501387604070306E-3,908,167,0,2,0,4,0,58,982,0,41,0]
["QOP","R0A","MANCHESTER UNIVERSITY NHS FOUNDATION TRUST",920,38625,0.99021739130434783,3.2608695652173911E-3,834,77,6,3,0,0,0,263,296,0,361,0]
["QOP","RM3","NORTHERN CARE ALLIANCE NHS FOUNDATION TRUST",0,0,"NA","NA",0,0,0,0,0,0,0,0,0,0,0,0]
["QOP","RWJ","STOCKPORT NHS FOUNDATION TRUST",380,14857,0.91578947368421049,3.6842105263157891E-2,303,45,16,9,5,2,330,0,0,50,0,0]
["QOP","RMP","TAMESIDE AND GLOSSOP INTEGRATED CARE NHS FOUNDATION TRUST",465,0,0.99139784946236564,6.4516129032258064E-3,377,84,1,1,2,0,0,104,57,0,304,0]
["QOP","RRF","WRIGHTINGTON, WIGAN AND LEIGH NHS FOUNDATION TRUST",61,547,0.91803278688524592,4.9180327868852458E-2,51,5,2,0,3,0,58,0,0,2,1,0]
["QOQ","RCD","HARROGATE AND DISTRICT NHS FOUNDATION TRUST",91,6959,0.92307692307692313,2.197802197802198E-2,72,12,5,2,0,0,0,0,20,68,3,0]
["QOQ","RV9","HUMBER TEACHING NHS FOUNDATION TRUST",114,10622,0.98245614035087714,8.771929824561403E-3,105,7,1,0,1,0,0,0,114,0,0,0]
["QOQ","RJL","NORTHERN LINCOLNSHIRE AND GOOLE NHS FOUNDATION TRUST",137,12296,0.97080291970802923,2.9197080291970802E-2,120,13,0,1,3,0,0,0,122,0,15,0]
["QOQ","RCB","YORK AND SCARBOROUGH TEACHING HOSPITALS NHS FOUNDATION TRUST",28,0,0.9642857142857143,0,21,6,1,0,0,0,0,0,28,0,0,0]
["QPM","RP1","NORTHAMPTONSHIRE HEALTHCARE NHS FOUNDATION TRUST",279,34524,0.95340501792114696,3.5842293906810036E-3,233,33,7,1,0,5,0,42,222,0,15,0]
["QR1","RTQ","GLOUCESTERSHIRE HEALTH AND CARE NHS FOUNDATION TRUST",2215,20840,0.93905191873589167,2.5733634311512415E-2,1801,279,62,38,19,16,0,0,0,0,2215,0]
["QRL","R1F","ISLE OF WIGHT NHS TRUST",323,7917,0.97213622291021673,1.238390092879257E-2,287,27,3,1,3,2,0,0,319,0,4,0]
["QRL","R1C","SOLENT NHS TRUST",994,33203,0.96076458752515093,1.6096579476861168E-2,729,226,18,10,6,5,229,165,252,0,348,0]
["QRL","RW1","SOUTHERN HEALTH NHS FOUNDATION TRUST",1147,34177,0.93286835222319098,1.5693112467306015E-2,955,115,47,16,2,12,0,0,458,0,689,0]
["QRV","RYX","CENTRAL LONDON COMMUNITY HEALTHCARE NHS TRUST",1699,72133,0.96880517951736311,1.059446733372572E-2,1458,188,21,9,9,14,0,0,434,1075,190,0]
["QRV","RQM","CHELSEA AND WESTMINSTER HOSPITAL NHS FOUNDATION TRUST",186,1453,0.9623655913978495,2.6881720430107527E-2,171,8,1,1,4,1,167,0,0,0,19,0]
["QRV","R1K","LONDON NORTH WEST UNIVERSITY HEALTHCARE NHS TRUST",463,599,0.99136069114470837,4.3196544276457886E-3,426,33,2,1,1,0,0,0,364,0,99,0]
["QRV","RKL","WEST LONDON NHS TRUST",367,14359,0.98637602179836514,1.0899182561307902E-2,274,88,1,0,4,0,0,0,334,0,33,0]
["QSL","RH5","SOMERSET NHS FOUNDATION TRUST",0,17482,"NA","NA",0,0,0,0,0,0,0,0,0,0,0,0]
["QT1","RX1","NOTTINGHAM UNIVERSITY HOSPITALS NHS TRUST",16,455,1,0,16,0,0,0,0,0,0,0,0,0,16,0]
["QT1","RHA","NOTTINGHAMSHIRE HEALTHCARE NHS FOUNDATION TRUST",174,36394,0.96551724137931039,1.7241379310344827E-2,149,19,3,0,3,0,113,0,44,0,17,0]
["QT6","RJ8","CORNWALL PARTNERSHIP NHS FOUNDATION TRUST",1980,26450,0.92272727272727273,4.2424242424242427E-2,1524,303,53,36,48,16,1490,92,191,0,207,0]
["QU9","RXQ","BUCKINGHAMSHIRE HEALTHCARE NHS TRUST",516,4380,0.91279069767441856,3.1007751937984496E-2,389,82,19,6,10,10,344,0,0,172,0,0]
["QUA","TAJ","BLACK COUNTRY HEALTHCARE NHS FOUNDATION TRUST",31,3924,1,0,29,2,0,0,0,0,0,0,0,0,0,31]
["QUA","RNA","THE DUDLEY GROUP NHS FOUNDATION TRUST",692,8204,0.9002890173410405,1.300578034682081E-2,544,79,9,4,5,51,435,0,251,0,6,0]
["QUA","RL4","THE ROYAL WOLVERHAMPTON NHS TRUST",405,6538,0.90617283950617289,2.7160493827160494E-2,304,63,21,8,3,6,69,0,0,336,0,0]
["QUA","RBK","WALSALL HEALTHCARE NHS TRUST",393,8796,0.99745547073791352,0,363,29,0,0,0,1,0,393,0,0,0,0]
["QUE","RT1","CAMBRIDGESHIRE AND PETERBOROUGH NHS FOUNDATION TRUST",634,25853,0.93533123028391163,3.6277602523659309E-2,502,91,16,15,8,2,8,27,184,0,415,0]
["QUE","RYV","CAMBRIDGESHIRE COMMUNITY SERVICES NHS TRUST",2559,48253,0.96639312231340369,1.6803438843298164E-2,2119,354,36,22,21,7,3,1327,658,135,436,0]
["QVV","RDY","DORSET HEALTHCARE UNIVERSITY NHS FOUNDATION TRUST",1155,36688,0.94112554112554114,3.2900432900432902E-2,943,144,28,15,23,2,0,262,134,0,759,0]
["QWE","RJ6","CROYDON HEALTH SERVICES NHS TRUST",215,127736,0.93023255813953487,3.255813953488372E-2,164,36,5,3,4,3,199,0,0,0,16,0]
["QWE","RVR","EPSOM AND ST HELIER UNIVERSITY HOSPITALS NHS TRUST",937,17201,0.96478121664887939,1.7075773745997867E-2,816,88,13,7,9,4,0,11,297,0,629,0]
["QWE","RY9","HOUNSLOW AND RICHMOND COMMUNITY HEALTHCARE NHS TRUST",2782,37077,0.93242271746944649,3.8461538461538464E-2,2135,459,67,59,48,14,1915,0,522,0,345,0]
["QWE","RJ7","ST GEORGE'S UNIVERSITY HOSPITALS NHS FOUNDATION TRUST",14,1538,1,0,10,4,0,0,0,0,0,0,14,0,0,0]
["QWO","RCF","AIREDALE NHS FOUNDATION TRUST",180,1561,0.96111111111111114,1.6666666666666666E-2,142,31,1,3,0,3,158,0,4,0,18,0]
["QWO","TAD","BRADFORD DISTRICT CARE NHS FOUNDATION TRUST",510,30274,0.79019607843137252,0.16470588235294117,386,17,21,66,18,2,0,0,498,12,0,0]
["QWO","RWY","CALDERDALE AND HUDDERSFIELD NHS FOUNDATION TRUST",95,15470,0.98947368421052628,0,73,21,1,0,0,0,0,0,0,0,95,0]
["QWO","RY6","LEEDS COMMUNITY HEALTHCARE NHS TRUST",742,5510,0.94878706199460916,1.7520215633423181E-2,564,140,20,5,8,5,5,0,103,0,634,0]
["QWO","RXF","MID YORKSHIRE TEACHING NHS TRUST",1742,0,0.98851894374282434,4.5924225028702642E-3,1557,165,10,4,4,2,79,0,1510,0,153,0]
["QWO","RXG","SOUTH WEST YORKSHIRE PARTNERSHIP NHS FOUNDATION TRUST",306,11503,0.97058823529411764,9.8039215686274508E-3,257,40,6,1,2,0,0,4,69,0,233,0]
["QWU","RJC","SOUTH WARWICKSHIRE UNIVERSITY NHS FOUNDATION TRUST",154,7416,1,0,140,14,0,0,0,0,0,0,154,0,0,0]
["QXU","RA2","ROYAL SURREY COUNTY HOSPITAL NHS FOUNDATION TRUST",138,3439,0.98550724637681164,0,117,19,0,0,0,2,0,0,120,0,18,0]
["QYG","RBS","ALDER HEY CHILDREN'S NHS FOUNDATION TRUST",99,799,0.96969696969696972,2.0202020202020204E-2,83,13,1,1,1,0,29,6,0,0,64,0]
["QYG","RY2","BRIDGEWATER COMMUNITY HEALTHCARE NHS FOUNDATION TRUST",4215,21394,0.94970344009489915,2.7283511269276393E-2,3539,464,70,38,77,27,2531,0,1043,0,641,0]
["QYG","RXA","CHESHIRE AND WIRRAL PARTNERSHIP NHS FOUNDATION TRUST",894,14466,0.91722595078299773,3.5794183445190156E-2,715,105,25,10,22,17,814,0,80,0,0,0]
["QYG","RJN","EAST CHESHIRE NHS TRUST",157,2139,0.92993630573248409,1.2738853503184714E-2,123,23,4,1,1,5,100,0,14,43,0,0]
["QYG","RBQ","LIVERPOOL HEART AND CHEST HOSPITAL NHS FOUNDATION TRUST",0,0,"NA","NA",0,0,0,0,0,0,0,0,0,0,0,0]
["QYG","RBN","MERSEY AND WEST LANCASHIRE TEACHING HOSPITALS NHS TRUST",144,1346,0.97916666666666663,2.0833333333333332E-2,133,8,0,0,3,0,0,0,0,0,144,0]
["QYG","RW4","MERSEY CARE NHS FOUNDATION TRUST",1426,74106,0.94670406732117807,1.3323983169705469E-2,1078,272,37,4,15,20,0,0,121,0,1305,0]
["QYG","RBT","MID CHESHIRE HOSPITALS NHS FOUNDATION TRUST",680,5370,0.96176470588235297,1.7647058823529412E-2,597,57,9,3,9,5,670,0,10,0,0,0]
["QYG","RY7","WIRRAL COMMUNITY HEALTH AND CARE NHS FOUNDATION TRUST",2519,26735,0.91941246526399367,4.5653036919412464E-2,2040,276,75,53,62,13,2277,0,0,0,242,0]
["IS1","NEC","ALLIED HEALTH PROFESSIONALS SUFFOLK CIC",733,10813,0.922237380627558,3.8199181446111868E-2,583,93,22,18,10,7,0,0,0,0,733,0]
["IS1","8J094","BADGER LTD",36,16094,1,0,32,4,0,0,0,0,0,0,36,0,0,0]
["IS1","DVG","BARDOC",1055,8302,0.85402843601895739,0.10995260663507109,686,215,38,59,57,0,1055,0,0,0,0,0]
["IS1","AT7H","BRITISH RED CROSS SOCIETY",26,50,0.96153846153846156,0,23,2,0,0,0,1,0,0,0,26,0,0]
["IS1","NQV","BROMLEY HEALTHCARE",730,18028,0.9506849315068493,1.7808219178082191E-2,597,97,18,5,8,5,0,0,271,0,459,0]
["IS1","NL3","CARE PLUS GROUP",45,6622,1,0,41,4,0,0,0,0,0,0,39,0,6,0]
["IS1","Q8V5K","CITIZENS ADVICE STOCKPORT, OLDHAM, ROCHDALE",0,0,"NA","NA",0,0,0,0,0,0,0,0,0,0,0,0]
["IS1","NNF","CITY HEALTH CARE PARTNERSHIP CIC",3007,22091,0.97106750914532758,1.4299966744263386E-2,2625,295,29,19,24,15,0,0,855,0,2152,0]
["IS1","NMG","CONNECT HEALTH LIMITED",2892,30614,0.90006915629322271,4.8755186721991702E-2,2162,441,119,52,89,29,2687,0,0,142,63,0]
["IS1","NY6","CONNECT HEALTH PAIN SERVICES",110,2755,0.88181818181818183,8.1818181818181818E-2,79,18,1,3,6,3,80,0,0,0,30,0]
["IS1","NTV","CSH SURREY",299,18920,0.8929765886287625,8.0267558528428096E-2,237,30,3,9,15,5,0,154,124,0,21,0]
["IS1","8HE44","DR KERSHAWS HOSPICE",6,184,1,0,6,0,0,0,0,0,0,0,6,0,0,0]
["IS1","NAX","EAST COAST COMMUNITY HEALTHCARE C.I.C",110,7482,0.95454545454545459,1.8181818181818181E-2,98,7,2,1,1,1,0,0,95,4,11,0]
["IS1","DY6","EASTLEIGH SOUTHERN PARISHES NETWORK LTD",108,592,0.95370370370370372,4.6296296296296294E-2,93,10,0,2,3,0,0,0,108,0,0,0]
["IS1","NDJ","FIRST COMMUNITY HEALTH AND CARE CIC",240,5811,0.95416666666666672,2.0833333333333332E-2,198,31,0,1,4,6,0,0,198,0,42,0]
["IS1","NDK","FRESHNEY PELHAM CARE LIMITED",39,40,1,0,38,1,0,0,0,0,0,0,39,0,0,0]
["IS1","NWV01","GP CARE UK",568,875,0.97887323943661975,1.0563380281690141E-2,485,71,6,3,3,0,0,0,568,0,0,0]
["IS1","NW0","GTD HEALTHCARE",874,25767,0.90503432494279179,5.9496567505720827E-2,690,101,27,38,14,4,870,0,4,0,0,0]
["IS1","NQT","HCRG CARE LTD",2884,82583,0.93030513176144247,2.7739251040221916E-2,1960,723,90,56,24,31,389,0,1430,0,1065,0]
["IS1","NDA","HCRG CARE SERVICES LTD",287,8460,0.98606271777003485,1.0452961672473868E-2,256,27,1,3,0,0,7,0,137,0,143,0]
["IS1","NHA","INSIDEVUE LIMITED",93,815,0.92473118279569888,2.1505376344086023E-2,59,27,3,1,1,2,93,0,0,0,0,0]
["IS1","NLE01","LANCASTER HOUSE CONSULTING DIAGNOSTICS SURGICAL LTD HQ",215,215,1,0,157,58,0,0,0,0,0,0,215,0,0,0]
["IS1","NR5","LIVEWELL SOUTHWEST",460,6618,0.95869565217391306,1.5217391304347827E-2,405,36,9,3,4,3,131,0,0,0,64,265]
["IS1","DAY","LLR PATIENT CARE LOCALLY",1011,5970,0.97626112759643913,9.8911968348170121E-3,839,148,12,9,1,2,153,24,394,0,440,0]
["IS1","NL8","LOCALA COMMUNITY PARTNERSHIPS CIC",1243,25126,0.9533386967015286,2.4939662107803701E-2,1049,136,4,21,10,23,0,0,32,0,1211,0]
["IS1","NCE","MASTERCALL HEALTHCARE",291,17035,0.8797250859106529,8.247422680412371E-2,211,45,8,6,18,3,291,0,0,0,0,0]
["IS1","NQ7","MEDWAY COMMUNITY HEALTHCARE",1029,10563,0.96501457725947526,2.2351797862001945E-2,890,103,9,7,16,4,0,0,61,0,968,0]
["IS1","ARA","MID HAMPSHIRE HEALTHCARE LIMITED",449,1493,0.94654788418708236,3.1180400890868598E-2,395,30,8,6,8,2,449,0,0,0,0,0]
["IS1","NPH","MILTON KEYNES URGENT CARE SERVICES CIC HQ",556,9964,0.78776978417266186,0.12949640287769784,255,183,42,29,43,4,0,0,0,0,556,0]
["IS1","NHX","NORTH HAMPSHIRE URGENT CARE",150,10998,0.93333333333333335,4.6666666666666669E-2,103,37,2,4,3,1,0,0,150,0,0,0]
["IS1","NQH","NOVUS HEALTH LTD",573,6424,0.95986038394415363,1.2216404886561954E-2,490,60,16,6,1,0,0,0,115,0,458,0]
["IS1","DCF","OZONE HEALTH",191,2462,0.76963350785340312,0.1099476439790576,111,36,16,9,12,7,0,0,0,0,191,0]
["IS1","NLF","PENNINE MUSCULOSKELETAL PARTNERSHIP (ICATS)",729,6286,0.94650205761316875,2.194787379972565E-2,628,62,18,2,14,5,729,0,0,0,0,0]
["IS1","NTP","PRACTICE PLUS GROUP",1033,55278,0.80251694094869308,0.13746369796708616,640,189,58,61,81,4,0,0,92,0,941,0]
["IS1","NQA","PROVIDE",657,13512,0.9786910197869102,1.3698630136986301E-2,601,42,5,5,4,0,0,0,0,0,657,0]
["IS1","NLX","SIRONA CARE & HEALTH",139,36341,0.98561151079136688,7.1942446043165471E-3,127,10,1,0,1,0,0,36,99,0,4,0]
["IS1","NNC","SOLENT MEDICAL SERVICES LIMITED",47,728,0.97872340425531912,2.1276595744680851E-2,42,4,0,0,1,0,0,0,47,0,0,0]
["IS1","NDL","SUFFOLK GP FEDERATION",1269,16851,0.91095350669818753,4.7281323877068557E-2,997,159,48,31,29,5,1269,0,0,0,0,0]
["IS1","NYG","SUSSEX COMMUNITY DERMATOLOGY SERVICE",273,10579,0.99633699633699635,0,155,117,1,0,0,0,0,0,0,0,273,0]
["IS1","NGX","TAURUS HEALTHCARE LTD",631,4551,0.9350237717908082,3.328050713153724E-2,478,112,20,7,14,0,631,0,0,0,0,0]
["IS1","NN1","THE ROYAL HOSPITAL FOR NEURO-DISABILITY",7,10,0.8571428571428571,0.14285714285714285,3,3,0,0,1,0,0,0,7,0,0,0]
["IS1","8HN95","THE STROKE ASSOCIATION",6,6,1,0,"*","*","*","*","*","*","*","*","*","*","*","*"]
["IS1","VLN99","TURNING POINT - BIRCHWOOD NURSING HOME",1,15,"*","*","*","*","*","*","*","*","*","*","*","*","*","*"]
["IS1","AXG","WILTSHIRE HEALTH & CARE",784,18890,0.97704081632653061,1.913265306122449E-2,668,98,0,4,11,3,178,172,313,7,109,5]
["IS1","NNV","YOUR HEALTHCARE",126,1021,0.97619047619047616,0,94,29,3,0,0,0,0,0,33,0,93,0]

{"sheet":"Categories","index":4,"n_rows":528,"n_cols":13,"rows_kept":528,"cut":false,"hidden":false,"merged":[[2,6,3,6],[2,7,2,12],[2,0,3,0],[2,1,3,1],[2,2,3,2],[2,3,3,3],[2,4,3,4],[2,5,3,5]]}
[]
[]
["ICB Code","Trust Code","Trust Name","Service Category Provided","Total Responses","Percentage Positive","Percentage Negative","Breakdown of Responses"]
[null,null,null,null,null,null,null,"Very Good","Good","Neither Good nor Poor","Poor","Very Poor","Don't Know"]
[null,null,null,"England (including Independent Sector Providers)",102412,0.94306331289302037,2.8443932351677539E-2,81403,15178,2257,1375,1538,661]
[null,null,null,"England (excluding Independent Sector Providers)",76400,0.94756544502617801,2.4895287958115183E-2,61112,11282,1618,895,1007,486]
[null,null,null,"Selection (excluding suppressed data)",{"$f":"SUBTOTAL(9,E8:E994)","v":102412},{"$f":"IFERROR((H7+I7)/SUM(H7:M7), \"-\")","v":0.94307074160305715},{"$f":"IFERROR((K7+L7)/SUM(H7:M7), \"-\")","v":2.8479364985804525E-2},{"$f":"SUBTOTAL(9,H8:H994)","v":80930},15068,2240,1372,1527,656]
["QE1","RXL","BLACKPOOL TEACHING HOSPITALS NHS FOUNDATION TRUST","Children & Family Services",91,0.91208791208791207,1.098901098901099E-2,83,0,5,0,1,2]
["QE1","RXL","BLACKPOOL TEACHING HOSPITALS NHS FOUNDATION TRUST","Community Healthcare Other",476,0.98319327731092432,6.3025210084033615E-3,415,53,5,0,3,0]
["QE1","RXL","BLACKPOOL TEACHING HOSPITALS NHS FOUNDATION TRUST","Community Inpatient Services",40,0.95,2.5000000000000001E-2,26,12,1,0,1,0]
["QE1","RXL","BLACKPOOL TEACHING HOSPITALS NHS FOUNDATION TRUST","Community Nursing Services",205,1,0,196,9,0,0,0,0]
["QE1","RXL","BLACKPOOL TEACHING HOSPITALS NHS FOUNDATION TRUST","Rehabilitation & Therapy Services",327,0.96330275229357798,2.7522935779816515E-2,282,33,3,5,4,0]
["QE1","RXL","BLACKPOOL TEACHING HOSPITALS NHS FOUNDATION TRUST","Specialist Services",177,0.97740112994350281,1.1299435028248588E-2,158,15,1,1,1,1]
["QE1","RXR","EAST LANCASHIRE HOSPITALS NHS TRUST","Children & Family Services",12,0.83333333333333337,8.3333333333333329E-2,10,0,0,0,1,1]
["QE1","RXR","EAST LANCASHIRE HOSPITALS NHS TRUST","Community Healthcare Other",79,0.84810126582278478,3.7974683544303799E-2,58,9,2,1,2,7]
["QE1","RXR","EAST LANCASHIRE HOSPITALS NHS TRUST","Community Inpatient Services",114,0.92982456140350878,0,90,16,1,0,0,7]
["QE1","RXR","EAST LANCASHIRE HOSPITALS NHS TRUST","Community Nursing Services",357,0.93837535014005602,2.5210084033613446E-2,295,40,9,5,4,4]
["QE1","RXR","EAST LANCASHIRE HOSPITALS NHS TRUST","Rehabilitation & Therapy Services",198,0.94444444444444442,3.0303030303030304E-2,167,20,1,2,4,4]
["QE1","RXR","EAST LANCASHIRE HOSPITALS NHS TRUST","Specialist Services",5,0.6,0,2,1,1,0,0,1]
["QE1","RW5","LANCASHIRE & SOUTH CUMBRIA NHS FOUNDATION TRUST","Children & Family Services",67,1,0,64,3,0,0,0,0]
["QE1","RW5","LANCASHIRE & SOUTH CUMBRIA NHS FOUNDATION TRUST","Community Healthcare Other",6,1,0,6,0,0,0,0,0]
["QE1","RW5","LANCASHIRE & SOUTH CUMBRIA NHS FOUNDATION TRUST","Community Inpatient Services",20,0.9,0,14,4,1,0,0,1]
["QE1","RW5","LANCASHIRE & SOUTH CUMBRIA NHS FOUNDATION TRUST","Community Nursing Services",227,0.98237885462555063,0,210,13,3,0,0,1]
["QE1","RW5","LANCASHIRE & SOUTH CUMBRIA NHS FOUNDATION TRUST","Rehabilitation & Therapy Services",66,0.98484848484848486,0,60,5,1,0,0,0]
["QE1","RW5","LANCASHIRE & SOUTH CUMBRIA NHS FOUNDATION TRUST","Specialist Services",33,0.90909090909090906,9.0909090909090912E-2,29,1,0,0,3,0]
["QE1","RTX","UNIVERSITY HOSPITALS OF MORECAMBE BAY NHS FOUNDATION TRUST","Children & Family Services",3,"*","*","*","*","*","*","*","*"]
["QE1","RTX","UNIVERSITY HOSPITALS OF MORECAMBE BAY NHS FOUNDATION TRUST","Community Healthcare Other",26,1,0,25,1,0,0,0,0]
["QE1","RTX","UNIVERSITY HOSPITALS OF MORECAMBE BAY NHS FOUNDATION TRUST","Community Inpatient Services",13,0.84615384615384615,0,"*","*","*","*","*","*"]
["QE1","RTX","UNIVERSITY HOSPITALS OF MORECAMBE BAY NHS FOUNDATION TRUST","Community Nursing Services",256,0.9296875,3.125E-2,200,38,3,4,4,7]
["QE1","RTX","UNIVERSITY HOSPITALS OF MORECAMBE BAY NHS FOUNDATION TRUST","Rehabilitation & Therapy Services",20,1,0,20,0,0,0,0,0]
["QE1","RTX","UNIVERSITY HOSPITALS OF MORECAMBE BAY NHS FOUNDATION TRUST","Specialist Services",309,0.96440129449838186,1.9417475728155338E-2,275,23,3,2,4,2]
["QF7","RXE","ROTHERHAM DONCASTER AND SOUTH HUMBER NHS FOUNDATION TRUST","Children & Family Services",25,0.92,0.04,23,0,1,0,1,0]
["QF7","RXE","ROTHERHAM DONCASTER AND SOUTH HUMBER NHS FOUNDATION TRUST","Community Healthcare Other",19,1,0,15,4,0,0,0,0]
["QF7","RXE","ROTHERHAM DONCASTER AND SOUTH HUMBER NHS FOUNDATION TRUST","Community Inpatient Services",5,1,0,"*","*","*","*","*","*"]
["QF7","RXE","ROTHERHAM DONCASTER AND SOUTH HUMBER NHS FOUNDATION TRUST","Community Nursing Services",14,0.8571428571428571,7.1428571428571425E-2,12,0,1,0,1,0]
["QF7","RXE","ROTHERHAM DONCASTER AND SOUTH HUMBER NHS FOUNDATION TRUST","Rehabilitation & Therapy Services",22,0.95454545454545459,0,15,6,1,0,0,0]
["QF7","RXE","ROTHERHAM DONCASTER AND SOUTH HUMBER NHS FOUNDATION TRUST","Specialist Services",3,"*","*","*","*","*","*","*","*"]
["QF7","RCU","SHEFFIELD CHILDREN'S NHS FOUNDATION TRUST","Community Nursing Services",41,0.97560975609756095,0,40,0,1,0,0,0]
["QF7","RHQ","SHEFFIELD TEACHING HOSPITALS NHS FOUNDATION TRUST","Community Healthcare Other",78,0.80769230769230771,0.10256410256410256,50,13,7,3,5,0]
["QF7","RHQ","SHEFFIELD TEACHING HOSPITALS NHS FOUNDATION TRUST","Community Inpatient Services",8,0.875,0.125,7,0,0,0,1,0]
["QF7","RHQ","SHEFFIELD TEACHING HOSPITALS NHS FOUNDATION TRUST","Community Nursing Services",36,0.94444444444444442,0,20,14,1,0,0,1]
["QF7","RHQ","SHEFFIELD TEACHING HOSPITALS NHS FOUNDATION TRUST","Rehabilitation & Therapy Services",284,0.93309859154929575,1.4084507042253521E-2,216,49,10,3,1,5]
["QF7","RHQ","SHEFFIELD TEACHING HOSPITALS NHS FOUNDATION TRUST","Specialist Services",64,0.9375,3.125E-2,48,12,2,2,0,0]
["QF7","RFR","THE ROTHERHAM NHS FOUNDATION TRUST","Children & Family Services",46,0.97826086956521741,2.1739130434782608E-2,42,3,0,1,0,0]
["QF7","RFR","THE ROTHERHAM NHS FOUNDATION TRUST","Community Nursing Services",20,1,0,19,1,0,0,0,0]
["QF7","RFR","THE ROTHERHAM NHS FOUNDATION TRUST","Rehabilitation & Therapy Services",264,0.98863636363636365,0,258,3,2,0,0,1]
["QF7","RFR","THE ROTHERHAM NHS FOUNDATION TRUST","Specialist Services",60,1,0,59,1,0,0,0,0]
["QGH","RLQ","WYE VALLEY NHS TRUST","Community Inpatient Services",5,0.8,0.2,2,2,0,0,1,0]
["QH8","R1L","ESSEX PARTNERSHIP UNIVERSITY NHS FOUNDATION TRUST","Children & Family Services",5,1,0,5,0,0,0,0,0]
["QH8","R1L","ESSEX PARTNERSHIP UNIVERSITY NHS FOUNDATION TRUST","Community Healthcare Other",100,0.98,0.02,91,7,0,1,1,0]
["QH8","R1L","ESSEX PARTNERSHIP UNIVERSITY NHS FOUNDATION TRUST","Community Inpatient Services",16,0.8125,6.25E-2,7,6,1,0,1,1]
["QH8","R1L","ESSEX PARTNERSHIP UNIVERSITY NHS FOUNDATION TRUST","Community Nursing Services",60,0.8833333333333333,0.05,52,1,0,0,3,4]
["QH8","R1L","ESSEX PARTNERSHIP UNIVERSITY NHS FOUNDATION TRUST","Rehabilitation & Therapy Services",32,1,0,32,0,0,0,0,0]
["QH8","R1L","ESSEX PARTNERSHIP UNIVERSITY NHS FOUNDATION TRUST","Specialist Services",79,0.93670886075949367,0,68,6,0,0,0,5]
["QHL","RYW","BIRMINGHAM COMMUNITY HEALTHCARE NHS FOUNDATION TRUST","Children & Family Services",136,0.95588235294117652,0,107,23,6,0,0,0]
["QHL","RYW","BIRMINGHAM COMMUNITY HEALTHCARE NHS FOUNDATION TRUST","Community Healthcare Other",22,0.95454545454545459,4.5454545454545456E-2,19,2,0,0,1,0]
["QHL","RYW","BIRMINGHAM COMMUNITY HEALTHCARE NHS FOUNDATION TRUST","Community Inpatient Services",7,1,0,5,2,0,0,0,0]
["QHL","RYW","BIRMINGHAM COMMUNITY HEALTHCARE NHS FOUNDATION TRUST","Community Nursing Services",90,0.98888888888888893,0,84,5,1,0,0,0]
["QHL","RYW","BIRMINGHAM COMMUNITY HEALTHCARE NHS FOUNDATION TRUST","Rehabilitation & Therapy Services",27,0.96296296296296291,3.7037037037037035E-2,26,0,0,0,1,0]
["QHL","RYW","BIRMINGHAM COMMUNITY HEALTHCARE NHS FOUNDATION TRUST","Specialist Services",26,1,0,26,0,0,0,0,0]
["QHL","RRK","UNIVERSITY HOSPITALS BIRMINGHAM NHS FOUNDATION TRUST","Children & Family Services",2,"*","*","*","*","*","*","*","*"]
["QHL","RRK","UNIVERSITY HOSPITALS BIRMINGHAM NHS FOUNDATION TRUST","Community Healthcare Other",6,1,0,6,0,0,0,0,0]
["QHL","RRK","UNIVERSITY HOSPITALS BIRMINGHAM NHS FOUNDATION TRUST","Community Nursing Services",20,1,0,20,0,0,0,0,0]
["QHL","RRK","UNIVERSITY HOSPITALS BIRMINGHAM NHS FOUNDATION TRUST","Rehabilitation & Therapy Services",10,1,0,10,0,0,0,0,0]
["QHL","RRK","UNIVERSITY HOSPITALS BIRMINGHAM NHS FOUNDATION TRUST","Specialist Services",3,"*","*","*","*","*","*","*","*"]
["QHM","RXP","COUNTY DURHAM AND DARLINGTON NHS FOUNDATION TRUST","Community Healthcare Other",15,1,0,"*","*","*","*","*","*"]
["QHM","RXP","COUNTY DURHAM AND DARLINGTON NHS FOUNDATION TRUST","Community Inpatient Services",24,1,0,18,6,0,0,0,0]
["QHM","RXP","COUNTY DURHAM AND DARLINGTON NHS FOUNDATION TRUST","Community Nursing Services",2,"*","*","*","*","*","*","*","*"]
["QHM","RR7","GATESHEAD HEALTH NHS FOUNDATION TRUST","Specialist Services",30,1,0,29,1,0,0,0,0]
["QHM","RNN","NORTH CUMBRIA INTEGRATED CARE NHS FOUNDATION TRUST","Children & Family Services",13,1,0,13,0,0,0,0,0]
["QHM","RNN","NORTH CUMBRIA INTEGRATED CARE NHS FOUNDATION TRUST","Community Healthcare Other",226,0.95132743362831862,2.6548672566371681E-2,190,25,5,2,4,0]
["QHM","RNN","NORTH CUMBRIA INTEGRATED CARE NHS FOUNDATION TRUST","Community Inpatient Services",18,0.94444444444444442,0,17,0,1,0,0,0]
["QHM","RNN","NORTH CUMBRIA INTEGRATED CARE NHS FOUNDATION TRUST","Community Nursing Services",146,0.98630136986301364,6.8493150684931503E-3,129,15,1,1,0,0]
["QHM","RNN","NORTH CUMBRIA INTEGRATED CARE NHS FOUNDATION TRUST","Rehabilitation & Therapy Services",244,0.97540983606557374,8.1967213114754103E-3,218,20,3,0,2,1]
["QHM","RNN","NORTH CUMBRIA INTEGRATED CARE NHS FOUNDATION TRUST","Specialist Services",207,0.96135265700483097,2.4154589371980676E-2,191,8,2,1,4,1]
["QHM","RVW","NORTH TEES AND HARTLEPOOL NHS FOUNDATION TRUST","Children & Family Services",2,"*","*","*","*","*","*","*","*"]
["QHM","RVW","NORTH TEES AND HARTLEPOOL NHS FOUNDATION TRUST","Community Nursing Services",78,0.98717948717948723,0,66,11,1,0,0,0]
["QHM","RVW","NORTH TEES AND HARTLEPOOL NHS FOUNDATION TRUST","Rehabilitation & Therapy Services",50,0.9,0.04,"*","*","*","*","*","*"]
["QHM","RVW","NORTH TEES AND HARTLEPOOL NHS FOUNDATION TRUST","Specialist Services",162,0.95679012345679015,6.1728395061728392E-3,141,14,5,1,0,1]
["QHM","RTF","NORTHUMBRIA HEALTHCARE NHS FOUNDATION TRUST","Community Nursing Services",370,0.97297297297297303,8.1081081081081086E-3,324,36,7,2,1,0]
["QHM","RTF","NORTHUMBRIA HEALTHCARE NHS FOUNDATION TRUST","Rehabilitation & Therapy Services",453,0.94922737306843263,3.3112582781456956E-2,376,54,6,11,4,2]
["QHM","RTF","NORTHUMBRIA HEALTHCARE NHS FOUNDATION TRUST","Specialist Services",313,0.92012779552715651,5.1118210862619806E-2,247,41,8,6,10,1]
["QHM","RTR","SOUTH TEES HOSPITALS NHS FOUNDATION TRUST","Children & Family Services",1,"*","*","*","*","*","*","*","*"]
["QHM","RTR","SOUTH TEES HOSPITALS NHS FOUNDATION TRUST","Community Inpatient Services",25,0.96,0,21,3,1,0,0,0]
["QHM","RTR","SOUTH TEES HOSPITALS NHS FOUNDATION TRUST","Community Nursing Services",168,0.97619047619047616,0,139,25,4,0,0,0]
["QHM","RTR","SOUTH TEES HOSPITALS NHS FOUNDATION TRUST","Rehabilitation & Therapy Services",73,1,0,65,8,0,0,0,0]
["QHM","RTR","SOUTH TEES HOSPITALS NHS FOUNDATION TRUST","Specialist Services",20,0.95,0,"*","*","*","*","*","*"]
["QHM","R0B","SOUTH TYNESIDE AND SUNDERLAND NHS FOUNDATION TRUST","Children & Family Services",4,"*","*","*","*","*","*","*","*"]
["QHM","R0B","SOUTH TYNESIDE AND SUNDERLAND NHS FOUNDATION TRUST","Community Healthcare Other",47,0.97872340425531912,0,40,6,0,0,0,1]
["QHM","R0B","SOUTH TYNESIDE AND SUNDERLAND NHS FOUNDATION TRUST","Community Inpatient Services",10,1,0,"*","*","*","*","*","*"]
["QHM","R0B","SOUTH TYNESIDE AND SUNDERLAND NHS FOUNDATION TRUST","Community Nursing Services",19,1,0,18,1,0,0,0,0]
["QHM","R0B","SOUTH TYNESIDE AND SUNDERLAND NHS FOUNDATION TRUST","Rehabilitation & Therapy Services",57,1,0,53,4,0,0,0,0]
["QHM","R0B","SOUTH TYNESIDE AND SUNDERLAND NHS FOUNDATION TRUST","Specialist Services",155,1,0,139,16,0,0,0,0]
["QHM","RTD","THE NEWCASTLE UPON TYNE HOSPITALS NHS FOUNDATION TRUST","Community Healthcare Other",42,0.95238095238095233,2.3809523809523808E-2,36,4,1,1,0,0]
["QJ2","RY8","DERBYSHIRE COMMUNITY HEALTH SERVICES NHS FOUNDATION TRUST","Children & Family Services",130,0.90769230769230769,6.1538461538461542E-2,102,16,4,4,4,0]
["QJ2","RY8","DERBYSHIRE COMMUNITY HEALTH SERVICES NHS FOUNDATION TRUST","Community Healthcare Other",1022,0.89726027397260277,5.8708414872798431E-2,791,126,43,34,26,2]
["QJ2","RY8","DERBYSHIRE COMMUNITY HEALTH SERVICES NHS FOUNDATION TRUST","Community Inpatient Services",169,0.94082840236686394,1.7751479289940829E-2,149,10,5,0,3,2]
["QJ2","RY8","DERBYSHIRE COMMUNITY HEALTH SERVICES NHS FOUNDATION TRUST","Community Nursing Services",466,0.95493562231759654,2.575107296137339E-2,411,34,7,6,6,2]
["QJ2","RY8","DERBYSHIRE COMMUNITY HEALTH SERVICES NHS FOUNDATION TRUST","Rehabilitation & Therapy Services",1466,0.95020463847203274,2.1828103683492497E-2,1243,150,36,14,18,5]
["QJ2","RY8","DERBYSHIRE COMMUNITY HEALTH SERVICES NHS FOUNDATION TRUST","Specialist Services",174,0.92528735632183912,2.2988505747126436E-2,142,19,9,3,1,0]
["QJ2","RXM","DERBYSHIRE HEALTHCARE NHS FOUNDATION TRUST","Children & Family Services",11,0.63636363636363635,0.18181818181818182,6,1,2,1,1,0]
["QJG","RDE","EAST SUFFOLK AND NORTH ESSEX NHS FOUNDATION TRUST","Community Healthcare Other",26,0.84615384615384615,0,"*","*","*","*","*","*"]
["QJG","RDE","EAST SUFFOLK AND NORTH ESSEX NHS FOUNDATION TRUST","Community Nursing Services",45,0.9555555555555556,2.2222222222222223E-2,40,3,1,0,1,0]
["QJG","RDE","EAST SUFFOLK AND NORTH ESSEX NHS FOUNDATION TRUST","Rehabilitation & Therapy Services",183,0.98360655737704916,5.4644808743169399E-3,155,25,2,0,1,0]
["QJG","RDE","EAST SUFFOLK AND NORTH ESSEX NHS FOUNDATION TRUST","Specialist Services",1,"*","*","*","*","*","*","*","*"]
["QJG","RGR","WEST SUFFOLK NHS FOUNDATION TRUST","Children & Family Services",5,1,0,5,0,0,0,0,0]
["QJG","RGR","WEST SUFFOLK NHS FOUNDATION TRUST","Community Healthcare Other",3,"*","*","*","*","*","*","*","*"]
["QJG","RGR","WEST SUFFOLK NHS FOUNDATION TRUST","Community Inpatient Services",42,0.90476190476190477,0,28,10,4,0,0,0]
["QJG","RGR","WEST SUFFOLK NHS FOUNDATION TRUST","Community Nursing Services",9,1,0,7,2,0,0,0,0]
["QJG","RGR","WEST SUFFOLK NHS FOUNDATION TRUST","Specialist Services",1,"*","*","*","*","*","*","*","*"]
["QJK","RH8","ROYAL DEVON UNIVERSITY HEALTHCARE NHS FOUNDATION TRUST","Community Healthcare Other",120,0.9916666666666667,0,111,8,1,0,0,0]
["QJK","RH8","ROYAL DEVON UNIVERSITY HEALTHCARE NHS FOUNDATION TRUST","Community Inpatient Services",57,0.94736842105263153,0,41,13,3,0,0,0]
["QJK","RH8","ROYAL DEVON UNIVERSITY HEALTHCARE NHS FOUNDATION TRUST","Community Nursing Services",55,1,0,45,10,0,0,0,0]
["QJK","RH8","ROYAL DEVON UNIVERSITY HEALTHCARE NHS FOUNDATION TRUST","Rehabilitation & Therapy Services",122,0.98360655737704916,0,104,16,2,0,0,0]
["QJK","RH8","ROYAL DEVON UNIVERSITY HEALTHCARE NHS FOUNDATION TRUST","Specialist Services",107,0.96261682242990654,3.7383177570093455E-2,100,3,0,3,1,0]
["QJK","RA9","TORBAY AND SOUTH DEVON NHS FOUNDATION TRUST","Children & Family Services",14,0.9285714285714286,0,"*","*","*","*","*","*"]
["QJK","RA9","TORBAY AND SOUTH DEVON NHS FOUNDATION TRUST","Community Healthcare Other",26,0.96153846153846156,3.8461538461538464E-2,15,10,0,0,1,0]
["QJK","RA9","TORBAY AND SOUTH DEVON NHS FOUNDATION TRUST","Community Inpatient Services",37,1,0,33,4,0,0,0,0]
["QJK","RA9","TORBAY AND SOUTH DEVON NHS FOUNDATION TRUST","Community Nursing Services",4,"*","*","*","*","*","*","*","*"]
["QJK","RA9","TORBAY AND SOUTH DEVON NHS FOUNDATION TRUST","Rehabilitation & Therapy Services",57,0.98245614035087714,0,52,4,1,0,0,0]
["QJK","RA9","TORBAY AND SOUTH DEVON NHS FOUNDATION TRUST","Specialist Services",56,1,0,43,13,0,0,0,0]
["QJM","RY5","LINCOLNSHIRE COMMUNITY HEALTH SERVICES NHS TRUST","Children & Family Services",115,0.89565217391304353,6.0869565217391307E-2,95,8,3,3,4,2]
["QJM","RY5","LINCOLNSHIRE COMMUNITY HEALTH SERVICES NHS TRUST","Community Healthcare Other",2408,0.83679401993355484,9.9252491694352157E-2,1671,344,129,108,131,25]
["QJM","RY5","LINCOLNSHIRE COMMUNITY HEALTH SERVICES NHS TRUST","Community Inpatient Services",535,0.98691588785046724,1.869158878504673E-3,510,18,3,1,0,3]
["QJM","RY5","LINCOLNSHIRE COMMUNITY HEALTH SERVICES NHS TRUST","Community Nursing Services",422,0.94786729857819907,2.3696682464454975E-2,350,50,6,5,5,6]
["QJM","RY5","LINCOLNSHIRE COMMUNITY HEALTH SERVICES NHS TRUST","Rehabilitation & Therapy Services",172,0.95348837209302328,1.7441860465116279E-2,143,21,3,1,2,2]
["QJM","RY5","LINCOLNSHIRE COMMUNITY HEALTH SERVICES NHS TRUST","Specialist Services",684,0.95175438596491224,2.9239766081871343E-2,582,69,8,9,11,5]
["QK1","RT5","LEICESTERSHIRE PARTNERSHIP NHS TRUST","Children & Family Services",304,0.92434210526315785,6.25E-2,264,17,3,6,13,1]
["QK1","RT5","LEICESTERSHIRE PARTNERSHIP NHS TRUST","Community Healthcare Other",19,1,0,15,4,0,0,0,0]
["QK1","RT5","LEICESTERSHIRE PARTNERSHIP NHS TRUST","Community Inpatient Services",182,0.89560439560439564,3.8461538461538464E-2,104,59,12,5,2,0]
["QK1","RT5","LEICESTERSHIRE PARTNERSHIP NHS TRUST","Community Nursing Services",380,0.91052631578947374,2.6315789473684209E-2,257,89,22,2,8,2]
["QK1","RT5","LEICESTERSHIRE PARTNERSHIP NHS TRUST","Rehabilitation & Therapy Services",221,0.94570135746606332,1.3574660633484163E-2,171,38,7,1,2,2]
["QK1","RT5","LEICESTERSHIRE PARTNERSHIP NHS TRUST","Specialist Services",186,0.94086021505376349,1.0752688172043012E-2,158,17,8,2,0,1]
["QKK","RJ1","GUY'S AND ST THOMAS' NHS FOUNDATION TRUST","Children & Family Services",27,0.96296296296296291,0,19,7,0,0,0,1]
["QKK","RJ1","GUY'S AND ST THOMAS' NHS FOUNDATION TRUST","Community Nursing Services",123,0.98373983739837401,0,89,32,2,0,0,0]
["QKK","RJ1","GUY'S AND ST THOMAS' NHS FOUNDATION TRUST","Rehabilitation & Therapy Services",106,0.94339622641509435,4.716981132075472E-2,86,14,1,1,4,0]
["QKK","RJ1","GUY'S AND ST THOMAS' NHS FOUNDATION TRUST","Specialist Services",23,1,0,19,4,0,0,0,0]
["QKK","RJ2","LEWISHAM AND GREENWICH NHS TRUST","Children & Family Services",38,0.92105263157894735,2.6315789473684209E-2,30,5,2,1,0,0]
["QKK","RJ2","LEWISHAM AND GREENWICH NHS TRUST","Community Healthcare Other",13,0.92307692307692313,0,11,1,1,0,0,0]
["QKK","RJ2","LEWISHAM AND GREENWICH NHS TRUST","Community Nursing Services",81,0.97530864197530864,0,62,17,2,0,0,0]
["QKK","RJ2","LEWISHAM AND GREENWICH NHS TRUST","Rehabilitation & Therapy Services",22,1,0,19,3,0,0,0,0]
["QKK","RJ2","LEWISHAM AND GREENWICH NHS TRUST","Specialist Services",165,0.95757575757575752,4.2424242424242427E-2,139,19,0,4,3,0]
["QKK","RPG","OXLEAS NHS FOUNDATION TRUST","Children & Family Services",157,0.91719745222929938,3.8216560509554139E-2,120,24,6,3,3,1]
["QKK","RPG","OXLEAS NHS FOUNDATION TRUST","Community Healthcare Other",326,0.83742331288343563,4.9079754601226995E-2,235,38,34,6,10,3]
["QKK","RPG","OXLEAS NHS FOUNDATION TRUST","Community Inpatient Services",29,0.96551724137931039,0,23,5,1,0,0,0]
["QKK","RPG","OXLEAS NHS FOUNDATION TRUST","Community Nursing Services",325,0.93230769230769228,2.1538461538461538E-2,236,67,12,5,2,3]
["QKK","RPG","OXLEAS NHS FOUNDATION TRUST","Rehabilitation & Therapy Services",84,0.9642857142857143,0,68,13,2,0,0,1]
["QKK","RPG","OXLEAS NHS FOUNDATION TRUST","Specialist Services",845,0.90177514792899405,3.1952662721893489E-2,643,119,47,12,15,9]
["QKS","RYY","KENT COMMUNITY HEALTH NHS FOUNDATION TRUST","Children & Family Services",138,0.97101449275362317,0,117,17,3,0,0,1]
["QKS","RYY","KENT COMMUNITY HEALTH NHS FOUNDATION TRUST","Community Healthcare Other",686,0.96938775510204078,1.020408163265306E-2,542,123,12,2,5,2]
["QKS","RYY","KENT COMMUNITY HEALTH NHS FOUNDATION TRUST","Community Inpatient Services",87,0.97701149425287359,0,67,18,2,0,0,0]
["QKS","RYY","KENT COMMUNITY HEALTH NHS FOUNDATION TRUST","Community Nursing Services",452,0.98672566371681414,0,399,47,4,0,0,2]
["QKS","RYY","KENT COMMUNITY HEALTH NHS FOUNDATION TRUST","Rehabilitation & Therapy Services",1158,0.95768566493955098,2.158894645941278E-2,976,133,24,10,15,0]
["QKS","RYY","KENT COMMUNITY HEALTH NHS FOUNDATION TRUST","Specialist Services",2357,0.9855748833262622,3.3941450997030122E-3,2139,184,24,3,5,2]
["QM7","RY4","HERTFORDSHIRE COMMUNITY NHS TRUST","Children & Family Services",261,0.92337164750957856,2.681992337164751E-2,202,39,12,4,3,1]
["QM7","RY4","HERTFORDSHIRE COMMUNITY NHS TRUST","Community Inpatient Services",21,0.95238095238095233,0,16,4,1,0,0,0]
["QM7","RY4","HERTFORDSHIRE COMMUNITY NHS TRUST","Community Nursing Services",57,0.94736842105263153,3.5087719298245612E-2,48,6,0,0,2,1]
["QM7","RY4","HERTFORDSHIRE COMMUNITY NHS TRUST","Rehabilitation & Therapy Services",110,0.92727272727272725,3.6363636363636362E-2,89,13,4,3,1,0]
["QM7","RY4","HERTFORDSHIRE COMMUNITY NHS TRUST","Specialist Services",67,0.9850746268656716,1.4925373134328358E-2,64,2,0,0,1,0]
["QMF","RWK","EAST LONDON NHS FOUNDATION TRUST","Children & Family Services",18,1,0,"*","*","*","*","*","*"]
["QMF","RWK","EAST LONDON NHS FOUNDATION TRUST","Community Healthcare Other",95,0.98947368421052628,1.0526315789473684E-2,78,16,0,1,0,0]
["QMF","RWK","EAST LONDON NHS FOUNDATION TRUST","Community Inpatient Services",2,"*","*","*","*","*","*","*","*"]
["QMF","RWK","EAST LONDON NHS FOUNDATION TRUST","Community Nursing Services",129,0.96124031007751942,2.3255813953488372E-2,86,38,2,2,1,0]
["QMF","RWK","EAST LONDON NHS FOUNDATION TRUST","Rehabilitation & Therapy Services",80,0.875,6.25E-2,58,12,4,3,2,1]
["QMF","RWK","EAST LONDON NHS FOUNDATION TRUST","Specialist Services",1964,1,0,29,1935,0,0,0,0]
["QMF","RQX","HOMERTON HEALTHCARE NHS FOUNDATION TRUST","Children & Family Services",15,0.8666666666666667,6.6666666666666666E-2,5,8,1,1,0,0]
["QMF","RQX","HOMERTON HEALTHCARE NHS FOUNDATION TRUST","Community Nursing Services",38,0.94736842105263153,0,28,8,2,0,0,0]
["QMF","RQX","HOMERTON HEALTHCARE NHS FOUNDATION TRUST","Rehabilitation & Therapy Services",58,0.98275862068965514,1.7241379310344827E-2,41,16,0,0,1,0]
["QMF","RQX","HOMERTON HEALTHCARE NHS FOUNDATION TRUST","Specialist Services",1086,0.97790055248618779,8.2872928176795577E-3,883,179,11,3,6,4]
["QMF","RAT","NORTH EAST LONDON NHS FOUNDATION TRUST","Children & Family Services",511,0.87866927592954991,7.4363992172211346E-2,321,128,20,17,21,4]
["QMF","RAT","NORTH EAST LONDON NHS FOUNDATION TRUST","Community Healthcare Other",151,0.88741721854304634,5.2980132450331126E-2,103,31,7,5,3,2]
["QMF","RAT","NORTH EAST LONDON NHS FOUNDATION TRUST","Community Inpatient Services",74,0.89189189189189189,6.7567567567567571E-2,46,20,2,2,3,1]
["QMF","RAT","NORTH EAST LONDON NHS FOUNDATION TRUST","Community Nursing Services",386,0.89119170984455953,5.9585492227979271E-2,276,68,15,11,12,4]
["QMF","RAT","NORTH EAST LONDON NHS FOUNDATION TRUST","Rehabilitation & Therapy Services",372,0.90053763440860213,4.0322580645161289E-2,250,85,18,6,9,4]
["QMF","RAT","NORTH EAST LONDON NHS FOUNDATION TRUST","Specialist Services",491,0.89816700610997968,4.2769857433808553E-2,360,81,16,7,14,13]
["QMJ","RV3","CENTRAL AND NORTH WEST LONDON NHS FOUNDATION TRUST","Children & Family Services",80,0.98750000000000004,0,71,8,1,0,0,0]
["QMJ","RV3","CENTRAL AND NORTH WEST LONDON NHS FOUNDATION TRUST","Community Healthcare Other",33,0.96969696969696972,0,27,5,1,0,0,0]
["QMJ","RV3","CENTRAL AND NORTH WEST LONDON NHS FOUNDATION TRUST","Community Inpatient Services",76,0.92105263157894735,2.6315789473684209E-2,43,27,4,2,0,0]
["QMJ","RV3","CENTRAL AND NORTH WEST LONDON NHS FOUNDATION TRUST","Community Nursing Services",64,1,0,48,16,0,0,0,0]
["QMJ","RV3","CENTRAL AND NORTH WEST LONDON NHS FOUNDATION TRUST","Rehabilitation & Therapy Services",153,0.98039215686274506,1.3071895424836602E-2,131,19,0,0,2,1]
["QMJ","RV3","CENTRAL AND NORTH WEST LONDON NHS FOUNDATION TRUST","Specialist Services",89,0.9887640449438202,0,79,9,1,0,0,0]
["QMJ","RAP","NORTH MIDDLESEX UNIVERSITY HOSPITAL NHS TRUST","Community Healthcare Other",64,0.984375,0,56,7,1,0,0,0]
["QMJ","RAP","NORTH MIDDLESEX UNIVERSITY HOSPITAL NHS TRUST","Community Inpatient Services",54,0.96296296296296291,0,"*","*","*","*","*","*"]
["QMJ","RAP","NORTH MIDDLESEX UNIVERSITY HOSPITAL NHS TRUST","Rehabilitation & Therapy Services",2,"*","*","*","*","*","*","*","*"]
["QMJ","RKE","WHITTINGTON HEALTH NHS TRUST","Children & Family Services",50,0.96,0,45,3,1,0,0,1]
["QMJ","RKE","WHITTINGTON HEALTH NHS TRUST","Community Healthcare Other",4,"*","*","*","*","*","*","*","*"]
["QMJ","RKE","WHITTINGTON HEALTH NHS TRUST","Community Nursing Services",10,0.9,0,"*","*","*","*","*","*"]
["QMJ","RKE","WHITTINGTON HEALTH NHS TRUST","Rehabilitation & Therapy Services",229,0.90829694323144106,6.5502183406113537E-2,164,44,4,6,9,2]
["QMJ","RKE","WHITTINGTON HEALTH NHS TRUST","Specialist Services",239,0.98326359832635979,8.368200836820083E-3,219,16,2,1,1,0]
["QMM","RY3","NORFOLK COMMUNITY HEALTH AND CARE NHS TRUST","Children & Family Services",7,0.8571428571428571,0,"*","*","*","*","*","*"]
["QMM","RY3","NORFOLK COMMUNITY HEALTH AND CARE NHS TRUST","Community Inpatient Services",28,0.9285714285714286,0,22,4,2,0,0,0]
["QMM","RY3","NORFOLK COMMUNITY HEALTH AND CARE NHS TRUST","Community Nursing Services",144,1,0,133,11,0,0,0,0]
["QMM","RY3","NORFOLK COMMUNITY HEALTH AND CARE NHS TRUST","Rehabilitation & Therapy Services",1,"*","*","*","*","*","*","*","*"]
["QMM","RY3","NORFOLK COMMUNITY HEALTH AND CARE NHS TRUST","Specialist Services",172,1,0,152,20,0,0,0,0]
["QNC","RRE","MIDLANDS PARTNERSHIP NHS FOUNDATION TRUST","Children & Family Services",73,0.9726027397260274,1.3698630136986301E-2,68,3,1,0,1,0]
["QNC","RRE","MIDLANDS PARTNERSHIP NHS FOUNDATION TRUST","Community Healthcare Other",214,0.95794392523364491,9.3457943925233638E-3,184,21,7,1,1,0]
["QNC","RRE","MIDLANDS PARTNERSHIP NHS FOUNDATION TRUST","Community Inpatient Services",24,0.91666666666666663,0,18,4,2,0,0,0]
["QNC","RRE","MIDLANDS PARTNERSHIP NHS FOUNDATION TRUST","Community Nursing Services",32,1,0,30,2,0,0,0,0]
["QNC","RRE","MIDLANDS PARTNERSHIP NHS FOUNDATION TRUST","Rehabilitation & Therapy Services",57,1,0,55,2,0,0,0,0]
["QNC","RRE","MIDLANDS PARTNERSHIP NHS FOUNDATION TRUST","Specialist Services",443,0.9255079006772009,6.320541760722348E-2,352,58,5,7,21,0]
["QNQ","RWX","BERKSHIRE HEALTHCARE NHS FOUNDATION TRUST","Children & Family Services",172,0.80813953488372092,0.12209302325581395,118,21,8,9,12,4]
["QNQ","RWX","BERKSHIRE HEALTHCARE NHS FOUNDATION TRUST","Community Healthcare Other",264,0.95833333333333337,2.6515151515151516E-2,244,9,3,0,7,1]
["QNQ","RWX","BERKSHIRE HEALTHCARE NHS FOUNDATION TRUST","Community Inpatient Services",94,0.97872340425531912,0,66,26,2,0,0,0]
["QNQ","RWX","BERKSHIRE HEALTHCARE NHS FOUNDATION TRUST","Community Nursing Services",447,0.99105145413870244,2.2371364653243847E-3,406,37,3,0,1,0]
["QNQ","RWX","BERKSHIRE HEALTHCARE NHS FOUNDATION TRUST","Rehabilitation & Therapy Services",925,0.95783783783783782,1.4054054054054054E-2,818,68,20,7,6,6]
["QNQ","RWX","BERKSHIRE HEALTHCARE NHS FOUNDATION TRUST","Specialist Services",337,0.96439169139465875,1.7804154302670624E-2,305,20,5,4,2,1]
["QNQ","RDU","FRIMLEY HEALTH NHS FOUNDATION TRUST","Community Healthcare Other",23,1,0,19,4,0,0,0,0]
["QNX","RXC","EAST SUSSEX HEALTHCARE NHS TRUST","Community Inpatient Services",21,0.95238095238095233,0,16,4,1,0,0,0]
["QNX","RXC","EAST SUSSEX HEALTHCARE NHS TRUST","Community Nursing Services",18,0.88888888888888884,5.5555555555555552E-2,15,1,1,0,1,0]
["QNX","RXC","EAST SUSSEX HEALTHCARE NHS TRUST","Rehabilitation & Therapy Services",147,0.98639455782312924,6.8027210884353739E-3,137,8,1,0,1,0]
["QNX","RXC","EAST SUSSEX HEALTHCARE NHS TRUST","Specialist Services",217,0.99539170506912444,4.608294930875576E-3,191,25,0,1,0,0]
["QNX","RDR","SUSSEX COMMUNITY NHS FOUNDATION TRUST","Children & Family Services",354,0.98305084745762716,0,317,31,5,0,0,1]
["QNX","RDR","SUSSEX COMMUNITY NHS FOUNDATION TRUST","Community Healthcare Other",1043,0.95110258868648134,2.3969319271332695E-2,846,146,24,15,10,2]
["QNX","RDR","SUSSEX COMMUNITY NHS FOUNDATION TRUST","Community Inpatient Services",128,0.9453125,2.34375E-2,96,25,4,3,0,0]
["QNX","RDR","SUSSEX COMMUNITY NHS FOUNDATION TRUST","Community Nursing Services",284,0.96830985915492962,3.5211267605633804E-3,221,54,8,1,0,0]
["QNX","RDR","SUSSEX COMMUNITY NHS FOUNDATION TRUST","Rehabilitation & Therapy Services",243,0.99176954732510292,4.11522633744856E-3,216,25,1,1,0,0]
["QNX","RDR","SUSSEX COMMUNITY NHS FOUNDATION TRUST","Specialist Services",639,0.97965571205007829,6.2597809076682318E-3,589,37,6,1,3,3]
["QOC","R1D","SHROPSHIRE COMMUNITY HEALTH NHS TRUST","Children & Family Services",97,0.98969072164948457,0,92,4,1,0,0,0]
["QOC","R1D","SHROPSHIRE COMMUNITY HEALTH NHS TRUST","Community Healthcare Other",14,0.8571428571428571,7.1428571428571425E-2,10,2,1,1,0,0]
["QOC","R1D","SHROPSHIRE COMMUNITY HEALTH NHS TRUST","Community Inpatient Services",7,1,0,4,3,0,0,0,0]
["QOC","R1D","SHROPSHIRE COMMUNITY HEALTH NHS TRUST","Community Nursing Services",8,1,0,8,0,0,0,0,0]
["QOC","R1D","SHROPSHIRE COMMUNITY HEALTH NHS TRUST","Rehabilitation & Therapy Services",12,0.83333333333333337,0.16666666666666666,9,1,0,0,2,0]
["QOC","R1D","SHROPSHIRE COMMUNITY HEALTH NHS TRUST","Specialist Services",110,1,0,98,12,0,0,0,0]
["QOP","RMC","BOLTON NHS FOUNDATION TRUST","Children & Family Services",634,0.99211356466876977,3.1545741324921135E-3,486,143,0,2,0,3]
["QOP","RMC","BOLTON NHS FOUNDATION TRUST","Community Healthcare Other",14,1,0,12,2,0,0,0,0]
["QOP","RMC","BOLTON NHS FOUNDATION TRUST","Community Inpatient Services",35,1,0,27,8,0,0,0,0]
["QOP","RMC","BOLTON NHS FOUNDATION TRUST","Community Nursing Services",136,0.99264705882352944,0,128,7,0,0,0,1]
["QOP","RMC","BOLTON NHS FOUNDATION TRUST","Rehabilitation & Therapy Services",25,1,0,23,2,0,0,0,0]
["QOP","RMC","BOLTON NHS FOUNDATION TRUST","Specialist Services",237,1,0,232,5,0,0,0,0]
["QOP","R0A","MANCHESTER UNIVERSITY NHS FOUNDATION TRUST","Children & Family Services",2,"*","*","*","*","*","*","*","*"]
["QOP","R0A","MANCHESTER UNIVERSITY NHS FOUNDATION TRUST","Community Healthcare Other",376,0.99202127659574468,0,353,20,3,0,0,0]
["QOP","R0A","MANCHESTER UNIVERSITY NHS FOUNDATION TRUST","Community Inpatient Services",26,1,0,"*","*","*","*","*","*"]
["QOP","R0A","MANCHESTER UNIVERSITY NHS FOUNDATION TRUST","Community Nursing Services",247,1,0,223,24,0,0,0,0]
["QOP","R0A","MANCHESTER UNIVERSITY NHS FOUNDATION TRUST","Rehabilitation & Therapy Services",237,0.97468354430379744,1.2658227848101266E-2,205,26,3,3,0,0]
["QOP","R0A","MANCHESTER UNIVERSITY NHS FOUNDATION TRUST","Specialist Services",32,1,0,29,3,0,0,0,0]
["QOP","RWJ","STOCKPORT NHS FOUNDATION TRUST","Children & Family Services",12,1,0,12,0,0,0,0,0]
["QOP","RWJ","STOCKPORT NHS FOUNDATION TRUST","Community Nursing Services",216,0.92592592592592593,2.7777777777777776E-2,179,21,9,5,1,1]
["QOP","RWJ","STOCKPORT NHS FOUNDATION TRUST","Rehabilitation & Therapy Services",107,0.87850467289719625,6.5420560747663545E-2,76,18,5,3,4,1]
["QOP","RWJ","STOCKPORT NHS FOUNDATION TRUST","Specialist Services",45,0.93333333333333335,2.2222222222222223E-2,36,6,2,1,0,0]
["QOP","RMP","TAMESIDE AND GLOSSOP INTEGRATED CARE NHS FOUNDATION TRUST","Children & Family Services",112,1,0,98,14,0,0,0,0]
["QOP","RMP","TAMESIDE AND GLOSSOP INTEGRATED CARE NHS FOUNDATION TRUST","Community Healthcare Other",26,0.96153846153846156,3.8461538461538464E-2,"*","*","*","*","*","*"]
["QOP","RMP","TAMESIDE AND GLOSSOP INTEGRATED CARE NHS FOUNDATION TRUST","Community Inpatient Services",108,0.9907407407407407,9.2592592592592587E-3,69,38,0,0,1,0]
["QOP","RMP","TAMESIDE AND GLOSSOP INTEGRATED CARE NHS FOUNDATION TRUST","Community Nursing Services",78,1,0,57,21,0,0,0,0]
["QOP","RMP","TAMESIDE AND GLOSSOP INTEGRATED CARE NHS FOUNDATION TRUST","Rehabilitation & Therapy Services",140,0.98571428571428577,7.1428571428571426E-3,129,9,1,1,0,0]
["QOP","RMP","TAMESIDE AND GLOSSOP INTEGRATED CARE NHS FOUNDATION TRUST","Specialist Services",1,"*","*","*","*","*","*","*","*"]
["QOP","RRF","WRIGHTINGTON, WIGAN AND LEIGH NHS FOUNDATION TRUST","Children & Family Services",26,0.88461538461538458,7.6923076923076927E-2,23,0,1,0,2,0]
["QOP","RRF","WRIGHTINGTON, WIGAN AND LEIGH NHS FOUNDATION TRUST","Community Inpatient Services",1,"*","*","*","*","*","*","*","*"]
["QOP","RRF","WRIGHTINGTON, WIGAN AND LEIGH NHS FOUNDATION TRUST","Community Nursing Services",4,"*","*","*","*","*","*","*","*"]
["QOP","RRF","WRIGHTINGTON, WIGAN AND LEIGH NHS FOUNDATION TRUST","Rehabilitation & Therapy Services",6,1,0,3,3,0,0,0,0]
["QOP","RRF","WRIGHTINGTON, WIGAN AND LEIGH NHS FOUNDATION TRUST","Specialist Services",24,0.95833333333333337,0,22,1,1,0,0,0]
["QOQ","RCD","HARROGATE AND DISTRICT NHS FOUNDATION TRUST","Children & Family Services",3,"*","*","*","*","*","*","*","*"]
["QOQ","RCD","HARROGATE AND DISTRICT NHS FOUNDATION TRUST","Community Inpatient Services",20,1,0,"*","*","*","*","*","*"]
["QOQ","RCD","HARROGATE AND DISTRICT NHS FOUNDATION TRUST","Rehabilitation & Therapy Services",68,0.91176470588235292,2.9411764705882353E-2,53,9,4,2,0,0]
["QOQ","RV9","HUMBER TEACHING NHS FOUNDATION TRUST","Children & Family Services",38,0.97368421052631582,2.6315789473684209E-2,34,3,0,0,1,0]
["QOQ","RV9","HUMBER TEACHING NHS FOUNDATION TRUST","Community Healthcare Other",44,1,0,41,3,0,0,0,0]
["QOQ","RV9","HUMBER TEACHING NHS FOUNDATION TRUST","Community Inpatient Services",19,0.94736842105263153,0,17,1,1,0,0,0]
["QOQ","RV9","HUMBER TEACHING NHS FOUNDATION TRUST","Community Nursing Services",13,1,0,13,0,0,0,0,0]
["QOQ","RJL","NORTHERN LINCOLNSHIRE AND GOOLE NHS FOUNDATION TRUST","Children & Family Services",6,1,0,6,0,0,0,0,0]
["QOQ","RJL","NORTHERN LINCOLNSHIRE AND GOOLE NHS FOUNDATION TRUST","Community Healthcare Other",25,0.96,0.04,19,5,0,0,1,0]
["QOQ","RJL","NORTHERN LINCOLNSHIRE AND GOOLE NHS FOUNDATION TRUST","Community Nursing Services",27,1,0,23,4,0,0,0,0]
["QOQ","RJL","NORTHERN LINCOLNSHIRE AND GOOLE NHS FOUNDATION TRUST","Rehabilitation & Therapy Services",79,0.96202531645569622,3.7974683544303799E-2,72,4,0,1,2,0]
["QOQ","RCB","YORK AND SCARBOROUGH TEACHING HOSPITALS NHS FOUNDATION TRUST","Community Inpatient Services",28,0.9642857142857143,0,21,6,1,0,0,0]
["QPM","RP1","NORTHAMPTONSHIRE HEALTHCARE NHS FOUNDATION TRUST","Children & Family Services",44,0.95454545454545459,0,36,6,2,0,0,0]
["QPM","RP1","NORTHAMPTONSHIRE HEALTHCARE NHS FOUNDATION TRUST","Community Healthcare Other",13,1,0,11,2,0,0,0,0]
["QPM","RP1","NORTHAMPTONSHIRE HEALTHCARE NHS FOUNDATION TRUST","Community Inpatient Services",53,0.8867924528301887,1.8867924528301886E-2,34,13,3,1,0,2]
["QPM","RP1","NORTHAMPTONSHIRE HEALTHCARE NHS FOUNDATION TRUST","Community Nursing Services",5,1,0,4,1,0,0,0,0]
["QPM","RP1","NORTHAMPTONSHIRE HEALTHCARE NHS FOUNDATION TRUST","Rehabilitation & Therapy Services",79,0.96202531645569622,0,73,3,1,0,0,2]
["QPM","RP1","NORTHAMPTONSHIRE HEALTHCARE NHS FOUNDATION TRUST","Specialist Services",85,0.97647058823529409,0,75,8,1,0,0,1]
["QR1","RTQ","GLOUCESTERSHIRE HEALTH AND CARE NHS FOUNDATION TRUST","Children & Family Services",331,0.9154078549848943,3.0211480362537766E-2,191,112,13,8,2,5]
["QR1","RTQ","GLOUCESTERSHIRE HEALTH AND CARE NHS FOUNDATION TRUST","Community Healthcare Other",970,0.94536082474226801,2.7835051546391754E-2,827,90,24,15,12,2]
["QR1","RTQ","GLOUCESTERSHIRE HEALTH AND CARE NHS FOUNDATION TRUST","Community Inpatient Services",85,0.95294117647058818,1.1764705882352941E-2,70,11,3,1,0,0]
["QR1","RTQ","GLOUCESTERSHIRE HEALTH AND CARE NHS FOUNDATION TRUST","Community Nursing Services",98,0.93877551020408168,3.0612244897959183E-2,85,7,2,3,0,1]
["QR1","RTQ","GLOUCESTERSHIRE HEALTH AND CARE NHS FOUNDATION TRUST","Rehabilitation & Therapy Services",305,0.88524590163934425,4.5901639344262293E-2,235,35,14,9,5,7]
["QR1","RTQ","GLOUCESTERSHIRE HEALTH AND CARE NHS FOUNDATION TRUST","Specialist Services",426,0.97887323943661975,4.6948356807511738E-3,393,24,6,2,0,1]
["QRL","R1F","ISLE OF WIGHT NHS TRUST","Children & Family Services",6,1,0,4,2,0,0,0,0]
["QRL","R1F","ISLE OF WIGHT NHS TRUST","Community Healthcare Other",80,0.92500000000000004,3.7499999999999999E-2,59,15,3,1,2,0]
["QRL","R1F","ISLE OF WIGHT NHS TRUST","Community Inpatient Services",5,1,0,5,0,0,0,0,0]
["QRL","R1F","ISLE OF WIGHT NHS TRUST","Community Nursing Services",10,0.9,0,9,0,0,0,0,1]
["QRL","R1F","ISLE OF WIGHT NHS TRUST","Rehabilitation & Therapy Services",152,0.98684210526315785,6.5789473684210523E-3,141,9,0,0,1,1]
["QRL","R1F","ISLE OF WIGHT NHS TRUST","Specialist Services",70,1,0,69,1,0,0,0,0]
["QRL","R1C","SOLENT NHS TRUST","Children & Family Services",312,0.9358974358974359,2.2435897435897436E-2,196,96,11,5,2,2]
["QRL","R1C","SOLENT NHS TRUST","Community Healthcare Other",12,0.91666666666666663,8.3333333333333329E-2,8,3,0,1,0,0]
["QRL","R1C","SOLENT NHS TRUST","Community Inpatient Services",62,0.9838709677419355,0,50,11,0,0,0,1]
["QRL","R1C","SOLENT NHS TRUST","Community Nursing Services",57,0.98245614035087714,0,48,8,1,0,0,0]
["QRL","R1C","SOLENT NHS TRUST","Rehabilitation & Therapy Services",184,0.92934782608695654,3.8043478260869568E-2,150,21,4,4,3,2]
["QRL","R1C","SOLENT NHS TRUST","Specialist Services",367,0.99182561307901906,2.7247956403269754E-3,277,87,2,0,1,0]
["QRL","RW1","SOUTHERN HEALTH NHS FOUNDATION TRUST","Children & Family Services",376,0.9707446808510638,5.3191489361702126E-3,324,41,9,2,0,0]
["QRL","RW1","SOUTHERN HEALTH NHS FOUNDATION TRUST","Community Healthcare Other",547,0.89762340036563071,1.2797074954296161E-2,449,42,37,6,1,12]
["QRL","RW1","SOUTHERN HEALTH NHS FOUNDATION TRUST","Community Inpatient Services",11,1,0,9,2,0,0,0,0]
["QRL","RW1","SOUTHERN HEALTH NHS FOUNDATION TRUST","Community Nursing Services",187,0.95187165775401072,4.2780748663101602E-2,154,24,1,8,0,0]
["QRL","RW1","SOUTHERN HEALTH NHS FOUNDATION TRUST","Rehabilitation & Therapy Services",26,0.96153846153846156,3.8461538461538464E-2,19,6,0,0,1,0]
["QRV","RYX","CENTRAL LONDON COMMUNITY HEALTHCARE NHS TRUST","Children & Family Services",45,0.97777777777777775,0,42,2,0,0,0,1]
["QRV","RYX","CENTRAL LONDON COMMUNITY HEALTHCARE NHS TRUST","Community Healthcare Other",257,0.97276264591439687,1.556420233463035E-2,235,15,2,0,4,1]
["QRV","RYX","CENTRAL LONDON COMMUNITY HEALTHCARE NHS TRUST","Community Inpatient Services",116,0.9568965517241379,8.6206896551724137E-3,91,20,2,1,0,2]
["QRV","RYX","CENTRAL LONDON COMMUNITY HEALTHCARE NHS TRUST","Community Nursing Services",599,0.98163606010016691,8.3472454090150246E-3,520,68,6,3,2,0]
["QRV","RYX","CENTRAL LONDON COMMUNITY HEALTHCARE NHS TRUST","Rehabilitation & Therapy Services",258,0.96124031007751942,1.1627906976744186E-2,211,37,6,2,1,1]
["QRV","RYX","CENTRAL LONDON COMMUNITY HEALTHCARE NHS TRUST","Specialist Services",424,0.95518867924528306,1.179245283018868E-2,359,46,5,3,2,9]
["QRV","RQM","CHELSEA AND WESTMINSTER HOSPITAL NHS FOUNDATION TRUST","Specialist Services",186,0.9623655913978495,2.6881720430107527E-2,171,8,1,1,4,1]
["QRV","R1K","LONDON NORTH WEST UNIVERSITY HEALTHCARE NHS TRUST","Specialist Services",463,0.99136069114470837,4.3196544276457886E-3,426,33,2,1,1,0]
["QRV","RKL","WEST LONDON NHS TRUST","Children & Family Services",233,0.99141630901287559,8.5836909871244635E-3,171,60,0,0,2,0]
["QRV","RKL","WEST LONDON NHS TRUST","Community Inpatient Services",48,1,0,31,17,0,0,0,0]
["QRV","RKL","WEST LONDON NHS TRUST","Community Nursing Services",28,0.9285714285714286,7.1428571428571425E-2,23,3,0,0,2,0]
["QRV","RKL","WEST LONDON NHS TRUST","Rehabilitation & Therapy Services",39,0.97435897435897434,0,35,3,1,0,0,0]
["QRV","RKL","WEST LONDON NHS TRUST","Specialist Services",19,1,0,14,5,0,0,0,0]
["QT1","RX1","NOTTINGHAM UNIVERSITY HOSPITALS NHS TRUST","Community Healthcare Other",16,1,0,16,0,0,0,0,0]
["QT1","RHA","NOTTINGHAMSHIRE HEALTHCARE NHS FOUNDATION TRUST","Children & Family Services",74,0.95945945945945943,2.7027027027027029E-2,63,8,1,0,2,0]
["QT1","RHA","NOTTINGHAMSHIRE HEALTHCARE NHS FOUNDATION TRUST","Community Healthcare Other",18,1,0,"*","*","*","*","*","*"]
["QT1","RHA","NOTTINGHAMSHIRE HEALTHCARE NHS FOUNDATION TRUST","Community Nursing Services",21,0.95238095238095233,4.7619047619047616E-2,16,4,0,0,1,0]
["QT1","RHA","NOTTINGHAMSHIRE HEALTHCARE NHS FOUNDATION TRUST","Rehabilitation & Therapy Services",1,"*","*","*","*","*","*","*","*"]
["QT1","RHA","NOTTINGHAMSHIRE HEALTHCARE NHS FOUNDATION TRUST","Specialist Services",60,0.96666666666666667,0,52,6,2,0,0,0]
["QT6","RJ8","CORNWALL PARTNERSHIP NHS FOUNDATION TRUST","Community Inpatient Services",1733,0.91344489324870171,4.6739757645701097E-2,1304,279,53,36,45,16]
["QT6","RJ8","CORNWALL PARTNERSHIP NHS FOUNDATION TRUST","Community Nursing Services",247,0.98785425101214575,1.2145748987854251E-2,220,24,0,0,3,0]
["QU9","RXQ","BUCKINGHAMSHIRE HEALTHCARE NHS TRUST","Children & Family Services",65,0.89230769230769236,4.6153846153846156E-2,52,6,2,0,3,2]
["QU9","RXQ","BUCKINGHAMSHIRE HEALTHCARE NHS TRUST","Community Healthcare Other",2,"*","*","*","*","*","*","*","*"]
["QU9","RXQ","BUCKINGHAMSHIRE HEALTHCARE NHS TRUST","Community Nursing Services",310,0.92258064516129035,2.5806451612903226E-2,232,54,9,5,3,7]
["QU9","RXQ","BUCKINGHAMSHIRE HEALTHCARE NHS TRUST","Rehabilitation & Therapy Services",80,0.92500000000000004,3.7499999999999999E-2,63,11,3,1,2,0]
["QU9","RXQ","BUCKINGHAMSHIRE HEALTHCARE NHS TRUST","Specialist Services",59,0.86440677966101698,3.3898305084745763E-2,"*","*","*","*","*","*"]
["QUA","TAJ","BLACK COUNTRY HEALTHCARE NHS FOUNDATION TRUST","Community Healthcare Other",31,1,0,29,2,0,0,0,0]
["QUA","RNA","THE DUDLEY GROUP NHS FOUNDATION TRUST","Community Nursing Services",499,0.89579158316633267,1.4028056112224449E-2,380,67,4,3,4,41]
["QUA","RNA","THE DUDLEY GROUP NHS FOUNDATION TRUST","Rehabilitation & Therapy Services",168,0.90476190476190477,1.1904761904761904E-2,141,11,5,1,1,9]
["QUA","RNA","THE DUDLEY GROUP NHS FOUNDATION TRUST","Specialist Services",25,0.96,0,23,1,0,0,0,1]
["QUA","RL4","THE ROYAL WOLVERHAMPTON NHS TRUST","Community Healthcare Other",405,0.90617283950617289,2.7160493827160494E-2,304,63,21,8,3,6]
["QUA","RBK","WALSALL HEALTHCARE NHS TRUST","Community Healthcare Other",393,0.99745547073791352,0,363,29,0,0,0,1]
["QUE","RT1","CAMBRIDGESHIRE AND PETERBOROUGH NHS FOUNDATION TRUST","Children & Family Services",40,1,0,"*","*","*","*","*","*"]
["QUE","RT1","CAMBRIDGESHIRE AND PETERBOROUGH NHS FOUNDATION TRUST","Community Healthcare Other",316,0.88924050632911389,6.9620253164556958E-2,245,36,12,14,8,1]
["QUE","RT1","CAMBRIDGESHIRE AND PETERBOROUGH NHS FOUNDATION TRUST","Community Inpatient Services",49,0.95918367346938771,0,36,11,2,0,0,0]
["QUE","RT1","CAMBRIDGESHIRE AND PETERBOROUGH NHS FOUNDATION TRUST","Community Nursing Services",135,0.98518518518518516,7.4074074074074077E-3,119,14,1,1,0,0]
["QUE","RT1","CAMBRIDGESHIRE AND PETERBOROUGH NHS FOUNDATION TRUST","Rehabilitation & Therapy Services",91,0.97802197802197799,0,67,22,1,0,0,1]
["QUE","RT1","CAMBRIDGESHIRE AND PETERBOROUGH NHS FOUNDATION TRUST","Specialist Services",3,"*","*","*","*","*","*","*","*"]
["QUE","RYV","CAMBRIDGESHIRE COMMUNITY SERVICES NHS TRUST","Children & Family Services",597,0.97487437185929648,1.1725293132328308E-2,504,78,7,5,2,1]
["QUE","RYV","CAMBRIDGESHIRE COMMUNITY SERVICES NHS TRUST","Community Nursing Services",59,0.96610169491525422,3.3898305084745763E-2,44,13,0,2,0,0]
["QUE","RYV","CAMBRIDGESHIRE COMMUNITY SERVICES NHS TRUST","Rehabilitation & Therapy Services",451,0.95121951219512191,2.4390243902439025E-2,388,41,10,9,2,1]
["QUE","RYV","CAMBRIDGESHIRE COMMUNITY SERVICES NHS TRUST","Specialist Services",1452,0.96763085399449034,1.5840220385674932E-2,1183,222,19,6,17,5]
["QVV","RDY","DORSET HEALTHCARE UNIVERSITY NHS FOUNDATION TRUST","Children & Family Services",159,0.9308176100628931,0,95,53,9,0,0,2]
["QVV","RDY","DORSET HEALTHCARE UNIVERSITY NHS FOUNDATION TRUST","Community Healthcare Other",353,0.8923512747875354,8.2152974504249299E-2,279,36,9,12,17,0]
["QVV","RDY","DORSET HEALTHCARE UNIVERSITY NHS FOUNDATION TRUST","Community Inpatient Services",62,0.9838709677419355,0,53,8,1,0,0,0]
["QVV","RDY","DORSET HEALTHCARE UNIVERSITY NHS FOUNDATION TRUST","Community Nursing Services",64,0.984375,1.5625E-2,54,9,0,0,1,0]
["QVV","RDY","DORSET HEALTHCARE UNIVERSITY NHS FOUNDATION TRUST","Rehabilitation & Therapy Services",42,0.90476190476190477,2.3809523809523808E-2,30,8,3,0,1,0]
["QVV","RDY","DORSET HEALTHCARE UNIVERSITY NHS FOUNDATION TRUST","Specialist Services",475,0.9726315789473684,1.4736842105263158E-2,432,30,6,3,4,0]
["QWE","RJ6","CROYDON HEALTH SERVICES NHS TRUST","Children & Family Services",1,"*","*","*","*","*","*","*","*"]
["QWE","RJ6","CROYDON HEALTH SERVICES NHS TRUST","Community Healthcare Other",15,1,0,"*","*","*","*","*","*"]
["QWE","RJ6","CROYDON HEALTH SERVICES NHS TRUST","Rehabilitation & Therapy Services",199,0.92462311557788945,3.5175879396984924E-2,149,35,5,3,4,3]
["QWE","RVR","EPSOM AND ST HELIER UNIVERSITY HOSPITALS NHS TRUST","Children & Family Services",98,0.94897959183673475,3.0612244897959183E-2,85,8,1,2,1,1]
["QWE","RVR","EPSOM AND ST HELIER UNIVERSITY HOSPITALS NHS TRUST","Community Healthcare Other",202,0.9455445544554455,9.9009900990099011E-3,170,21,7,1,1,2]
["QWE","RVR","EPSOM AND ST HELIER UNIVERSITY HOSPITALS NHS TRUST","Community Inpatient Services",44,1,0,40,4,0,0,0,0]
["QWE","RVR","EPSOM AND ST HELIER UNIVERSITY HOSPITALS NHS TRUST","Community Nursing Services",251,0.9760956175298805,1.5936254980079681E-2,226,19,2,3,1,0]
["QWE","RVR","EPSOM AND ST HELIER UNIVERSITY HOSPITALS NHS TRUST","Rehabilitation & Therapy Services",324,0.96604938271604934,2.1604938271604937E-2,279,34,3,1,6,1]
["QWE","RVR","EPSOM AND ST HELIER UNIVERSITY HOSPITALS NHS TRUST","Specialist Services",18,1,0,16,2,0,0,0,0]
["QWE","RY9","HOUNSLOW AND RICHMOND COMMUNITY HEALTHCARE NHS TRUST","Children & Family Services",300,0.9,0.05,199,71,10,5,10,5]
["QWE","RY9","HOUNSLOW AND RICHMOND COMMUNITY HEALTHCARE NHS TRUST","Community Healthcare Other",708,0.85875706214689262,9.7457627118644072E-2,484,124,30,39,30,1]
["QWE","RY9","HOUNSLOW AND RICHMOND COMMUNITY HEALTHCARE NHS TRUST","Community Inpatient Services",22,1,0,11,11,0,0,0,0]
["QWE","RY9","HOUNSLOW AND RICHMOND COMMUNITY HEALTHCARE NHS TRUST","Community Nursing Services",563,0.97868561278863231,8.8809946714031966E-3,511,40,7,4,1,0]
["QWE","RY9","HOUNSLOW AND RICHMOND COMMUNITY HEALTHCARE NHS TRUST","Rehabilitation & Therapy Services",991,0.95963673057517662,1.6145307769929364E-2,788,163,18,11,5,6]
["QWE","RY9","HOUNSLOW AND RICHMOND COMMUNITY HEALTHCARE NHS TRUST","Specialist Services",198,0.96969696969696972,1.0101010101010102E-2,142,50,2,0,2,2]
["QWE","RJ7","ST GEORGE'S UNIVERSITY HOSPITALS NHS FOUNDATION TRUST","Rehabilitation & Therapy Services",14,1,0,10,4,0,0,0,0]
["QWO","RCF","AIREDALE NHS FOUNDATION TRUST","Community Healthcare Other",180,0.96111111111111114,1.6666666666666666E-2,142,31,1,3,0,3]
["QWO","TAD","BRADFORD DISTRICT CARE NHS FOUNDATION TRUST","Children & Family Services",39,0.97435897435897434,2.564102564102564E-2,25,13,0,0,1,0]
["QWO","TAD","BRADFORD DISTRICT CARE NHS FOUNDATION TRUST","Community Nursing Services",30,1,0,28,2,0,0,0,0]
["QWO","TAD","BRADFORD DISTRICT CARE NHS FOUNDATION TRUST","Rehabilitation & Therapy Services",18,1,0,16,2,0,0,0,0]
["QWO","TAD","BRADFORD DISTRICT CARE NHS FOUNDATION TRUST","Specialist Services",423,0.74940898345153661,0.19621749408983452,317,0,21,66,17,2]
["QWO","RWY","CALDERDALE AND HUDDERSFIELD NHS FOUNDATION TRUST","Community Nursing Services",46,0.97826086956521741,0,28,17,1,0,0,0]
["QWO","RWY","CALDERDALE AND HUDDERSFIELD NHS FOUNDATION TRUST","Rehabilitation & Therapy Services",6,1,0,5,1,0,0,0,0]
["QWO","RWY","CALDERDALE AND HUDDERSFIELD NHS FOUNDATION TRUST","Specialist Services",43,1,0,40,3,0,0,0,0]
["QWO","RY6","LEEDS COMMUNITY HEALTHCARE NHS TRUST","Children & Family Services",33,0.96969696969696972,3.0303030303030304E-2,26,6,0,1,0,0]
["QWO","RY6","LEEDS COMMUNITY HEALTHCARE NHS TRUST","Community Inpatient Services",13,1,0,11,2,0,0,0,0]
["QWO","RY6","LEEDS COMMUNITY HEALTHCARE NHS TRUST","Community Nursing Services",11,0.90909090909090906,0,10,0,0,0,0,1]
["QWO","RY6","LEEDS COMMUNITY HEALTHCARE NHS TRUST","Specialist Services",685,0.94744525547445257,1.7518248175182483E-2,517,132,20,4,8,4]
["QWO","RXF","MID YORKSHIRE TEACHING NHS TRUST","Children & Family Services",39,1,0,35,4,0,0,0,0]
["QWO","RXF","MID YORKSHIRE TEACHING NHS TRUST","Community Inpatient Services",26,0.96153846153846156,0,20,5,1,0,0,0]
["QWO","RXF","MID YORKSHIRE TEACHING NHS TRUST","Community Nursing Services",632,0.99367088607594933,4.7468354430379748E-3,571,57,1,1,2,0]
["QWO","RXF","MID YORKSHIRE TEACHING NHS TRUST","Rehabilitation & Therapy Services",891,0.98989898989898994,3.3670033670033669E-3,792,90,5,1,2,1]
["QWO","RXF","MID YORKSHIRE TEACHING NHS TRUST","Specialist Services",154,0.96103896103896103,1.2987012987012988E-2,139,9,3,2,0,1]
["QWO","RXG","SOUTH WEST YORKSHIRE PARTNERSHIP NHS FOUNDATION TRUST","Children & Family Services",36,1,0,31,5,0,0,0,0]
["QWO","RXG","SOUTH WEST YORKSHIRE PARTNERSHIP NHS FOUNDATION TRUST","Community Healthcare Other",22,1,0,"*","*","*","*","*","*"]
["QWO","RXG","SOUTH WEST YORKSHIRE PARTNERSHIP NHS FOUNDATION TRUST","Community Inpatient Services",3,"*","*","*","*","*","*","*","*"]
["QWO","RXG","SOUTH WEST YORKSHIRE PARTNERSHIP NHS FOUNDATION TRUST","Community Nursing Services",34,1,0,29,5,0,0,0,0]
["QWO","RXG","SOUTH WEST YORKSHIRE PARTNERSHIP NHS FOUNDATION TRUST","Rehabilitation & Therapy Services",182,0.96703296703296704,5.4945054945054949E-3,152,24,5,0,1,0]
["QWO","RXG","SOUTH WEST YORKSHIRE PARTNERSHIP NHS FOUNDATION TRUST","Specialist Services",29,0.93103448275862066,3.4482758620689655E-2,22,5,1,1,0,0]
["QWU","RJC","SOUTH WARWICKSHIRE UNIVERSITY NHS FOUNDATION TRUST","Community Inpatient Services",29,1,0,23,6,0,0,0,0]
["QWU","RJC","SOUTH WARWICKSHIRE UNIVERSITY NHS FOUNDATION TRUST","Community Nursing Services",103,1,0,95,8,0,0,0,0]
["QWU","RJC","SOUTH WARWICKSHIRE UNIVERSITY NHS FOUNDATION TRUST","Rehabilitation & Therapy Services",8,1,0,8,0,0,0,0,0]
["QWU","RJC","SOUTH WARWICKSHIRE UNIVERSITY NHS FOUNDATION TRUST","Specialist Services",14,1,0,14,0,0,0,0,0]
["QXU","RA2","ROYAL SURREY COUNTY HOSPITAL NHS FOUNDATION TRUST","Community Healthcare Other",19,1,0,19,0,0,0,0,0]
["QXU","RA2","ROYAL SURREY COUNTY HOSPITAL NHS FOUNDATION TRUST","Community Inpatient Services",55,0.96363636363636362,0,40,13,0,0,0,2]
["QXU","RA2","ROYAL SURREY COUNTY HOSPITAL NHS FOUNDATION TRUST","Rehabilitation & Therapy Services",48,1,0,45,3,0,0,0,0]
["QXU","RA2","ROYAL SURREY COUNTY HOSPITAL NHS FOUNDATION TRUST","Specialist Services",16,1,0,13,3,0,0,0,0]
["QYG","RBS","ALDER HEY CHILDREN'S NHS FOUNDATION TRUST","Children & Family Services",99,0.96969696969696972,2.0202020202020204E-2,83,13,1,1,1,0]
["QYG","RY2","BRIDGEWATER COMMUNITY HEALTHCARE NHS FOUNDATION TRUST","Children & Family Services",1048,0.97519083969465647,8.5877862595419852E-3,826,196,15,3,6,2]
["QYG","RY2","BRIDGEWATER COMMUNITY HEALTHCARE NHS FOUNDATION TRUST","Community Healthcare Other",793,0.87515762925598994,8.1967213114754092E-2,593,101,27,19,46,7]
["QYG","RY2","BRIDGEWATER COMMUNITY HEALTHCARE NHS FOUNDATION TRUST","Community Nursing Services",1294,0.96058732612055642,1.6228748068006182E-2,1160,83,20,7,14,10]
["QYG","RY2","BRIDGEWATER COMMUNITY HEALTHCARE NHS FOUNDATION TRUST","Rehabilitation & Therapy Services",930,0.97634408602150535,1.3978494623655914E-2,837,71,5,6,7,4]
["QYG","RY2","BRIDGEWATER COMMUNITY HEALTHCARE NHS FOUNDATION TRUST","Specialist Services",150,0.90666666666666662,4.6666666666666669E-2,123,13,3,3,4,4]
["QYG","RXA","CHESHIRE AND WIRRAL PARTNERSHIP NHS FOUNDATION TRUST","Children & Family Services",84,0.90476190476190477,7.1428571428571425E-2,68,8,1,1,5,1]
["QYG","RXA","CHESHIRE AND WIRRAL PARTNERSHIP NHS FOUNDATION TRUST","Community Healthcare Other",211,0.95260663507109,1.4218009478672985E-2,180,21,4,0,3,3]
["QYG","RXA","CHESHIRE AND WIRRAL PARTNERSHIP NHS FOUNDATION TRUST","Community Nursing Services",127,0.87401574803149606,3.937007874015748E-2,96,15,7,2,3,4]
["QYG","RXA","CHESHIRE AND WIRRAL PARTNERSHIP NHS FOUNDATION TRUST","Rehabilitation & Therapy Services",322,0.92546583850931674,3.1055900621118012E-2,265,33,8,3,7,6]
["QYG","RXA","CHESHIRE AND WIRRAL PARTNERSHIP NHS FOUNDATION TRUST","Specialist Services",150,0.89333333333333331,5.3333333333333337E-2,106,28,5,4,4,3]
["QYG","RJN","EAST CHESHIRE NHS TRUST","Children & Family Services",4,"*","*","*","*","*","*","*","*"]
["QYG","RJN","EAST CHESHIRE NHS TRUST","Community Nursing Services",89,0.88764044943820219,2.247191011235955E-2,68,11,4,1,1,4]
["QYG","RJN","EAST CHESHIRE NHS TRUST","Rehabilitation & Therapy Services",52,0.98076923076923073,0,42,9,0,0,0,1]
["QYG","RJN","EAST CHESHIRE NHS TRUST","Specialist Services",12,1,0,"*","*","*","*","*","*"]
["QYG","RBN","MERSEY AND WEST LANCASHIRE TEACHING HOSPITALS NHS TRUST","Children & Family Services",6,1,0,6,0,0,0,0,0]
["QYG","RBN","MERSEY AND WEST LANCASHIRE TEACHING HOSPITALS NHS TRUST","Specialist Services",138,0.97826086956521741,2.1739130434782608E-2,127,8,0,0,3,0]
["QYG","RW4","MERSEY CARE NHS FOUNDATION TRUST","Children & Family Services",677,0.92614475627769577,1.3293943870014771E-2,423,204,30,1,8,11]
["QYG","RW4","MERSEY CARE NHS FOUNDATION TRUST","Community Healthcare Other",168,0.95238095238095233,3.5714285714285712E-2,150,10,2,2,4,0]
["QYG","RW4","MERSEY CARE NHS FOUNDATION TRUST","Community Inpatient Services",2,"*","*","*","*","*","*","*","*"]
["QYG","RW4","MERSEY CARE NHS FOUNDATION TRUST","Community Nursing Services",382,0.96073298429319376,7.8534031413612562E-3,331,36,3,0,3,9]
["QYG","RW4","MERSEY CARE NHS FOUNDATION TRUST","Rehabilitation & Therapy Services",175,0.98285714285714287,5.7142857142857143E-3,152,20,2,1,0,0]
["QYG","RW4","MERSEY CARE NHS FOUNDATION TRUST","Specialist Services",22,1,0,"*","*","*","*","*","*"]
["QYG","RBT","MID CHESHIRE HOSPITALS NHS FOUNDATION TRUST","Children & Family Services",41,0.95121951219512191,4.878048780487805E-2,35,4,0,0,2,0]
["QYG","RBT","MID CHESHIRE HOSPITALS NHS FOUNDATION TRUST","Community Healthcare Other",16,0.9375,0,12,3,0,0,0,1]
["QYG","RBT","MID CHESHIRE HOSPITALS NHS FOUNDATION TRUST","Community Nursing Services",189,0.96296296296296291,1.0582010582010581E-2,170,12,3,0,2,2]
["QYG","RBT","MID CHESHIRE HOSPITALS NHS FOUNDATION TRUST","Rehabilitation & Therapy Services",434,0.96313364055299544,1.8433179723502304E-2,380,38,6,3,5,2]
["QYG","RY7","WIRRAL COMMUNITY HEALTH AND CARE NHS FOUNDATION TRUST","Children & Family Services",48,0.95833333333333337,4.1666666666666664E-2,39,7,0,1,1,0]
["QYG","RY7","WIRRAL COMMUNITY HEALTH AND CARE NHS FOUNDATION TRUST","Community Healthcare Other",1067,0.86785379568884724,8.3411433926897843E-2,788,138,49,36,53,3]
["QYG","RY7","WIRRAL COMMUNITY HEALTH AND CARE NHS FOUNDATION TRUST","Community Inpatient Services",5,1,0,0,5,0,0,0,0]
["QYG","RY7","WIRRAL COMMUNITY HEALTH AND CARE NHS FOUNDATION TRUST","Community Nursing Services",21,1,0,18,3,0,0,0,0]
["QYG","RY7","WIRRAL COMMUNITY HEALTH AND CARE NHS FOUNDATION TRUST","Rehabilitation & Therapy Services",816,0.95220588235294112,2.0833333333333332E-2,702,75,17,12,5,5]
["QYG","RY7","WIRRAL COMMUNITY HEALTH AND CARE NHS FOUNDATION TRUST","Specialist Services",562,0.96263345195729533,1.2455516014234875E-2,493,48,9,4,3,5]
["IS1","NEC","ALLIED HEALTH PROFESSIONALS SUFFOLK CIC","Rehabilitation & Therapy Services",733,0.922237380627558,3.8199181446111868E-2,583,93,22,18,10,7]
["IS1","8J094","BADGER LTD","Community Healthcare Other",36,1,0,32,4,0,0,0,0]
["IS1","DVG","BARDOC","Community Healthcare Other",1055,0.85402843601895739,0.10995260663507109,686,215,38,59,57,0]
["IS1","AT7H","BRITISH RED CROSS SOCIETY","Community Inpatient Services",26,0.96153846153846156,0,23,2,0,0,0,1]
["IS1","NQV","BROMLEY HEALTHCARE","Children & Family Services",91,0.98901098901098905,1.098901098901099E-2,75,15,0,0,1,0]
["IS1","NQV","BROMLEY HEALTHCARE","Community Healthcare Other",14,0.7142857142857143,0.14285714285714285,9,1,2,0,2,0]
["IS1","NQV","BROMLEY HEALTHCARE","Community Nursing Services",163,0.94478527607361962,3.6809815950920248E-2,143,11,2,3,3,1]
["IS1","NQV","BROMLEY HEALTHCARE","Rehabilitation & Therapy Services",288,0.95486111111111116,1.0416666666666666E-2,233,42,9,1,2,1]
["IS1","NQV","BROMLEY HEALTHCARE","Specialist Services",174,0.94827586206896552,5.7471264367816091E-3,137,28,5,1,0,3]
["IS1","NL3","CARE PLUS GROUP","Community Healthcare Other",7,1,0,5,2,0,0,0,0]
["IS1","NL3","CARE PLUS GROUP","Community Nursing Services",7,1,0,7,0,0,0,0,0]
["IS1","NL3","CARE PLUS GROUP","Rehabilitation & Therapy Services",9,1,0,7,2,0,0,0,0]
["IS1","NL3","CARE PLUS GROUP","Specialist Services",22,1,0,22,0,0,0,0,0]
["IS1","NNF","CITY HEALTH CARE PARTNERSHIP CIC","Children & Family Services",39,0.97435897435897434,0,37,1,0,0,0,1]
["IS1","NNF","CITY HEALTH CARE PARTNERSHIP CIC","Community Healthcare Other",277,0.94584837545126355,3.6101083032490974E-2,237,25,4,4,6,1]
["IS1","NNF","CITY HEALTH CARE PARTNERSHIP CIC","Community Inpatient Services",56,0.9821428571428571,0,47,8,0,0,0,1]
["IS1","NNF","CITY HEALTH CARE PARTNERSHIP CIC","Community Nursing Services",434,0.97465437788018439,1.3824884792626729E-2,379,44,2,2,4,3]
["IS1","NNF","CITY HEALTH CARE PARTNERSHIP CIC","Rehabilitation & Therapy Services",616,0.96590909090909094,1.6233766233766232E-2,528,67,9,4,6,2]
["IS1","NNF","CITY HEALTH CARE PARTNERSHIP CIC","Specialist Services",1585,0.97602523659305995,1.0725552050473186E-2,1397,150,14,9,8,7]
["IS1","NMG","CONNECT HEALTH LIMITED","Community Healthcare Other",2892,0.90006915629322271,4.8755186721991702E-2,2162,441,119,52,89,29]
["IS1","NY6","CONNECT HEALTH PAIN SERVICES","Community Healthcare Other",110,0.88181818181818183,8.1818181818181818E-2,79,18,1,3,6,3]
["IS1","NTV","CSH SURREY","Children & Family Services",28,0.9285714285714286,7.1428571428571425E-2,24,2,0,0,2,0]
["IS1","NTV","CSH SURREY","Community Healthcare Other",12,1,0,12,0,0,0,0,0]
["IS1","NTV","CSH SURREY","Community Inpatient Services",32,0.90625,6.25E-2,24,5,0,0,2,1]
["IS1","NTV","CSH SURREY","Community Nursing Services",218,0.87614678899082565,9.1743119266055051E-2,168,23,3,9,11,4]
["IS1","NTV","CSH SURREY","Rehabilitation & Therapy Services",9,1,0,9,0,0,0,0,0]
["IS1","8HE44","DR KERSHAWS HOSPICE","Community Healthcare Other",1,"*","*","*","*","*","*","*","*"]
["IS1","8HE44","DR KERSHAWS HOSPICE","Community Inpatient Services",4,"*","*","*","*","*","*","*","*"]
["IS1","8HE44","DR KERSHAWS HOSPICE","Community Nursing Services",1,"*","*","*","*","*","*","*","*"]
["IS1","NAX","EAST COAST COMMUNITY HEALTHCARE C.I.C","Community Healthcare Other",7,0.8571428571428571,0,6,0,0,0,0,1]
["IS1","NAX","EAST COAST COMMUNITY HEALTHCARE C.I.C","Community Inpatient Services",7,0.8571428571428571,0,5,1,1,0,0,0]
["IS1","NAX","EAST COAST COMMUNITY HEALTHCARE C.I.C","Community Nursing Services",16,1,0,15,1,0,0,0,0]
["IS1","NAX","EAST COAST COMMUNITY HEALTHCARE C.I.C","Rehabilitation & Therapy Services",50,0.94,0.04,44,3,1,1,1,0]
["IS1","NAX","EAST COAST COMMUNITY HEALTHCARE C.I.C","Specialist Services",30,1,0,28,2,0,0,0,0]
["IS1","DY6","EASTLEIGH SOUTHERN PARISHES NETWORK LTD","Community Healthcare Other",108,0.95370370370370372,4.6296296296296294E-2,93,10,0,2,3,0]
["IS1","NDJ","FIRST COMMUNITY HEALTH AND CARE CIC","Children & Family Services",89,0.9550561797752809,1.1235955056179775E-2,66,19,0,0,1,3]
["IS1","NDJ","FIRST COMMUNITY HEALTH AND CARE CIC","Community Healthcare Other",22,0.90909090909090906,9.0909090909090912E-2,"*","*","*","*","*","*"]
["IS1","NDJ","FIRST COMMUNITY HEALTH AND CARE CIC","Community Nursing Services",1,"*","*","*","*","*","*","*","*"]
["IS1","NDJ","FIRST COMMUNITY HEALTH AND CARE CIC","Rehabilitation & Therapy Services",91,0.95604395604395609,2.197802197802198E-2,79,8,0,0,2,2]
["IS1","NDJ","FIRST COMMUNITY HEALTH AND CARE CIC","Specialist Services",37,0.97297297297297303,0,34,2,0,0,0,1]
["IS1","NDK","FRESHNEY PELHAM CARE LIMITED","Community Nursing Services",39,1,0,38,1,0,0,0,0]
["IS1","NWV01","GP CARE UK","Community Healthcare Other",568,0.97887323943661975,1.0563380281690141E-2,485,71,6,3,3,0]
["IS1","NW0","GTD HEALTHCARE","Community Healthcare Other",874,0.90503432494279179,5.9496567505720827E-2,690,101,27,38,14,4]
["IS1","NQT","HCRG CARE LTD","Children & Family Services",1110,0.9261261261261261,1.2612612612612612E-2,709,319,56,6,8,12]
["IS1","NQT","HCRG CARE LTD","Community Healthcare Other",517,0.8646034816247582,9.6711798839458407E-2,217,230,16,42,8,4]
["IS1","NQT","HCRG CARE LTD","Community Inpatient Services",24,1,0,21,3,0,0,0,0]
["IS1","NQT","HCRG CARE LTD","Community Nursing Services",485,0.96494845360824744,1.443298969072165E-2,386,82,8,5,2,2]
["IS1","NQT","HCRG CARE LTD","Rehabilitation & Therapy Services",301,0.92026578073089704,2.3255813953488372E-2,244,33,6,3,4,11]
["IS1","NQT","HCRG CARE LTD","Specialist Services",447,0.98210290827740487,4.4742729306487695E-3,383,56,4,0,2,2]
["IS1","NDA","HCRG CARE SERVICES LTD","Community Healthcare Other",19,1,0,19,0,0,0,0,0]
["IS1","NDA","HCRG CARE SERVICES LTD","Community Nursing Services",30,1,0,27,3,0,0,0,0]
["IS1","NDA","HCRG CARE SERVICES LTD","Rehabilitation & Therapy Services",11,0.90909090909090906,0,9,1,1,0,0,0]
["IS1","NDA","HCRG CARE SERVICES LTD","Specialist Services",227,0.986784140969163,1.3215859030837005E-2,201,23,0,3,0,0]
["IS1","NHA","INSIDEVUE LIMITED","Community Inpatient Services",93,0.92473118279569888,2.1505376344086023E-2,59,27,3,1,1,2]
["IS1","NLE01","LANCASTER HOUSE CONSULTING DIAGNOSTICS SURGICAL LTD HQ","Community Healthcare Other",215,1,0,157,58,0,0,0,0]
["IS1","NR5","LIVEWELL SOUTHWEST","Children & Family Services",60,0.95,1.6666666666666666E-2,51,6,1,0,1,1]
["IS1","NR5","LIVEWELL SOUTHWEST","Community Healthcare Other",67,0.88059701492537312,4.4776119402985072E-2,51,8,4,2,1,1]
["IS1","NR5","LIVEWELL SOUTHWEST","Community Nursing Services",179,0.97206703910614523,1.11731843575419E-2,158,16,3,1,1,0]
["IS1","NR5","LIVEWELL SOUTHWEST","Rehabilitation & Therapy Services",154,0.98051948051948057,6.4935064935064939E-3,145,6,1,0,1,1]
["IS1","DAY","LLR PATIENT CARE LOCALLY","Community Healthcare Other",1011,0.97626112759643913,9.8911968348170121E-3,839,148,12,9,1,2]
["IS1","NL8","LOCALA COMMUNITY PARTNERSHIPS CIC","Children & Family Services",184,0.91304347826086951,3.8043478260869568E-2,146,22,2,3,4,7]
["IS1","NL8","LOCALA COMMUNITY PARTNERSHIPS CIC","Community Healthcare Other",434,0.95161290322580649,2.9953917050691243E-2,371,42,1,11,2,7]
["IS1","NL8","LOCALA COMMUNITY PARTNERSHIPS CIC","Community Inpatient Services",8,1,0,7,1,0,0,0,0]
["IS1","NL8","LOCALA COMMUNITY PARTNERSHIPS CIC","Community Nursing Services",100,0.89,0.03,74,15,1,1,2,7]
["IS1","NL8","LOCALA COMMUNITY PARTNERSHIPS CIC","Rehabilitation & Therapy Services",101,0.96039603960396036,2.9702970297029702E-2,78,19,0,2,1,1]
["IS1","NL8","LOCALA COMMUNITY PARTNERSHIPS CIC","Specialist Services",416,0.98557692307692313,1.201923076923077E-2,373,37,0,4,1,1]
["IS1","NCE","MASTERCALL HEALTHCARE","Community Healthcare Other",291,0.8797250859106529,8.247422680412371E-2,211,45,8,6,18,3]
["IS1","NQ7","MEDWAY COMMUNITY HEALTHCARE","Children & Family Services",72,0.83333333333333337,0.1111111111111111,53,7,3,2,6,1]
["IS1","NQ7","MEDWAY COMMUNITY HEALTHCARE","Community Healthcare Other",667,0.98350824587706143,8.9955022488755615E-3,588,68,4,3,3,1]
["IS1","NQ7","MEDWAY COMMUNITY HEALTHCARE","Community Nursing Services",144,0.94444444444444442,3.4722222222222224E-2,121,15,1,1,4,2]
["IS1","NQ7","MEDWAY COMMUNITY HEALTHCARE","Rehabilitation & Therapy Services",35,0.94285714285714284,5.7142857142857141E-2,30,3,0,1,1,0]
["IS1","NQ7","MEDWAY COMMUNITY HEALTHCARE","Specialist Services",111,0.97297297297297303,1.8018018018018018E-2,98,10,1,0,2,0]
["IS1","ARA","MID HAMPSHIRE HEALTHCARE LIMITED","Community Healthcare Other",400,0.9425,3.2500000000000001E-2,350,27,8,6,7,2]
["IS1","ARA","MID HAMPSHIRE HEALTHCARE LIMITED","Community Nursing Services",49,0.97959183673469385,2.0408163265306121E-2,45,3,0,0,1,0]
["IS1","NPH","MILTON KEYNES URGENT CARE SERVICES CIC HQ","Community Healthcare Other",556,0.78776978417266186,0.12949640287769784,255,183,42,29,43,4]
["IS1","NHX","NORTH HAMPSHIRE URGENT CARE","Community Healthcare Other",150,0.93333333333333335,4.6666666666666669E-2,103,37,2,4,3,1]
["IS1","NQH","NOVUS HEALTH LTD","Community Healthcare Other",207,0.96618357487922701,1.4492753623188406E-2,185,15,4,2,1,0]
["IS1","NQH","NOVUS HEALTH LTD","Rehabilitation & Therapy Services",366,0.95628415300546443,1.092896174863388E-2,305,45,12,4,0,0]
["IS1","DCF","OZONE HEALTH","Community Healthcare Other",191,0.76963350785340312,0.1099476439790576,111,36,16,9,12,7]
["IS1","NLF","PENNINE MUSCULOSKELETAL PARTNERSHIP (ICATS)","Community Healthcare Other",729,0.94650205761316875,2.194787379972565E-2,628,62,18,2,14,5]
["IS1","NTP","PRACTICE PLUS GROUP","Community Healthcare Other",1033,0.80251694094869308,0.13746369796708616,640,189,58,61,81,4]
["IS1","NQA","PROVIDE","Children & Family Services",14,1,0,14,0,0,0,0,0]
["IS1","NQA","PROVIDE","Community Healthcare Other",600,0.97833333333333339,1.3333333333333334E-2,548,39,5,4,4,0]
["IS1","NQA","PROVIDE","Community Inpatient Services",1,"*","*","*","*","*","*","*","*"]
["IS1","NQA","PROVIDE","Community Nursing Services",21,1,0,19,2,0,0,0,0]
["IS1","NQA","PROVIDE","Rehabilitation & Therapy Services",12,1,0,12,0,0,0,0,0]
["IS1","NQA","PROVIDE","Specialist Services",9,0.88888888888888884,0.1111111111111111,"*","*","*","*","*","*"]
["IS1","NLX","SIRONA CARE & HEALTH","Children & Family Services",6,1,0,4,2,0,0,0,0]
["IS1","NLX","SIRONA CARE & HEALTH","Community Healthcare Other",23,1,0,22,1,0,0,0,0]
["IS1","NLX","SIRONA CARE & HEALTH","Community Nursing Services",11,0.81818181818181823,9.0909090909090912E-2,9,0,1,0,1,0]
["IS1","NLX","SIRONA CARE & HEALTH","Rehabilitation & Therapy Services",42,1,0,37,5,0,0,0,0]
["IS1","NLX","SIRONA CARE & HEALTH","Specialist Services",57,1,0,55,2,0,0,0,0]
["IS1","NNC","SOLENT MEDICAL SERVICES LIMITED","Community Healthcare Other",47,0.97872340425531912,2.1276595744680851E-2,42,4,0,0,1,0]
["IS1","NDL","SUFFOLK GP FEDERATION","Community Healthcare Other",1269,0.91095350669818753,4.7281323877068557E-2,997,159,48,31,29,5]
["IS1","NYG","SUSSEX COMMUNITY DERMATOLOGY SERVICE","Community Healthcare Other",273,0.99633699633699635,0,155,117,1,0,0,0]
["IS1","NGX","TAURUS HEALTHCARE LTD","Community Healthcare Other",631,0.9350237717908082,3.328050713153724E-2,478,112,20,7,14,0]
["IS1","NN1","THE ROYAL HOSPITAL FOR NEURO-DISABILITY","Community Inpatient Services",7,0.8571428571428571,0.14285714285714285,3,3,0,0,1,0]
["IS1","8HN95","THE STROKE ASSOCIATION","Community Healthcare Other",6,1,0,"*","*","*","*","*","*"]
["IS1","VLN99","TURNING POINT - BIRCHWOOD NURSING HOME","Community Healthcare Other",1,"*","*","*","*","*","*","*","*"]
["IS1","AXG","WILTSHIRE HEALTH & CARE","Community Healthcare Other",38,0.97368421052631582,2.6315789473684209E-2,35,2,0,0,1,0]
["IS1","AXG","WILTSHIRE HEALTH & CARE","Community Inpatient Services",41,0.97560975609756095,0,23,17,0,0,0,1]
["IS1","AXG","WILTSHIRE HEALTH & CARE","Community Nursing Services",49,1,0,45,4,0,0,0,0]
["IS1","AXG","WILTSHIRE HEALTH & CARE","Rehabilitation & Therapy Services",507,0.97633136094674555,2.1696252465483234E-2,432,63,0,3,8,1]
["IS1","AXG","WILTSHIRE HEALTH & CARE","Specialist Services",149,0.97315436241610742,2.0134228187919462E-2,133,12,0,1,2,1]
["IS1","NNV","YOUR HEALTHCARE","Children & Family Services",67,0.95522388059701491,0,39,25,3,0,0,0]
["IS1","NNV","YOUR HEALTHCARE","Community Inpatient Services",2,"*","*","*","*","*","*","*","*"]
["IS1","NNV","YOUR HEALTHCARE","Community Nursing Services",11,1,0,11,0,0,0,0,0]
["IS1","NNV","YOUR HEALTHCARE","Rehabilitation & Therapy Services",42,1,0,41,1,0,0,0,0]
["IS1","NNV","YOUR HEALTHCARE","Specialist Services",4,"*","*","*","*","*","*","*","*"]

{"sheet":"BS","index":5,"n_rows":522,"n_cols":30,"rows_kept":522,"cut":false,"hidden":true,"merged":[]}
[null,"Sort","Region (LO) Code","Region (LO) name","Trust code","Trust name","Category",null,"Sort Lists:","Sort range…","Sort range…","Sort range…","Reference Region Lists:","Code…","Name…","Linked Region Lists:","Code…","Name…","Reference Lists:","Code…","Code…","Name…","Category…","Trusts Linked lists:","Code…","Name…","Categories Linked lists:","Code…","Name…","Category…"]
["Region (LO)",1,1,1,"-","-","-",null,null,"ICB Code","ICB Code","ICB code",null,"QE1","LANCASHIRE AND SOUTH CUMBRIA ICB",null,"QE1","LANCASHIRE AND SOUTH CUMBRIA ICB",null,"QE1","RXL","BLACKPOOL TEACHING HOSPITALS NHS FOUNDATION TRUST","Children & Family Services",null,"8HE44","AIREDALE NHS FOUNDATION TRUST",null,"8HE44","AIREDALE NHS FOUNDATION TRUST","Children & Family Services"]
["Trusts",1,1,1,1,1,"-",null,null,"ICB Name","Trust Code","Trust Code",null,"QF7","SOUTH YORKSHIRE ICB",null,"QF7","SOUTH YORKSHIRE ICB",null,"QE1","RXL","BLACKPOOL TEACHING HOSPITALS NHS FOUNDATION TRUST","Community Healthcare Other",null,"8HN95","ALDER HEY CHILDREN'S NHS FOUNDATION TRUST",null,"8HN95","ALDER HEY CHILDREN'S NHS FOUNDATION TRUST","Community Healthcare Other"]
["Categories",1,1,1,1,1,1,null,null,"Total Responses","Trust Name","Trust Name",null,"QGH","HEREFORDSHIRE AND WORCESTERSHIRE ICB",null,"QGH","HEREFORDSHIRE AND WORCESTERSHIRE ICB",null,"QE1","RXL","BLACKPOOL TEACHING HOSPITALS NHS FOUNDATION TRUST","Community Inpatient Services",null,"8J094","ALLIED HEALTH PROFESSIONALS SUFFOLK CIC",null,"8J094","ALLIED HEALTH PROFESSIONALS SUFFOLK CIC","Community Inpatient Services"]
[null,null,null,null,null,null,null,null,null,"Total Eligible","Total Responses","Category",null,"QH8","MID AND SOUTH ESSEX ICB",null,"QH8","MID AND SOUTH ESSEX ICB",null,"QE1","RXL","BLACKPOOL TEACHING HOSPITALS NHS FOUNDATION TRUST","Community Nursing Services",null,"ARA","BADGER LTD",null,"ARA","BADGER LTD","Community Nursing Services"]
[null,null,null,null,null,null,null,null,null,"Percentage Positive","Total Eligible","Total Responses",null,"QHG","BEDFORDSHIRE, LUTON AND MILTON KEYNES ICB",null,"QHG","BEDFORDSHIRE, LUTON AND MILTON KEYNES ICB",null,"QE1","RXL","BLACKPOOL TEACHING HOSPITALS NHS FOUNDATION TRUST","Rehabilitation & Therapy Services",null,"AT7H","BARDOC",null,"AT7H","BARDOC","Rehabilitation & Therapy Services"]
[null,null,null,null,null,null,null,null,null,"Percentage Negative","Percentage Positive","Percentage Positive",null,"QHL","BIRMINGHAM AND SOLIHULL ICB",null,"QHL","BIRMINGHAM AND SOLIHULL ICB",null,"QE1","RXL","BLACKPOOL TEACHING HOSPITALS NHS FOUNDATION TRUST","Specialist Services",null,"AXG","BERKSHIRE HEALTHCARE NHS FOUNDATION TRUST",null,"AXG","BERKSHIRE HEALTHCARE NHS FOUNDATION TRUST","Specialist Services"]
[null,null,null,null,null,null,null,null,null,"Very Good","Percentage Negative","Percentage Negative",null,"QHM","NORTH EAST AND NORTH CUMBRIA ICB",null,"QHM","NORTH EAST AND NORTH CUMBRIA ICB",null,"QE1","RXR","EAST LANCASHIRE HOSPITALS NHS TRUST","Children & Family Services",null,"DAY","BIRMINGHAM COMMUNITY HEALTHCARE NHS FOUNDATION TRUST",null,"DAY","BIRMINGHAM COMMUNITY HEALTHCARE NHS FOUNDATION TRUST"]
[null,null,null,null,null,null,null,null,null,"Good","Very Good","Very Good",null,"QJ2","DERBY AND DERBYSHIRE ICB",null,"QJ2","DERBY AND DERBYSHIRE ICB",null,"QE1","RXR","EAST LANCASHIRE HOSPITALS NHS TRUST","Community Healthcare Other",null,"DCF","BLACK COUNTRY HEALTHCARE NHS FOUNDATION TRUST",null,"DCF","BLACK COUNTRY HEALTHCARE NHS FOUNDATION TRUST"]
[null,null,null,null,null,null,null,null,null,"Neither Good nor Poor","Good","Good",null,"QJG","SUFFOLK AND NORTH EAST ESSEX ICB",null,"QJG","SUFFOLK AND NORTH EAST ESSEX ICB",null,"QE1","RXR","EAST LANCASHIRE HOSPITALS NHS TRUST","Community Inpatient Services",null,"DVG","BLACKPOOL TEACHING HOSPITALS NHS FOUNDATION TRUST",null,"DVG","BLACKPOOL TEACHING HOSPITALS NHS FOUNDATION TRUST"]
[null,null,null,null,null,null,null,null,null,"Poor","Neither Good nor Poor","Neither Good nor Poor",null,"QJK","DEVON ICB",null,"QJK","DEVON ICB",null,"QE1","RXR","EAST LANCASHIRE HOSPITALS NHS TRUST","Community Nursing Services",null,"DY6","BOLTON NHS FOUNDATION TRUST",null,"DY6","BOLTON NHS FOUNDATION TRUST"]
[null,null,null,null,null,null,null,null,null,"Very Poor","Poor","Poor",null,"QJM","LINCOLNSHIRE ICB",null,"QJM","LINCOLNSHIRE ICB",null,"QE1","RXR","EAST LANCASHIRE HOSPITALS NHS TRUST","Rehabilitation & Therapy Services",null,"NAX","BRADFORD DISTRICT CARE NHS FOUNDATION TRUST",null,"NAX","BRADFORD DISTRICT CARE NHS FOUNDATION TRUST"]
[null,null,null,null,null,null,null,null,null,"Don't Know","Very Poor","Very Poor",null,"QK1","LEICESTER, LEICESTERSHIRE AND RUTLAND ICB",null,"QK1","LEICESTER, LEICESTERSHIRE AND RUTLAND ICB",null,"QE1","RXR","EAST LANCASHIRE HOSPITALS NHS TRUST","Specialist Services",null,"NCE","BRIDGEWATER COMMUNITY HEALTHCARE NHS FOUNDATION TRUST",null,"NCE","BRIDGEWATER COMMUNITY HEALTHCARE NHS FOUNDATION TRUST"]
[null,null,null,null,null,null,null,null,null,null,"Don't Know","Don't Know",null,"QKK","SOUTH EAST LONDON ICB",null,"QKK","SOUTH EAST LONDON ICB",null,"QE1","RW5","LANCASHIRE & SOUTH CUMBRIA NHS FOUNDATION TRUST","Children & Family Services",null,"NDA","BRITISH RED CROSS SOCIETY",null,"NDA","BRITISH RED CROSS SOCIETY"]
[null,null,null,null,null,null,null,null,null,null,"Mode SMS",null,null,"QKS","KENT AND MEDWAY ICB",null,"QKS","KENT AND MEDWAY ICB",null,"QE1","RW5","LANCASHIRE & SOUTH CUMBRIA NHS FOUNDATION TRUST","Community Healthcare Other",null,"NDJ","BROMLEY HEALTHCARE",null,"NDJ","BROMLEY HEALTHCARE"]
[null,null,null,null,null,null,null,null,null,null,"Mode Electronic Discharge",null,null,"QM7","HERTFORDSHIRE AND WEST ESSEX ICB",null,"QM7","HERTFORDSHIRE AND WEST ESSEX ICB",null,"QE1","RW5","LANCASHIRE & SOUTH CUMBRIA NHS FOUNDATION TRUST","Community Inpatient Services",null,"NDK","BUCKINGHAMSHIRE HEALTHCARE NHS TRUST",null,"NDK","BUCKINGHAMSHIRE HEALTHCARE NHS TRUST"]
[null,null,null,null,null,null,null,null,null,null,"Mode Paper Home",null,null,"QMF","NORTH EAST LONDON ICB",null,"QMF","NORTH EAST LONDON ICB",null,"QE1","RW5","LANCASHIRE & SOUTH CUMBRIA NHS FOUNDATION TRUST","Community Nursing Services",null,"NDL","CALDERDALE AND HUDDERSFIELD NHS FOUNDATION TRUST",null,"NDL","CALDERDALE AND HUDDERSFIELD NHS FOUNDATION TRUST"]
[null,null,null,null,null,null,null,null,null,null,"Mode Telephone",null,null,"QMJ","NORTH CENTRAL LONDON ICB",null,"QMJ","NORTH CENTRAL LONDON ICB",null,"QE1","RW5","LANCASHIRE & SOUTH CUMBRIA NHS FOUNDATION TRUST","Rehabilitation & Therapy Services",null,"NEC","CAMBRIDGESHIRE AND PETERBOROUGH NHS FOUNDATION TRUST",null,"NEC","CAMBRIDGESHIRE AND PETERBOROUGH NHS FOUNDATION TRUST"]
[null,null,null,null,null,null,null,null,null,null,"Mode Online",null,null,"QMM","NORFOLK AND WAVENEY ICB",null,"QMM","NORFOLK AND WAVENEY ICB",null,"QE1","RW5","LANCASHIRE & SOUTH CUMBRIA NHS FOUNDATION TRUST","Specialist Services",null,"NGX","CAMBRIDGESHIRE COMMUNITY SERVICES NHS TRUST",null,"NGX","CAMBRIDGESHIRE COMMUNITY SERVICES NHS TRUST"]
[null,null,null,null,null,null,null,null,null,null,"Mode Other",null,null,"QNC","STAFFORDSHIRE AND STOKE-ON-TRENT ICB",null,"QNC","STAFFORDSHIRE AND STOKE-ON-TRENT ICB",null,"QE1","RTX","UNIVERSITY HOSPITALS OF MORECAMBE BAY NHS FOUNDATION TRUST","Children & Family Services",null,"NHA","CARE PLUS GROUP",null,"NHA","CARE PLUS GROUP"]
[null,null,null,null,null,null,null,null,null,null,null,null,null,"QNQ","FRIMLEY ICB",null,"QNQ","FRIMLEY ICB",null,"QE1","RTX","UNIVERSITY HOSPITALS OF MORECAMBE BAY NHS FOUNDATION TRUST","Community Healthcare Other",null,"NHX","CENTRAL AND NORTH WEST LONDON NHS FOUNDATION TRUST",null,"NHX","CENTRAL AND NORTH WEST LONDON NHS FOUNDATION TRUST"]
[null,null,null,null,null,null,null,null,null,null,null,null,null,"QNX","SUSSEX ICB",null,"QNX","SUSSEX ICB",null,"QE1","RTX","UNIVERSITY HOSPITALS OF MORECAMBE BAY NHS FOUNDATION TRUST","Community Inpatient Services",null,"NL3","CENTRAL LONDON COMMUNITY HEALTHCARE NHS TRUST",null,"NL3","CENTRAL LONDON COMMUNITY HEALTHCARE NHS TRUST"]
[null,null,null,null,null,null,null,null,null,null,null,null,null,"QOC","SHROPSHIRE, TELFORD AND WREKIN ICB",null,"QOC","SHROPSHIRE, TELFORD AND WREKIN ICB",null,"QE1","RTX","UNIVERSITY HOSPITALS OF MORECAMBE BAY NHS FOUNDATION TRUST","Community Nursing Services",null,"NL8","CHELSEA AND WESTMINSTER HOSPITAL NHS FOUNDATION TRUST",null,"NL8","CHELSEA AND WESTMINSTER HOSPITAL NHS FOUNDATION TRUST"]
[null,null,null,null,null,null,null,null,null,null,null,null,null,"QOP","GREATER MANCHESTER ICB",null,"QOP","GREATER MANCHESTER ICB",null,"QE1","RTX","UNIVERSITY HOSPITALS OF MORECAMBE BAY NHS FOUNDATION TRUST","Rehabilitation & Therapy Services",null,"NLE01","CHESHIRE AND WIRRAL PARTNERSHIP NHS FOUNDATION TRUST",null,"NLE01","CHESHIRE AND WIRRAL PARTNERSHIP NHS FOUNDATION TRUST"]
[null,null,null,null,null,null,null,null,null,null,null,null,null,"QOQ","HUMBER AND NORTH YORKSHIRE ICB",null,"QOQ","HUMBER AND NORTH YORKSHIRE ICB",null,"QE1","RTX","UNIVERSITY HOSPITALS OF MORECAMBE BAY NHS FOUNDATION TRUST","Specialist Services",null,"NLF","CITY HEALTH CARE PARTNERSHIP CIC",null,"NLF","CITY HEALTH CARE PARTNERSHIP CIC"]
[null,null,null,null,null,null,null,null,null,null,null,null,null,"QOX","BATH AND NORTH EAST SOMERSET, SWINDON AND WILTSHIRE ICB",null,"QOX","BATH AND NORTH EAST SOMERSET, SWINDON AND WILTSHIRE ICB",null,"QF7","RXE","ROTHERHAM DONCASTER AND SOUTH HUMBER NHS FOUNDATION TRUST","Children & Family Services",null,"NLX","CONNECT HEALTH LIMITED",null,"NLX","CONNECT HEALTH LIMITED"]
[null,null,null,null,null,null,null,null,null,null,null,null,null,"QPM","NORTHAMPTONSHIRE ICB",null,"QPM","NORTHAMPTONSHIRE ICB",null,"QF7","RXE","ROTHERHAM DONCASTER AND SOUTH HUMBER NHS FOUNDATION TRUST","Community Healthcare Other",null,"NMG","CONNECT HEALTH PAIN SERVICES",null,"NMG","CONNECT HEALTH PAIN SERVICES"]
[null,null,null,null,null,null,null,null,null,null,null,null,null,"QR1","GLOUCESTERSHIRE ICB",null,"QR1","GLOUCESTERSHIRE ICB",null,"QF7","RXE","ROTHERHAM DONCASTER AND SOUTH HUMBER NHS FOUNDATION TRUST","Community Inpatient Services",null,"NN1","CORNWALL PARTNERSHIP NHS FOUNDATION TRUST",null,"NN1","CORNWALL PARTNERSHIP NHS FOUNDATION TRUST"]
[null,null,null,null,null,null,null,null,null,null,null,null,null,"QRL","HAMPSHIRE AND ISLE OF WIGHT ICB",null,"QRL","HAMPSHIRE AND ISLE OF WIGHT ICB",null,"QF7","RXE","ROTHERHAM DONCASTER AND SOUTH HUMBER NHS FOUNDATION TRUST","Community Nursing Services",null,"NNC","COUNTY DURHAM AND DARLINGTON NHS FOUNDATION TRUST",null,"NNC","COUNTY DURHAM AND DARLINGTON NHS FOUNDATION TRUST"]
[null,null,null,null,null,null,null,null,null,null,null,null,null,"QRV","NORTH WEST LONDON ICB",null,"QRV","NORTH WEST LONDON ICB",null,"QF7","RXE","ROTHERHAM DONCASTER AND SOUTH HUMBER NHS FOUNDATION TRUST","Rehabilitation & Therapy Services",null,"NNF","CROYDON HEALTH SERVICES NHS TRUST",null,"NNF","CROYDON HEALTH SERVICES NHS TRUST"]
[null,null,null,null,null,null,null,null,null,null,null,null,null,"QSL","SOMERSET ICB",null,"QSL","SOMERSET ICB",null,"QF7","RXE","ROTHERHAM DONCASTER AND SOUTH HUMBER NHS FOUNDATION TRUST","Specialist Services",null,"NNV","CSH SURREY",null,"NNV","CSH SURREY"]
[null,null,null,null,null,null,null,null,null,null,null,null,null,"QT1","NOTTINGHAM AND NOTTINGHAMSHIRE ICB",null,"QT1","NOTTINGHAM AND NOTTINGHAMSHIRE ICB",null,"QF7","RCU","SHEFFIELD CHILDREN'S NHS FOUNDATION TRUST","Community Nursing Services",null,"NPH","DERBYSHIRE COMMUNITY HEALTH SERVICES NHS FOUNDATION TRUST",null,"NPH","DERBYSHIRE COMMUNITY HEALTH SERVICES NHS FOUNDATION TRUST"]
[null,null,null,null,null,null,null,null,null,null,null,null,null,"QT6","CORNWALL AND THE ISLES OF SCILLY ICB",null,"QT6","CORNWALL AND THE ISLES OF SCILLY ICB",null,"QF7","RHQ","SHEFFIELD TEACHING HOSPITALS NHS FOUNDATION TRUST","Community Healthcare Other",null,"NQ7","DERBYSHIRE HEALTHCARE NHS FOUNDATION TRUST",null,"NQ7","DERBYSHIRE HEALTHCARE NHS FOUNDATION TRUST"]
[null,null,null,null,null,null,null,null,null,null,null,null,null,"QU9","BUCKINGHAMSHIRE, OXFORDSHIRE AND BERKSHIRE WEST ICB",null,"QU9","BUCKINGHAMSHIRE, OXFORDSHIRE AND BERKSHIRE WEST ICB",null,"QF7","RHQ","SHEFFIELD TEACHING HOSPITALS NHS FOUNDATION TRUST","Community Inpatient Services",null,"NQA","DORSET HEALTHCARE UNIVERSITY NHS FOUNDATION TRUST",null,"NQA","DORSET HEALTHCARE UNIVERSITY NHS FOUNDATION TRUST"]
[null,null,null,null,null,null,null,null,null,null,null,null,null,"QUA","BLACK COUNTRY ICB",null,"QUA","BLACK COUNTRY ICB",null,"QF7","RHQ","SHEFFIELD TEACHING HOSPITALS NHS FOUNDATION TRUST","Community Nursing Services",null,"NQH","DR KERSHAWS HOSPICE",null,"NQH","DR KERSHAWS HOSPICE"]
[null,null,null,null,null,null,null,null,null,null,null,null,null,"QUE","CAMBRIDGESHIRE AND PETERBOROUGH ICB",null,"QUE","CAMBRIDGESHIRE AND PETERBOROUGH ICB",null,"QF7","RHQ","SHEFFIELD TEACHING HOSPITALS NHS FOUNDATION TRUST","Rehabilitation & Therapy Services",null,"NQT","EAST CHESHIRE NHS TRUST",null,"NQT","EAST CHESHIRE NHS TRUST"]
[null,null,null,null,null,null,null,null,null,null,null,null,null,"QUY","BRISTOL, NORTH SOMERSET AND SOUTH GLOUCESTERSHIRE ICB",null,"QUY","BRISTOL, NORTH SOMERSET AND SOUTH GLOUCESTERSHIRE ICB",null,"QF7","RHQ","SHEFFIELD TEACHING HOSPITALS NHS FOUNDATION TRUST","Specialist Services",null,"NQV","EAST COAST COMMUNITY HEALTHCARE C.I.C",null,"NQV","EAST COAST COMMUNITY HEALTHCARE C.I.C"]
[null,null,null,null,null,null,null,null,null,null,null,null,null,"QVV","DORSET ICB",null,"QVV","DORSET ICB",null,"QF7","RFR","THE ROTHERHAM NHS FOUNDATION TRUST","Children & Family Services",null,"NR5","EAST LANCASHIRE HOSPITALS NHS TRUST",null,"NR5","EAST LANCASHIRE HOSPITALS NHS TRUST"]
[null,null,null,null,null,null,null,null,null,null,null,null,null,"QWE","SOUTH WEST LONDON ICB",null,"QWE","SOUTH WEST LONDON ICB",null,"QF7","RFR","THE ROTHERHAM NHS FOUNDATION TRUST","Community Nursing Services",null,"NTP","EAST LONDON NHS FOUNDATION TRUST",null,"NTP","EAST LONDON NHS FOUNDATION TRUST"]
[null,null,null,null,null,null,null,null,null,null,null,null,null,"QWO","WEST YORKSHIRE ICB",null,"QWO","WEST YORKSHIRE ICB",null,"QF7","RFR","THE ROTHERHAM NHS FOUNDATION TRUST","Rehabilitation & Therapy Services",null,"NTV","EAST SUFFOLK AND NORTH ESSEX NHS FOUNDATION TRUST",null,"NTV","EAST SUFFOLK AND NORTH ESSEX NHS FOUNDATION TRUST"]
[null,null,null,null,null,null,null,null,null,null,null,null,null,"QWU","COVENTRY AND WARWICKSHIRE ICB",null,"QWU","COVENTRY AND WARWICKSHIRE ICB",null,"QF7","RFR","THE ROTHERHAM NHS FOUNDATION TRUST","Specialist Services",null,"NW0","EAST SUSSEX HEALTHCARE NHS TRUST",null,"NW0","EAST SUSSEX HEALTHCARE NHS TRUST"]
[null,null,null,null,null,null,null,null,null,null,null,null,null,"QXU","SURREY HEARTLANDS ICB",null,"QXU","SURREY HEARTLANDS ICB",null,"QGH","RLQ","WYE VALLEY NHS TRUST","Community Inpatient Services",null,"NWV01","EASTLEIGH SOUTHERN PARISHES NETWORK LTD",null,"NWV01","EASTLEIGH SOUTHERN PARISHES NETWORK LTD"]
[null,null,null,null,null,null,null,null,null,null,null,null,null,"QYG","CHESHIRE AND MERSEYSIDE ICB",null,"QYG","CHESHIRE AND MERSEYSIDE ICB",null,"QH8","R1L","ESSEX PARTNERSHIP UNIVERSITY NHS FOUNDATION TRUST","Children & Family Services",null,"NY6","EPSOM AND ST HELIER UNIVERSITY HOSPITALS NHS TRUST",null,"NY6","EPSOM AND ST HELIER UNIVERSITY HOSPITALS NHS TRUST"]
[null,null,null,null,null,null,null,null,null,null,null,null,null,null,null,null,null,null,null,"QH8","R1L","ESSEX PARTNERSHIP UNIVERSITY NHS FOUNDATION TRUST","Community Healthcare Other",null,"NYG","ESSEX PARTNERSHIP UNIVERSITY NHS FOUNDATION TRUST",null,"NYG","ESSEX PARTNERSHIP UNIVERSITY NHS FOUNDATION TRUST"]
[null,null,null,null,null,null,null,null,null,null,null,null,null,null,null,null,null,null,null,"QH8","R1L","ESSEX PARTNERSHIP UNIVERSITY NHS FOUNDATION TRUST","Community Inpatient Services",null,"R0A","FIRST COMMUNITY HEALTH AND CARE CIC",null,"R0A","FIRST COMMUNITY HEALTH AND CARE CIC"]
[null,null,null,null,null,null,null,null,null,null,null,null,null,null,null,null,null,null,null,"QH8","R1L","ESSEX PARTNERSHIP UNIVERSITY NHS FOUNDATION TRUST","Community Nursing Services",null,"R0B","FRESHNEY PELHAM CARE LIMITED",null,"R0B","FRESHNEY PELHAM CARE LIMITED"]
[null,null,null,null,null,null,null,null,null,null,null,null,null,null,null,null,null,null,null,"QH8","R1L","ESSEX PARTNERSHIP UNIVERSITY NHS FOUNDATION TRUST","Rehabilitation & Therapy Services",null,"R1C","FRIMLEY HEALTH NHS FOUNDATION TRUST",null,"R1C","FRIMLEY HEALTH NHS FOUNDATION TRUST"]
[null,null,null,null,null,null,null,null,null,null,null,null,null,null,null,null,null,null,null,"QH8","R1L","ESSEX PARTNERSHIP UNIVERSITY NHS FOUNDATION TRUST","Specialist Services",null,"R1D","GATESHEAD HEALTH NHS FOUNDATION TRUST",null,"R1D","GATESHEAD HEALTH NHS FOUNDATION TRUST"]
[null,null,null,null,null,null,null,null,null,null,null,null,null,null,null,null,null,null,null,"QHL","RYW","BIRMINGHAM COMMUNITY HEALTHCARE NHS FOUNDATION TRUST","Children & Family Services",null,"R1F","GLOUCESTERSHIRE HEALTH AND CARE NHS FOUNDATION TRUST",null,"R1F","GLOUCESTERSHIRE HEALTH AND CARE NHS FOUNDATION TRUST"]
[null,null,null,null,null,null,null,null,null,null,null,null,null,null,null,null,null,null,null,"QHL","RYW","BIRMINGHAM COMMUNITY HEALTHCARE NHS FOUNDATION TRUST","Community Healthcare Other",null,"R1K","GP CARE UK",null,"R1K","GP CARE UK"]
[null,null,null,null,null,null,null,null,null,null,null,null,null,null,null,null,null,null,null,"QHL","RYW","BIRMINGHAM COMMUNITY HEALTHCARE NHS FOUNDATION TRUST","Community Inpatient Services",null,"R1L","GTD HEALTHCARE",null,"R1L","GTD HEALTHCARE"]
[null,null,null,null,null,null,null,null,null,null,null,null,null,null,null,null,null,null,null,"QHL","RYW","BIRMINGHAM COMMUNITY HEALTHCARE NHS FOUNDATION TRUST","Community Nursing Services",null,"RA2","GUY'S AND ST THOMAS' NHS FOUNDATION TRUST",null,"RA2","GUY'S AND ST THOMAS' NHS FOUNDATION TRUST"]
[null,null,null,null,null,null,null,null,null,null,null,null,null,null,null,null,null,null,null,"QHL","RYW","BIRMINGHAM COMMUNITY HEALTHCARE NHS FOUNDATION TRUST","Rehabilitation & Therapy Services",null,"RA9","HARROGATE AND DISTRICT NHS FOUNDATION TRUST",null,"RA9","HARROGATE AND DISTRICT NHS FOUNDATION TRUST"]
[null,null,null,null,null,null,null,null,null,null,null,null,null,null,null,null,null,null,null,"QHL","RYW","BIRMINGHAM COMMUNITY HEALTHCARE NHS FOUNDATION TRUST","Specialist Services",null,"RAP","HCRG CARE LTD",null,"RAP","HCRG CARE LTD"]
[null,null,null,null,null,null,null,null,null,null,null,null,null,null,null,null,null,null,null,"QHL","RRK","UNIVERSITY HOSPITALS BIRMINGHAM NHS FOUNDATION TRUST","Children & Family Services",null,"RAT","HCRG CARE SERVICES LTD",null,"RAT","HCRG CARE SERVICES LTD"]
[null,null,null,null,null,null,null,null,null,null,null,null,null,null,null,null,null,null,null,"QHL","RRK","UNIVERSITY HOSPITALS BIRMINGHAM NHS FOUNDATION TRUST","Community Healthcare Other",null,"RBK","HERTFORDSHIRE COMMUNITY NHS TRUST",null,"RBK","HERTFORDSHIRE COMMUNITY NHS TRUST"]
[null,null,null,null,null,null,null,null,null,null,null,null,null,null,null,null,null,null,null,"QHL","RRK","UNIVERSITY HOSPITALS BIRMINGHAM NHS FOUNDATION TRUST","Community Nursing Services",null,"RBN","HOMERTON HEALTHCARE NHS FOUNDATION TRUST",null,"RBN","HOMERTON HEALTHCARE NHS FOUNDATION TRUST"]
[null,null,null,null,null,null,null,null,null,null,null,null,null,null,null,null,null,null,null,"QHL","RRK","UNIVERSITY HOSPITALS BIRMINGHAM NHS FOUNDATION TRUST","Rehabilitation & Therapy Services",null,"RBS","HOUNSLOW AND RICHMOND COMMUNITY HEALTHCARE NHS TRUST",null,"RBS","HOUNSLOW AND RICHMOND COMMUNITY HEALTHCARE NHS TRUST"]
[null,null,null,null,null,null,null,null,null,null,null,null,null,null,null,null,null,null,null,"QHL","RRK","UNIVERSITY HOSPITALS BIRMINGHAM NHS FOUNDATION TRUST","Specialist Services",null,"RBT","HUMBER TEACHING NHS FOUNDATION TRUST",null,"RBT","HUMBER TEACHING NHS FOUNDATION TRUST"]
[null,null,null,null,null,null,null,null,null,null,null,null,null,null,null,null,null,null,null,"QHM","RXP","COUNTY DURHAM AND DARLINGTON NHS FOUNDATION TRUST","Community Healthcare Other",null,"RCB","INSIDEVUE LIMITED",null,"RCB","INSIDEVUE LIMITED"]
[null,null,null,null,null,null,null,null,null,null,null,null,null,null,null,null,null,null,null,"QHM","RXP","COUNTY DURHAM AND DARLINGTON NHS FOUNDATION TRUST","Community Inpatient Services",null,"RCD","ISLE OF WIGHT NHS TRUST",null,"RCD","ISLE OF WIGHT NHS TRUST"]
[null,null,null,null,null,null,null,null,null,null,null,null,null,null,null,null,null,null,null,"QHM","RXP","COUNTY DURHAM AND DARLINGTON NHS FOUNDATION TRUST","Community Nursing Services",null,"RCF","KENT COMMUNITY HEALTH NHS FOUNDATION TRUST",null,"RCF","KENT COMMUNITY HEALTH NHS FOUNDATION TRUST"]
[null,null,null,null,null,null,null,null,null,null,null,null,null,null,null,null,null,null,null,"QHM","RR7","GATESHEAD HEALTH NHS FOUNDATION TRUST","Specialist Services",null,"RCU","LANCASHIRE & SOUTH CUMBRIA NHS FOUNDATION TRUST",null,"RCU","LANCASHIRE & SOUTH CUMBRIA NHS FOUNDATION TRUST"]
[null,null,null,null,null,null,null,null,null,null,null,null,null,null,null,null,null,null,null,"QHM","RNN","NORTH CUMBRIA INTEGRATED CARE NHS FOUNDATION TRUST","Children & Family Services",null,"RDE","LANCASTER HOUSE CONSULTING DIAGNOSTICS SURGICAL LTD HQ",null,"RDE","LANCASTER HOUSE CONSULTING DIAGNOSTICS SURGICAL LTD HQ"]
[null,null,null,null,null,null,null,null,null,null,null,null,null,null,null,null,null,null,null,"QHM","RNN","NORTH CUMBRIA INTEGRATED CARE NHS FOUNDATION TRUST","Community Healthcare Other",null,"RDR","LEEDS COMMUNITY HEALTHCARE NHS TRUST",null,"RDR","LEEDS COMMUNITY HEALTHCARE NHS TRUST"]
[null,null,null,null,null,null,null,null,null,null,null,null,null,null,null,null,null,null,null,"QHM","RNN","NORTH CUMBRIA INTEGRATED CARE NHS FOUNDATION TRUST","Community Inpatient Services",null,"RDU","LEICESTERSHIRE PARTNERSHIP NHS TRUST",null,"RDU","LEICESTERSHIRE PARTNERSHIP NHS TRUST"]
[null,null,null,null,null,null,null,null,null,null,null,null,null,null,null,null,null,null,null,"QHM","RNN","NORTH CUMBRIA INTEGRATED CARE NHS FOUNDATION TRUST","Community Nursing Services",null,"RDY","LEWISHAM AND GREENWICH NHS TRUST",null,"RDY","LEWISHAM AND GREENWICH NHS TRUST"]
[null,null,null,null,null,null,null,null,null,null,null,null,null,null,null,null,null,null,null,"QHM","RNN","NORTH CUMBRIA INTEGRATED CARE NHS FOUNDATION TRUST","Rehabilitation & Therapy Services",null,"RFR","LINCOLNSHIRE COMMUNITY HEALTH SERVICES NHS TRUST",null,"RFR","LINCOLNSHIRE COMMUNITY HEALTH SERVICES NHS TRUST"]
[null,null,null,null,null,null,null,null,null,null,null,null,null,null,null,null,null,null,null,"QHM","RNN","NORTH CUMBRIA INTEGRATED CARE NHS FOUNDATION TRUST","Specialist Services",null,"RGR","LIVEWELL SOUTHWEST",null,"RGR","LIVEWELL SOUTHWEST"]
[null,null,null,null,null,null,null,null,null,null,null,null,null,null,null,null,null,null,null,"QHM","RVW","NORTH TEES AND HARTLEPOOL NHS FOUNDATION TRUST","Children & Family Services",null,"RH8","LLR PATIENT CARE LOCALLY",null,"RH8","LLR PATIENT CARE LOCALLY"]
[null,null,null,null,null,null,null,null,null,null,null,null,null,null,null,null,null,null,null,"QHM","RVW","NORTH TEES AND HARTLEPOOL NHS FOUNDATION TRUST","Community Nursing Services",null,"RHA","LOCALA COMMUNITY PARTNERSHIPS CIC",null,"RHA","LOCALA COMMUNITY PARTNERSHIPS CIC"]
[null,null,null,null,null,null,null,null,null,null,null,null,null,null,null,null,null,null,null,"QHM","RVW","NORTH TEES AND HARTLEPOOL NHS FOUNDATION TRUST","Rehabilitation & Therapy Services",null,"RHQ","LONDON NORTH WEST UNIVERSITY HEALTHCARE NHS TRUST",null,"RHQ","LONDON NORTH WEST UNIVERSITY HEALTHCARE NHS TRUST"]
[null,null,null,null,null,null,null,null,null,null,null,null,null,null,null,null,null,null,null,"QHM","RVW","NORTH TEES AND HARTLEPOOL NHS FOUNDATION TRUST","Specialist Services",null,"RJ1","MANCHESTER UNIVERSITY NHS FOUNDATION TRUST",null,"RJ1","MANCHESTER UNIVERSITY NHS FOUNDATION TRUST"]
[null,null,null,null,null,null,null,null,null,null,null,null,null,null,null,null,null,null,null,"QHM","RTF","NORTHUMBRIA HEALTHCARE NHS FOUNDATION TRUST","Community Nursing Services",null,"RJ2","MASTERCALL HEALTHCARE",null,"RJ2","MASTERCALL HEALTHCARE"]
[null,null,null,null,null,null,null,null,null,null,null,null,null,null,null,null,null,null,null,"QHM","RTF","NORTHUMBRIA HEALTHCARE NHS FOUNDATION TRUST","Rehabilitation & Therapy Services",null,"RJ6","MEDWAY COMMUNITY HEALTHCARE",null,"RJ6","MEDWAY COMMUNITY HEALTHCARE"]
[null,null,null,null,null,null,null,null,null,null,null,null,null,null,null,null,null,null,null,"QHM","RTF","NORTHUMBRIA HEALTHCARE NHS FOUNDATION TRUST","Specialist Services",null,"RJ7","MERSEY AND WEST LANCASHIRE TEACHING HOSPITALS NHS TRUST",null,"RJ7","MERSEY AND WEST LANCASHIRE TEACHING HOSPITALS NHS TRUST"]
[null,null,null,null,null,null,null,null,null,null,null,null,null,null,null,null,null,null,null,"QHM","RTR","SOUTH TEES HOSPITALS NHS FOUNDATION TRUST","Children & Family Services",null,"RJ8","MERSEY CARE NHS FOUNDATION TRUST",null,"RJ8","MERSEY CARE NHS FOUNDATION TRUST"]
[null,null,null,null,null,null,null,null,null,null,null,null,null,null,null,null,null,null,null,"QHM","RTR","SOUTH TEES HOSPITALS NHS FOUNDATION TRUST","Community Inpatient Services",null,"RJC","MID CHESHIRE HOSPITALS NHS FOUNDATION TRUST",null,"RJC","MID CHESHIRE HOSPITALS NHS FOUNDATION TRUST"]
[null,null,null,null,null,null,null,null,null,null,null,null,null,null,null,null,null,null,null,"QHM","RTR","SOUTH TEES HOSPITALS NHS FOUNDATION TRUST","Community Nursing Services",null,"RJL","MID HAMPSHIRE HEALTHCARE LIMITED",null,"RJL","MID HAMPSHIRE HEALTHCARE LIMITED"]
[null,null,null,null,null,null,null,null,null,null,null,null,null,null,null,null,null,null,null,"QHM","RTR","SOUTH TEES HOSPITALS NHS FOUNDATION TRUST","Rehabilitation & Therapy Services",null,"RJN","MID YORKSHIRE TEACHING NHS TRUST",null,"RJN","MID YORKSHIRE TEACHING NHS TRUST"]
[null,null,null,null,null,null,null,null,null,null,null,null,null,null,null,null,null,null,null,"QHM","RTR","SOUTH TEES HOSPITALS NHS FOUNDATION TRUST","Specialist Services",null,"RKE","MIDLANDS PARTNERSHIP NHS FOUNDATION TRUST",null,"RKE","MIDLANDS PARTNERSHIP NHS FOUNDATION TRUST"]
[null,null,null,null,null,null,null,null,null,null,null,null,null,null,null,null,null,null,null,"QHM","R0B","SOUTH TYNESIDE AND SUNDERLAND NHS FOUNDATION TRUST","Children & Family Services",null,"RKL","MILTON KEYNES URGENT CARE SERVICES CIC HQ",null,"RKL","MILTON KEYNES URGENT CARE SERVICES CIC HQ"]
[null,null,null,null,null,null,null,null,null,null,null,null,null,null,null,null,null,null,null,"QHM","R0B","SOUTH TYNESIDE AND SUNDERLAND NHS FOUNDATION TRUST","Community Healthcare Other",null,"RL4","NORFOLK COMMUNITY HEALTH AND CARE NHS TRUST",null,"RL4","NORFOLK COMMUNITY HEALTH AND CARE NHS TRUST"]
[null,null,null,null,null,null,null,null,null,null,null,null,null,null,null,null,null,null,null,"QHM","R0B","SOUTH TYNESIDE AND SUNDERLAND NHS FOUNDATION TRUST","Community Inpatient Services",null,"RLQ","NORTH CUMBRIA INTEGRATED CARE NHS FOUNDATION TRUST",null,"RLQ","NORTH CUMBRIA INTEGRATED CARE NHS FOUNDATION TRUST"]
[null,null,null,null,null,null,null,null,null,null,null,null,null,null,null,null,null,null,null,"QHM","R0B","SOUTH TYNESIDE AND SUNDERLAND NHS FOUNDATION TRUST","Community Nursing Services",null,"RMC","NORTH EAST LONDON NHS FOUNDATION TRUST",null,"RMC","NORTH EAST LONDON NHS FOUNDATION TRUST"]
[null,null,null,null,null,null,null,null,null,null,null,null,null,null,null,null,null,null,null,"QHM","R0B","SOUTH TYNESIDE AND SUNDERLAND NHS FOUNDATION TRUST","Rehabilitation & Therapy Services",null,"RMP","NORTH HAMPSHIRE URGENT CARE",null,"RMP","NORTH HAMPSHIRE URGENT CARE"]
[null,null,null,null,null,null,null,null,null,null,null,null,null,null,null,null,null,null,null,"QHM","R0B","SOUTH TYNESIDE AND SUNDERLAND NHS FOUNDATION TRUST","Specialist Services",null,"RNA","NORTH MIDDLESEX UNIVERSITY HOSPITAL NHS TRUST",null,"RNA","NORTH MIDDLESEX UNIVERSITY HOSPITAL NHS TRUST"]
[null,null,null,null,null,null,null,null,null,null,null,null,null,null,null,null,null,null,null,"QHM","RTD","THE NEWCASTLE UPON TYNE HOSPITALS NHS FOUNDATION TRUST","Community Healthcare Other",null,"RNN","NORTH TEES AND HARTLEPOOL NHS FOUNDATION TRUST",null,"RNN","NORTH TEES AND HARTLEPOOL NHS FOUNDATION TRUST"]
[null,null,null,null,null,null,null,null,null,null,null,null,null,null,null,null,null,null,null,"QJ2","RY8","DERBYSHIRE COMMUNITY HEALTH SERVICES NHS FOUNDATION TRUST","Children & Family Services",null,"RP1","NORTHAMPTONSHIRE HEALTHCARE NHS FOUNDATION TRUST",null,"RP1","NORTHAMPTONSHIRE HEALTHCARE NHS FOUNDATION TRUST"]
[null,null,null,null,null,null,null,null,null,null,null,null,null,null,null,null,null,null,null,"QJ2","RY8","DERBYSHIRE COMMUNITY HEALTH SERVICES NHS FOUNDATION TRUST","Community Healthcare Other",null,"RPG","NORTHERN LINCOLNSHIRE AND GOOLE NHS FOUNDATION TRUST",null,"RPG","NORTHERN LINCOLNSHIRE AND GOOLE NHS FOUNDATION TRUST"]
[null,null,null,null,null,null,null,null,null,null,null,null,null,null,null,null,null,null,null,"QJ2","RY8","DERBYSHIRE COMMUNITY HEALTH SERVICES NHS FOUNDATION TRUST","Community Inpatient Services",null,"RQM","NORTHUMBRIA HEALTHCARE NHS FOUNDATION TRUST",null,"RQM","NORTHUMBRIA HEALTHCARE NHS FOUNDATION TRUST"]
[null,null,null,null,null,null,null,null,null,null,null,null,null,null,null,null,null,null,null,"QJ2","RY8","DERBYSHIRE COMMUNITY HEALTH SERVICES NHS FOUNDATION TRUST","Community Nursing Services",null,"RQX","NOTTINGHAM UNIVERSITY HOSPITALS NHS TRUST",null,"RQX","NOTTINGHAM UNIVERSITY HOSPITALS NHS TRUST"]
[null,null,null,null,null,null,null,null,null,null,null,null,null,null,null,null,null,null,null,"QJ2","RY8","DERBYSHIRE COMMUNITY HEALTH SERVICES NHS FOUNDATION TRUST","Rehabilitation & Therapy Services",null,"RR7","NOTTINGHAMSHIRE HEALTHCARE NHS FOUNDATION TRUST",null,"RR7","NOTTINGHAMSHIRE HEALTHCARE NHS FOUNDATION TRUST"]
[null,null,null,null,null,null,null,null,null,null,null,null,null,null,null,null,null,null,null,"QJ2","RY8","DERBYSHIRE COMMUNITY HEALTH SERVICES NHS FOUNDATION TRUST","Specialist Services",null,"RRE","NOVUS HEALTH LTD",null,"RRE","NOVUS HEALTH LTD"]
[null,null,null,null,null,null,null,null,null,null,null,null,null,null,null,null,null,null,null,"QJ2","RXM","DERBYSHIRE HEALTHCARE NHS FOUNDATION TRUST","Children & Family Services",null,"RRF","OXLEAS NHS FOUNDATION TRUST",null,"RRF","OXLEAS NHS FOUNDATION TRUST"]
[null,null,null,null,null,null,null,null,null,null,null,null,null,null,null,null,null,null,null,"QJG","RDE","EAST SUFFOLK AND NORTH ESSEX NHS FOUNDATION TRUST","Community Healthcare Other",null,"RRK","OZONE HEALTH",null,"RRK","OZONE HEALTH"]
[null,null,null,null,null,null,null,null,null,null,null,null,null,null,null,null,null,null,null,"QJG","RDE","EAST SUFFOLK AND NORTH ESSEX NHS FOUNDATION TRUST","Community Nursing Services",null,"RT1","PENNINE MUSCULOSKELETAL PARTNERSHIP (ICATS)",null,"RT1","PENNINE MUSCULOSKELETAL PARTNERSHIP (ICATS)"]
[null,null,null,null,null,null,null,null,null,null,null,null,null,null,null,null,null,null,null,"QJG","RDE","EAST SUFFOLK AND NORTH ESSEX NHS FOUNDATION TRUST","Rehabilitation & Therapy Services",null,"RT5","PRACTICE PLUS GROUP",null,"RT5","PRACTICE PLUS GROUP"]
[null,null,null,null,null,null,null,null,null,null,null,null,null,null,null,null,null,null,null,"QJG","RDE","EAST SUFFOLK AND NORTH ESSEX NHS FOUNDATION TRUST","Specialist Services",null,"RTD","PROVIDE",null,"RTD","PROVIDE"]
[null,null,null,null,null,null,null,null,null,null,null,null,null,null,null,null,null,null,null,"QJG","RGR","WEST SUFFOLK NHS FOUNDATION TRUST","Children & Family Services",null,"RTF","ROTHERHAM DONCASTER AND SOUTH HUMBER NHS FOUNDATION TRUST",null,"RTF","ROTHERHAM DONCASTER AND SOUTH HUMBER NHS FOUNDATION TRUST"]
[null,null,null,null,null,null,null,null,null,null,null,null,null,null,null,null,null,null,null,"QJG","RGR","WEST SUFFOLK NHS FOUNDATION TRUST","Community Healthcare Other",null,"RTQ","ROYAL DEVON UNIVERSITY HEALTHCARE NHS FOUNDATION TRUST",null,"RTQ","ROYAL DEVON UNIVERSITY HEALTHCARE NHS FOUNDATION TRUST"]
[null,null,null,null,null,null,null,null,null,null,null,null,null,null,null,null,null,null,null,"QJG","RGR","WEST SUFFOLK NHS FOUNDATION TRUST","Community Inpatient Services",null,"RTR","ROYAL SURREY COUNTY HOSPITAL NHS FOUNDATION TRUST",null,"RTR","ROYAL SURREY COUNTY HOSPITAL NHS FOUNDATION TRUST"]
[null,null,null,null,null,null,null,null,null,null,null,null,null,null,null,null,null,null,null,"QJG","RGR","WEST SUFFOLK NHS FOUNDATION TRUST","Community Nursing Services",null,"RTX","SHEFFIELD CHILDREN'S NHS FOUNDATION TRUST",null,"RTX","SHEFFIELD CHILDREN'S NHS FOUNDATION TRUST"]
[null,null,null,null,null,null,null,null,null,null,null,null,null,null,null,null,null,null,null,"QJG","RGR","WEST SUFFOLK NHS FOUNDATION TRUST","Specialist Services",null,"RV3","SHEFFIELD TEACHING HOSPITALS NHS FOUNDATION TRUST",null,"RV3","SHEFFIELD TEACHING HOSPITALS NHS FOUNDATION TRUST"]
[null,null,null,null,null,null,null,null,null,null,null,null,null,null,null,null,null,null,null,"QJK","RH8","ROYAL DEVON UNIVERSITY HEALTHCARE NHS FOUNDATION TRUST","Community Healthcare Other",null,"RV9","SHROPSHIRE COMMUNITY HEALTH NHS TRUST",null,"RV9","SHROPSHIRE COMMUNITY HEALTH NHS TRUST"]
[null,null,null,null,null,null,null,null,null,null,null,null,null,null,null,null,null,null,null,"QJK","RH8","ROYAL DEVON UNIVERSITY HEALTHCARE NHS FOUNDATION TRUST","Community Inpatient Services",null,"RVR","SIRONA CARE & HEALTH",null,"RVR","SIRONA CARE & HEALTH"]
[null,null,null,null,null,null,null,null,null,null,null,null,null,null,null,null,null,null,null,"QJK","RH8","ROYAL DEVON UNIVERSITY HEALTHCARE NHS FOUNDATION TRUST","Community Nursing Services",null,"RVW","SOLENT MEDICAL SERVICES LIMITED",null,"RVW","SOLENT MEDICAL SERVICES LIMITED"]
[null,null,null,null,null,null,null,null,null,null,null,null,null,null,null,null,null,null,null,"QJK","RH8","ROYAL DEVON UNIVERSITY HEALTHCARE NHS FOUNDATION TRUST","Rehabilitation & Therapy Services",null,"RW1","SOLENT NHS TRUST",null,"RW1","SOLENT NHS TRUST"]
[null,null,null,null,null,null,null,null,null,null,null,null,null,null,null,null,null,null,null,"QJK","RH8","ROYAL DEVON UNIVERSITY HEALTHCARE NHS FOUNDATION TRUST","Specialist Services",null,"RW4","SOUTH TEES HOSPITALS NHS FOUNDATION TRUST",null,"RW4","SOUTH TEES HOSPITALS NHS FOUNDATION TRUST"]
[null,null,null,null,null,null,null,null,null,null,null,null,null,null,null,null,null,null,null,"QJK","RA9","TORBAY AND SOUTH DEVON NHS FOUNDATION TRUST","Children & Family Services",null,"RW5","SOUTH TYNESIDE AND SUNDERLAND NHS FOUNDATION TRUST",null,"RW5","SOUTH TYNESIDE AND SUNDERLAND NHS FOUNDATION TRUST"]
[null,null,null,null,null,null,null,null,null,null,null,null,null,null,null,null,null,null,null,"QJK","RA9","TORBAY AND SOUTH DEVON NHS FOUNDATION TRUST","Community Healthcare Other",null,"RWJ","SOUTH WARWICKSHIRE UNIVERSITY NHS FOUNDATION TRUST",null,"RWJ","SOUTH WARWICKSHIRE UNIVERSITY NHS FOUNDATION TRUST"]
[null,null,null,null,null,null,null,null,null,null,null,null,null,null,null,null,null,null,null,"QJK","RA9","TORBAY AND SOUTH DEVON NHS FOUNDATION TRUST","Community Inpatient Services",null,"RWK","SOUTH WEST YORKSHIRE PARTNERSHIP NHS FOUNDATION TRUST",null,"RWK","SOUTH WEST YORKSHIRE PARTNERSHIP NHS FOUNDATION TRUST"]
[null,null,null,null,null,null,null,null,null,null,null,null,null,null,null,null,null,null,null,"QJK","RA9","TORBAY AND SOUTH DEVON NHS FOUNDATION TRUST","Community Nursing Services",null,"RWX","SOUTHERN HEALTH NHS FOUNDATION TRUST",null,"RWX","SOUTHERN HEALTH NHS FOUNDATION TRUST"]
[null,null,null,null,null,null,null,null,null,null,null,null,null,null,null,null,null,null,null,"QJK","RA9","TORBAY AND SOUTH DEVON NHS FOUNDATION TRUST","Rehabilitation & Therapy Services",null,"RWY","ST GEORGE'S UNIVERSITY HOSPITALS NHS FOUNDATION TRUST",null,"RWY","ST GEORGE'S UNIVERSITY HOSPITALS NHS FOUNDATION TRUST"]
[null,null,null,null,null,null,null,null,null,null,null,null,null,null,null,null,null,null,null,"QJK","RA9","TORBAY AND SOUTH DEVON NHS FOUNDATION TRUST","Specialist Services",null,"RX1","STOCKPORT NHS FOUNDATION TRUST",null,"RX1","STOCKPORT NHS FOUNDATION TRUST"]
[null,null,null,null,null,null,null,null,null,null,null,null,null,null,null,null,null,null,null,"QJM","RY5","LINCOLNSHIRE COMMUNITY HEALTH SERVICES NHS TRUST","Children & Family Services",null,"RXA","SUFFOLK GP FEDERATION",null,"RXA","SUFFOLK GP FEDERATION"]
[null,null,null,null,null,null,null,null,null,null,null,null,null,null,null,null,null,null,null,"QJM","RY5","LINCOLNSHIRE COMMUNITY HEALTH SERVICES NHS TRUST","Community Healthcare Other",null,"RXC","SUSSEX COMMUNITY DERMATOLOGY SERVICE",null,"RXC","SUSSEX COMMUNITY DERMATOLOGY SERVICE"]
[null,null,null,null,null,null,null,null,null,null,null,null,null,null,null,null,null,null,null,"QJM","RY5","LINCOLNSHIRE COMMUNITY HEALTH SERVICES NHS TRUST","Community Inpatient Services",null,"RXE","SUSSEX COMMUNITY NHS FOUNDATION TRUST",null,"RXE","SUSSEX COMMUNITY NHS FOUNDATION TRUST"]
[null,null,null,null,null,null,null,null,null,null,null,null,null,null,null,null,null,null,null,"QJM","RY5","LINCOLNSHIRE COMMUNITY HEALTH SERVICES NHS TRUST","Community Nursing Services",null,"RXF","TAMESIDE AND GLOSSOP INTEGRATED CARE NHS FOUNDATION TRUST",null,"RXF","TAMESIDE AND GLOSSOP INTEGRATED CARE NHS FOUNDATION TRUST"]
[null,null,null,null,null,null,null,null,null,null,null,null,null,null,null,null,null,null,null,"QJM","RY5","LINCOLNSHIRE COMMUNITY HEALTH SERVICES NHS TRUST","Rehabilitation & Therapy Services",null,"RXG","TAURUS HEALTHCARE LTD",null,"RXG","TAURUS HEALTHCARE LTD"]
[null,null,null,null,null,null,null,null,null,null,null,null,null,null,null,null,null,null,null,"QJM","RY5","LINCOLNSHIRE COMMUNITY HEALTH SERVICES NHS TRUST","Specialist Services",null,"RXL","THE DUDLEY GROUP NHS FOUNDATION TRUST",null,"RXL","THE DUDLEY GROUP NHS FOUNDATION TRUST"]
[null,null,null,null,null,null,null,null,null,null,null,null,null,null,null,null,null,null,null,"QK1","RT5","LEICESTERSHIRE PARTNERSHIP NHS TRUST","Children & Family Services",null,"RXM","THE NEWCASTLE UPON TYNE HOSPITALS NHS FOUNDATION TRUST",null,"RXM","THE NEWCASTLE UPON TYNE HOSPITALS NHS FOUNDATION TRUST"]
[null,null,null,null,null,null,null,null,null,null,null,null,null,null,null,null,null,null,null,"QK1","RT5","LEICESTERSHIRE PARTNERSHIP NHS TRUST","Community Healthcare Other",null,"RXP","THE ROTHERHAM NHS FOUNDATION TRUST",null,"RXP","THE ROTHERHAM NHS FOUNDATION TRUST"]
[null,null,null,null,null,null,null,null,null,null,null,null,null,null,null,null,null,null,null,"QK1","RT5","LEICESTERSHIRE PARTNERSHIP NHS TRUST","Community Inpatient Services",null,"RXQ","THE ROYAL HOSPITAL FOR NEURO-DISABILITY",null,"RXQ","THE ROYAL HOSPITAL FOR NEURO-DISABILITY"]
[null,null,null,null,null,null,null,null,null,null,null,null,null,null,null,null,null,null,null,"QK1","RT5","LEICESTERSHIRE PARTNERSHIP NHS TRUST","Community Nursing Services",null,"RXR","THE ROYAL WOLVERHAMPTON NHS TRUST",null,"RXR","THE ROYAL WOLVERHAMPTON NHS TRUST"]
[null,null,null,null,null,null,null,null,null,null,null,null,null,null,null,null,null,null,null,"QK1","RT5","LEICESTERSHIRE PARTNERSHIP NHS TRUST","Rehabilitation & Therapy Services",null,"RY2","THE STROKE ASSOCIATION",null,"RY2","THE STROKE ASSOCIATION"]
[null,null,null,null,null,null,null,null,null,null,null,null,null,null,null,null,null,null,null,"QK1","RT5","LEICESTERSHIRE PARTNERSHIP NHS TRUST","Specialist Services",null,"RY3","TORBAY AND SOUTH DEVON NHS FOUNDATION TRUST",null,"RY3","TORBAY AND SOUTH DEVON NHS FOUNDATION TRUST"]
[null,null,null,null,null,null,null,null,null,null,null,null,null,null,null,null,null,null,null,"QKK","RJ1","GUY'S AND ST THOMAS' NHS FOUNDATION TRUST","Children & Family Services",null,"RY4","TURNING POINT - BIRCHWOOD NURSING HOME",null,"RY4","TURNING POINT - BIRCHWOOD NURSING HOME"]
[null,null,null,null,null,null,null,null,null,null,null,null,null,null,null,null,null,null,null,"QKK","RJ1","GUY'S AND ST THOMAS' NHS FOUNDATION TRUST","Community Nursing Services",null,"RY5","UNIVERSITY HOSPITALS BIRMINGHAM NHS FOUNDATION TRUST",null,"RY5","UNIVERSITY HOSPITALS BIRMINGHAM NHS FOUNDATION TRUST"]
[null,null,null,null,null,null,null,null,null,null,null,null,null,null,null,null,null,null,null,"QKK","RJ1","GUY'S AND ST THOMAS' NHS FOUNDATION TRUST","Rehabilitation & Therapy Services",null,"RY6","UNIVERSITY HOSPITALS OF MORECAMBE BAY NHS FOUNDATION TRUST",null,"RY6","UNIVERSITY HOSPITALS OF MORECAMBE BAY NHS FOUNDATION TRUST"]
[null,null,null,null,null,null,null,null,null,null,null,null,null,null,null,null,null,null,null,"QKK","RJ1","GUY'S AND ST THOMAS' NHS FOUNDATION TRUST","Specialist Services",null,"RY7","WALSALL HEALTHCARE NHS TRUST",null,"RY7","WALSALL HEALTHCARE NHS TRUST"]
[null,null,null,null,null,null,null,null,null,null,null,null,null,null,null,null,null,null,null,"QKK","RJ2","LEWISHAM AND GREENWICH NHS TRUST","Children & Family Services",null,"RY8","WEST LONDON NHS TRUST",null,"RY8","WEST LONDON NHS TRUST"]
[null,null,null,null,null,null,null,null,null,null,null,null,null,null,null,null,null,null,null,"QKK","RJ2","LEWISHAM AND GREENWICH NHS TRUST","Community Healthcare Other",null,"RY9","WEST SUFFOLK NHS FOUNDATION TRUST",null,"RY9","WEST SUFFOLK NHS FOUNDATION TRUST"]
[null,null,null,null,null,null,null,null,null,null,null,null,null,null,null,null,null,null,null,"QKK","RJ2","LEWISHAM AND GREENWICH NHS TRUST","Community Nursing Services",null,"RYV","WHITTINGTON HEALTH NHS TRUST",null,"RYV","WHITTINGTON HEALTH NHS TRUST"]
[null,null,null,null,null,null,null,null,null,null,null,null,null,null,null,null,null,null,null,"QKK","RJ2","LEWISHAM AND GREENWICH NHS TRUST","Rehabilitation & Therapy Services",null,"RYW","WILTSHIRE HEALTH & CARE",null,"RYW","WILTSHIRE HEALTH & CARE"]
[null,null,null,null,null,null,null,null,null,null,null,null,null,null,null,null,null,null,null,"QKK","RJ2","LEWISHAM AND GREENWICH NHS TRUST","Specialist Services",null,"RYX","WIRRAL COMMUNITY HEALTH AND CARE NHS FOUNDATION TRUST",null,"RYX","WIRRAL COMMUNITY HEALTH AND CARE NHS FOUNDATION TRUST"]
[null,null,null,null,null,null,null,null,null,null,null,null,null,null,null,null,null,null,null,"QKK","RPG","OXLEAS NHS FOUNDATION TRUST","Children & Family Services",null,"RYY","WRIGHTINGTON, WIGAN AND LEIGH NHS FOUNDATION TRUST",null,"RYY","WRIGHTINGTON, WIGAN AND LEIGH NHS FOUNDATION TRUST"]
[null,null,null,null,null,null,null,null,null,null,null,null,null,null,null,null,null,null,null,"QKK","RPG","OXLEAS NHS FOUNDATION TRUST","Community Healthcare Other",null,"TAD","WYE VALLEY NHS TRUST",null,"TAD","WYE VALLEY NHS TRUST"]
[null,null,null,null,null,null,null,null,null,null,null,null,null,null,null,null,null,null,null,"QKK","RPG","OXLEAS NHS FOUNDATION TRUST","Community Inpatient Services",null,"TAJ","YORK AND SCARBOROUGH TEACHING HOSPITALS NHS FOUNDATION TRUST",null,"TAJ","YORK AND SCARBOROUGH TEACHING HOSPITALS NHS FOUNDATION TRUST"]
[null,null,null,null,null,null,null,null,null,null,null,null,null,null,null,null,null,null,null,"QKK","RPG","OXLEAS NHS FOUNDATION TRUST","Community Nursing Services",null,"VLN99","YOUR HEALTHCARE",null,"VLN99","YOUR HEALTHCARE"]
[null,null,null,null,null,null,null,null,null,null,null,null,null,null,null,null,null,null,null,"QKK","RPG","OXLEAS NHS FOUNDATION TRUST","Rehabilitation & Therapy Services"]
[null,null,null,null,null,null,null,null,null,null,null,null,null,null,null,null,null,null,null,"QKK","RPG","OXLEAS NHS FOUNDATION TRUST","Specialist Services"]
[null,null,null,null,null,null,null,null,null,null,null,null,null,null,null,null,null,null,null,"QKS","RYY","KENT COMMUNITY HEALTH NHS FOUNDATION TRUST","Children & Family Services"]
[null,null,null,null,null,null,null,null,null,null,null,null,null,null,null,null,null,null,null,"QKS","RYY","KENT COMMUNITY HEALTH NHS FOUNDATION TRUST","Community Healthcare Other"]
[null,null,null,null,null,null,null,null,null,null,null,null,null,null,null,null,null,null,null,"QKS","RYY","KENT COMMUNITY HEALTH NHS FOUNDATION TRUST","Community Inpatient Services"]
[null,null,null,null,null,null,null,null,null,null,null,null,null,null,null,null,null,null,null,"QKS","RYY","KENT COMMUNITY HEALTH NHS FOUNDATION TRUST","Community Nursing Services"]
[null,null,null,null,null,null,null,null,null,null,null,null,null,null,null,null,null,null,null,"QKS","RYY","KENT COMMUNITY HEALTH NHS FOUNDATION TRUST","Rehabilitation & Therapy Services"]
[null,null,null,null,null,null,null,null,null,null,null,null,null,null,null,null,null,null,null,"QKS","RYY","KENT COMMUNITY HEALTH NHS FOUNDATION TRUST","Specialist Services"]
[null,null,null,null,null,null,null,null,null,null,null,null,null,null,null,null,null,null,null,"QM7","RY4","HERTFORDSHIRE COMMUNITY NHS TRUST","Children & Family Services"]
[null,null,null,null,null,null,null,null,null,null,null,null,null,null,null,null,null,null,null,"QM7","RY4","HERTFORDSHIRE COMMUNITY NHS TRUST","Community Inpatient Services"]
[null,null,null,null,null,null,null,null,null,null,null,null,null,null,null,null,null,null,null,"QM7","RY4","HERTFORDSHIRE COMMUNITY NHS TRUST","Community Nursing Services"]
[null,null,null,null,null,null,null,null,null,null,null,null,null,null,null,null,null,null,null,"QM7","RY4","HERTFORDSHIRE COMMUNITY NHS TRUST","Rehabilitation & Therapy Services"]
[null,null,null,null,null,null,null,null,null,null,null,null,null,null,null,null,null,null,null,"QM7","RY4","HERTFORDSHIRE COMMUNITY NHS TRUST","Specialist Services"]
[null,null,null,null,null,null,null,null,null,null,null,null,null,null,null,null,null,null,null,"QMF","RWK","EAST LONDON NHS FOUNDATION TRUST","Children & Family Services"]
[null,null,null,null,null,null,null,null,null,null,null,null,null,null,null,null,null,null,null,"QMF","RWK","EAST LONDON NHS FOUNDATION TRUST","Community Healthcare Other"]
[null,null,null,null,null,null,null,null,null,null,null,null,null,null,null,null,null,null,null,"QMF","RWK","EAST LONDON NHS FOUNDATION TRUST","Community Inpatient Services"]
[null,null,null,null,null,null,null,null,null,null,null,null,null,null,null,null,null,null,null,"QMF","RWK","EAST LONDON NHS FOUNDATION TRUST","Community Nursing Services"]
[null,null,null,null,null,null,null,null,null,null,null,null,null,null,null,null,null,null,null,"QMF","RWK","EAST LONDON NHS FOUNDATION TRUST","Rehabilitation & Therapy Services"]
[null,null,null,null,null,null,null,null,null,null,null,null,null,null,null,null,null,null,null,"QMF","RWK","EAST LONDON NHS FOUNDATION TRUST","Specialist Services"]
[null,null,null,null,null,null,null,null,null,null,null,null,null,null,null,null,null,null,null,"QMF","RQX","HOMERTON HEALTHCARE NHS FOUNDATION TRUST","Children & Family Services"]
[null,null,null,null,null,null,null,null,null,null,null,null,null,null,null,null,null,null,null,"QMF","RQX","HOMERTON HEALTHCARE NHS FOUNDATION TRUST","Community Nursing Services"]
[null,null,null,null,null,null,null,null,null,null,null,null,null,null,null,null,null,null,null,"QMF","RQX","HOMERTON HEALTHCARE NHS FOUNDATION TRUST","Rehabilitation & Therapy Services"]
[null,null,null,null,null,null,null,null,null,null,null,null,null,null,null,null,null,null,null,"QMF","RQX","HOMERTON HEALTHCARE NHS FOUNDATION TRUST","Specialist Services"]
[null,null,null,null,null,null,null,null,null,null,null,null,null,null,null,null,null,null,null,"QMF","RAT","NORTH EAST LONDON NHS FOUNDATION TRUST","Children & Family Services"]
[null,null,null,null,null,null,null,null,null,null,null,null,null,null,null,null,null,null,null,"QMF","RAT","NORTH EAST LONDON NHS FOUNDATION TRUST","Community Healthcare Other"]
[null,null,null,null,null,null,null,null,null,null,null,null,null,null,null,null,null,null,null,"QMF","RAT","NORTH EAST LONDON NHS FOUNDATION TRUST","Community Inpatient Services"]
[null,null,null,null,null,null,null,null,null,null,null,null,null,null,null,null,null,null,null,"QMF","RAT","NORTH EAST LONDON NHS FOUNDATION TRUST","Community Nursing Services"]
[null,null,null,null,null,null,null,null,null,null,null,null,null,null,null,null,null,null,null,"QMF","RAT","NORTH EAST LONDON NHS FOUNDATION TRUST","Rehabilitation & Therapy Services"]
[null,null,null,null,null,null,null,null,null,null,null,null,null,null,null,null,null,null,null,"QMF","RAT","NORTH EAST LONDON NHS FOUNDATION TRUST","Specialist Services"]
[null,null,null,null,null,null,null,null,null,null,null,null,null,null,null,null,null,null,null,"QMJ","RV3","CENTRAL AND NORTH WEST LONDON NHS FOUNDATION TRUST","Children & Family Services"]
[null,null,null,null,null,null,null,null,null,null,null,null,null,null,null,null,null,null,null,"QMJ","RV3","CENTRAL AND NORTH WEST LONDON NHS FOUNDATION TRUST","Community Healthcare Other"]
[null,null,null,null,null,null,null,null,null,null,null,null,null,null,null,null,null,null,null,"QMJ","RV3","CENTRAL AND NORTH WEST LONDON NHS FOUNDATION TRUST","Community Inpatient Services"]
[null,null,null,null,null,null,null,null,null,null,null,null,null,null,null,null,null,null,null,"QMJ","RV3","CENTRAL AND NORTH WEST LONDON NHS FOUNDATION TRUST","Community Nursing Services"]
[null,null,null,null,null,null,null,null,null,null,null,null,null,null,null,null,null,null,null,"QMJ","RV3","CENTRAL AND NORTH WEST LONDON NHS FOUNDATION TRUST","Rehabilitation & Therapy Services"]
[null,null,null,null,null,null,null,null,null,null,null,null,null,null,null,null,null,null,null,"QMJ","RV3","CENTRAL AND NORTH WEST LONDON NHS FOUNDATION TRUST","Specialist Services"]
[null,null,null,null,null,null,null,null,null,null,null,null,null,null,null,null,null,null,null,"QMJ","RAP","NORTH MIDDLESEX UNIVERSITY HOSPITAL NHS TRUST","Community Healthcare Other"]
[null,null,null,null,null,null,null,null,null,null,null,null,null,null,null,null,null,null,null,"QMJ","RAP","NORTH MIDDLESEX UNIVERSITY HOSPITAL NHS TRUST","Community Inpatient Services"]
[null,null,null,null,null,null,null,null,null,null,null,null,null,null,null,null,null,null,null,"QMJ","RAP","NORTH MIDDLESEX UNIVERSITY HOSPITAL NHS TRUST","Rehabilitation & Therapy Services"]
[null,null,null,null,null,null,null,null,null,null,null,null,null,null,null,null,null,null,null,"QMJ","RKE","WHITTINGTON HEALTH NHS TRUST","Children & Family Services"]
[null,null,null,null,null,null,null,null,null,null,null,null,null,null,null,null,null,null,null,"QMJ","RKE","WHITTINGTON HEALTH NHS TRUST","Community Healthcare Other"]
[null,null,null,null,null,null,null,null,null,null,null,null,null,null,null,null,null,null,null,"QMJ","RKE","WHITTINGTON HEALTH NHS TRUST","Community Nursing Services"]
[null,null,null,null,null,null,null,null,null,null,null,null,null,null,null,null,null,null,null,"QMJ","RKE","WHITTINGTON HEALTH NHS TRUST","Rehabilitation & Therapy Services"]
[null,null,null,null,null,null,null,null,null,null,null,null,null,null,null,null,null,null,null,"QMJ","RKE","WHITTINGTON HEALTH NHS TRUST","Specialist Services"]
[null,null,null,null,null,null,null,null,null,null,null,null,null,null,null,null,null,null,null,"QMM","RY3","NORFOLK COMMUNITY HEALTH AND CARE NHS TRUST","Children & Family Services"]
[null,null,null,null,null,null,null,null,null,null,null,null,null,null,null,null,null,null,null,"QMM","RY3","NORFOLK COMMUNITY HEALTH AND CARE NHS TRUST","Community Inpatient Services"]
[null,null,null,null,null,null,null,null,null,null,null,null,null,null,null,null,null,null,null,"QMM","RY3","NORFOLK COMMUNITY HEALTH AND CARE NHS TRUST","Community Nursing Services"]
[null,null,null,null,null,null,null,null,null,null,null,null,null,null,null,null,null,null,null,"QMM","RY3","NORFOLK COMMUNITY HEALTH AND CARE NHS TRUST","Rehabilitation & Therapy Services"]
[null,null,null,null,null,null,null,null,null,null,null,null,null,null,null,null,null,null,null,"QMM","RY3","NORFOLK COMMUNITY HEALTH AND CARE NHS TRUST","Specialist Services"]
[null,null,null,null,null,null,null,null,null,null,null,null,null,null,null,null,null,null,null,"QNC","RRE","MIDLANDS PARTNERSHIP NHS FOUNDATION TRUST","Children & Family Services"]
[null,null,null,null,null,null,null,null,null,null,null,null,null,null,null,null,null,null,null,"QNC","RRE","MIDLANDS PARTNERSHIP NHS FOUNDATION TRUST","Community Healthcare Other"]
[null,null,null,null,null,null,null,null,null,null,null,null,null,null,null,null,null,null,null,"QNC","RRE","MIDLANDS PARTNERSHIP NHS FOUNDATION TRUST","Community Inpatient Services"]
[null,null,null,null,null,null,null,null,null,null,null,null,null,null,null,null,null,null,null,"QNC","RRE","MIDLANDS PARTNERSHIP NHS FOUNDATION TRUST","Community Nursing Services"]
[null,null,null,null,null,null,null,null,null,null,null,null,null,null,null,null,null,null,null,"QNC","RRE","MIDLANDS PARTNERSHIP NHS FOUNDATION TRUST","Rehabilitation & Therapy Services"]
[null,null,null,null,null,null,null,null,null,null,null,null,null,null,null,null,null,null,null,"QNC","RRE","MIDLANDS PARTNERSHIP NHS FOUNDATION TRUST","Specialist Services"]
[null,null,null,null,null,null,null,null,null,null,null,null,null,null,null,null,null,null,null,"QNQ","RWX","BERKSHIRE HEALTHCARE NHS FOUNDATION TRUST","Children & Family Services"]
[null,null,null,null,null,null,null,null,null,null,null,null,null,null,null,null,null,null,null,"QNQ","RWX","BERKSHIRE HEALTHCARE NHS FOUNDATION TRUST","Community Healthcare Other"]
[null,null,null,null,null,null,null,null,null,null,null,null,null,null,null,null,null,null,null,"QNQ","RWX","BERKSHIRE HEALTHCARE NHS FOUNDATION TRUST","Community Inpatient Services"]
[null,null,null,null,null,null,null,null,null,null,null,null,null,null,null,null,null,null,null,"QNQ","RWX","BERKSHIRE HEALTHCARE NHS FOUNDATION TRUST","Community Nursing Services"]
[null,null,null,null,null,null,null,null,null,null,null,null,null,null,null,null,null,null,null,"QNQ","RWX","BERKSHIRE HEALTHCARE NHS FOUNDATION TRUST","Rehabilitation & Therapy Services"]
[null,null,null,null,null,null,null,null,null,null,null,null,null,null,null,null,null,null,null,"QNQ","RWX","BERKSHIRE HEALTHCARE NHS FOUNDATION TRUST","Specialist Services"]
[null,null,null,null,null,null,null,null,null,null,null,null,null,null,null,null,null,null,null,"QNQ","RDU","FRIMLEY HEALTH NHS FOUNDATION TRUST","Community Healthcare Other"]
[null,null,null,null,null,null,null,null,null,null,null,null,null,null,null,null,null,null,null,"QNX","RXC","EAST SUSSEX HEALTHCARE NHS TRUST","Community Inpatient Services"]
[null,null,null,null,null,null,null,null,null,null,null,null,null,null,null,null,null,null,null,"QNX","RXC","EAST SUSSEX HEALTHCARE NHS TRUST","Community Nursing Services"]
[null,null,null,null,null,null,null,null,null,null,null,null,null,null,null,null,null,null,null,"QNX","RXC","EAST SUSSEX HEALTHCARE NHS TRUST","Rehabilitation & Therapy Services"]
[null,null,null,null,null,null,null,null,null,null,null,null,null,null,null,null,null,null,null,"QNX","RXC","EAST SUSSEX HEALTHCARE NHS TRUST","Specialist Services"]
[null,null,null,null,null,null,null,null,null,null,null,null,null,null,null,null,null,null,null,"QNX","RDR","SUSSEX COMMUNITY NHS FOUNDATION TRUST","Children & Family Services"]
[null,null,null,null,null,null,null,null,null,null,null,null,null,null,null,null,null,null,null,"QNX","RDR","SUSSEX COMMUNITY NHS FOUNDATION TRUST","Community Healthcare Other"]
[null,null,null,null,null,null,null,null,null,null,null,null,null,null,null,null,null,null,null,"QNX","RDR","SUSSEX COMMUNITY NHS FOUNDATION TRUST","Community Inpatient Services"]
[null,null,null,null,null,null,null,null,null,null,null,null,null,null,null,null,null,null,null,"QNX","RDR","SUSSEX COMMUNITY NHS FOUNDATION TRUST","Community Nursing Services"]
[null,null,null,null,null,null,null,null,null,null,null,null,null,null,null,null,null,null,null,"QNX","RDR","SUSSEX COMMUNITY NHS FOUNDATION TRUST","Rehabilitation & Therapy Services"]
[null,null,null,null,null,null,null,null,null,null,null,null,null,null,null,null,null,null,null,"QNX","RDR","SUSSEX COMMUNITY NHS FOUNDATION TRUST","Specialist Services"]
[null,null,null,null,null,null,null,null,null,null,null,null,null,null,null,null,null,null,null,"QOC","R1D","SHROPSHIRE COMMUNITY HEALTH NHS TRUST","Children & Family Services"]
[null,null,null,null,null,null,null,null,null,null,null,null,null,null,null,null,null,null,null,"QOC","R1D","SHROPSHIRE COMMUNITY HEALTH NHS TRUST","Community Healthcare Other"]
[null,null,null,null,null,null,null,null,null,null,null,null,null,null,null,null,null,null,null,"QOC","R1D","SHROPSHIRE COMMUNITY HEALTH NHS TRUST","Community Inpatient Services"]
[null,null,null,null,null,null,null,null,null,null,null,null,null,null,null,null,null,null,null,"QOC","R1D","SHROPSHIRE COMMUNITY HEALTH NHS TRUST","Community Nursing Services"]
[null,null,null,null,null,null,null,null,null,null,null,null,null,null,null,null,null,null,null,"QOC","R1D","SHROPSHIRE COMMUNITY HEALTH NHS TRUST","Rehabilitation & Therapy Services"]
[null,null,null,null,null,null,null,null,null,null,null,null,null,null,null,null,null,null,null,"QOC","R1D","SHROPSHIRE COMMUNITY HEALTH NHS TRUST","Specialist Services"]
[null,null,null,null,null,null,null,null,null,null,null,null,null,null,null,null,null,null,null,"QOP","RMC","BOLTON NHS FOUNDATION TRUST","Children & Family Services"]
[null,null,null,null,null,null,null,null,null,null,null,null,null,null,null,null,null,null,null,"QOP","RMC","BOLTON NHS FOUNDATION TRUST","Community Healthcare Other"]
[null,null,null,null,null,null,null,null,null,null,null,null,null,null,null,null,null,null,null,"QOP","RMC","BOLTON NHS FOUNDATION TRUST","Community Inpatient Services"]
[null,null,null,null,null,null,null,null,null,null,null,null,null,null,null,null,null,null,null,"QOP","RMC","BOLTON NHS FOUNDATION TRUST","Community Nursing Services"]
[null,null,null,null,null,null,null,null,null,null,null,null,null,null,null,null,null,null,null,"QOP","RMC","BOLTON NHS FOUNDATION TRUST","Rehabilitation & Therapy Services"]
[null,null,null,null,null,null,null,null,null,null,null,null,null,null,null,null,null,null,null,"QOP","RMC","BOLTON NHS FOUNDATION TRUST","Specialist Services"]
[null,null,null,null,null,null,null,null,null,null,null,null,null,null,null,null,null,null,null,"QOP","R0A","MANCHESTER UNIVERSITY NHS FOUNDATION TRUST","Children & Family Services"]
[null,null,null,null,null,null,null,null,null,null,null,null,null,null,null,null,null,null,null,"QOP","R0A","MANCHESTER UNIVERSITY NHS FOUNDATION TRUST","Community Healthcare Other"]
[null,null,null,null,null,null,null,null,null,null,null,null,null,null,null,null,null,null,null,"QOP","R0A","MANCHESTER UNIVERSITY NHS FOUNDATION TRUST","Community Inpatient Services"]
[null,null,null,null,null,null,null,null,null,null,null,null,null,null,null,null,null,null,null,"QOP","R0A","MANCHESTER UNIVERSITY NHS FOUNDATION TRUST","Community Nursing Services"]
[null,null,null,null,null,null,null,null,null,null,null,null,null,null,null,null,null,null,null,"QOP","R0A","MANCHESTER UNIVERSITY NHS FOUNDATION TRUST","Rehabilitation & Therapy Services"]
[null,null,null,null,null,null,null,null,null,null,null,null,null,null,null,null,null,null,null,"QOP","R0A","MANCHESTER UNIVERSITY NHS FOUNDATION TRUST","Specialist Services"]
[null,null,null,null,null,null,null,null,null,null,null,null,null,null,null,null,null,null,null,"QOP","RWJ","STOCKPORT NHS FOUNDATION TRUST","Children & Family Services"]
[null,null,null,null,null,null,null,null,null,null,null,null,null,null,null,null,null,null,null,"QOP","RWJ","STOCKPORT NHS FOUNDATION TRUST","Community Nursing Services"]
[null,null,null,null,null,null,null,null,null,null,null,null,null,null,null,null,null,null,null,"QOP","RWJ","STOCKPORT NHS FOUNDATION TRUST","Rehabilitation & Therapy Services"]
[null,null,null,null,null,null,null,null,null,null,null,null,null,null,null,null,null,null,null,"QOP","RWJ","STOCKPORT NHS FOUNDATION TRUST","Specialist Services"]
[null,null,null,null,null,null,null,null,null,null,null,null,null,null,null,null,null,null,null,"QOP","RMP","TAMESIDE AND GLOSSOP INTEGRATED CARE NHS FOUNDATION TRUST","Children & Family Services"]
[null,null,null,null,null,null,null,null,null,null,null,null,null,null,null,null,null,null,null,"QOP","RMP","TAMESIDE AND GLOSSOP INTEGRATED CARE NHS FOUNDATION TRUST","Community Healthcare Other"]
[null,null,null,null,null,null,null,null,null,null,null,null,null,null,null,null,null,null,null,"QOP","RMP","TAMESIDE AND GLOSSOP INTEGRATED CARE NHS FOUNDATION TRUST","Community Inpatient Services"]
[null,null,null,null,null,null,null,null,null,null,null,null,null,null,null,null,null,null,null,"QOP","RMP","TAMESIDE AND GLOSSOP INTEGRATED CARE NHS FOUNDATION TRUST","Community Nursing Services"]
[null,null,null,null,null,null,null,null,null,null,null,null,null,null,null,null,null,null,null,"QOP","RMP","TAMESIDE AND GLOSSOP INTEGRATED CARE NHS FOUNDATION TRUST","Rehabilitation & Therapy Services"]
[null,null,null,null,null,null,null,null,null,null,null,null,null,null,null,null,null,null,null,"QOP","RMP","TAMESIDE AND GLOSSOP INTEGRATED CARE NHS FOUNDATION TRUST","Specialist Services"]
[null,null,null,null,null,null,null,null,null,null,null,null,null,null,null,null,null,null,null,"QOP","RRF","WRIGHTINGTON, WIGAN AND LEIGH NHS FOUNDATION TRUST","Children & Family Services"]
[null,null,null,null,null,null,null,null,null,null,null,null,null,null,null,null,null,null,null,"QOP","RRF","WRIGHTINGTON, WIGAN AND LEIGH NHS FOUNDATION TRUST","Community Inpatient Services"]
[null,null,null,null,null,null,null,null,null,null,null,null,null,null,null,null,null,null,null,"QOP","RRF","WRIGHTINGTON, WIGAN AND LEIGH NHS FOUNDATION TRUST","Community Nursing Services"]
[null,null,null,null,null,null,null,null,null,null,null,null,null,null,null,null,null,null,null,"QOP","RRF","WRIGHTINGTON, WIGAN AND LEIGH NHS FOUNDATION TRUST","Rehabilitation & Therapy Services"]
[null,null,null,null,null,null,null,null,null,null,null,null,null,null,null,null,null,null,null,"QOP","RRF","WRIGHTINGTON, WIGAN AND LEIGH NHS FOUNDATION TRUST","Specialist Services"]
[null,null,null,null,null,null,null,null,null,null,null,null,null,null,null,null,null,null,null,"QOQ","RCD","HARROGATE AND DISTRICT NHS FOUNDATION TRUST","Children & Family Services"]
[null,null,null,null,null,null,null,null,null,null,null,null,null,null,null,null,null,null,null,"QOQ","RCD","HARROGATE AND DISTRICT NHS FOUNDATION TRUST","Community Inpatient Services"]
[null,null,null,null,null,null,null,null,null,null,null,null,null,null,null,null,null,null,null,"QOQ","RCD","HARROGATE AND DISTRICT NHS FOUNDATION TRUST","Rehabilitation & Therapy Services"]
[null,null,null,null,null,null,null,null,null,null,null,null,null,null,null,null,null,null,null,"QOQ","RV9","HUMBER TEACHING NHS FOUNDATION TRUST","Children & Family Services"]
[null,null,null,null,null,null,null,null,null,null,null,null,null,null,null,null,null,null,null,"QOQ","RV9","HUMBER TEACHING NHS FOUNDATION TRUST","Community Healthcare Other"]
[null,null,null,null,null,null,null,null,null,null,null,null,null,null,null,null,null,null,null,"QOQ","RV9","HUMBER TEACHING NHS FOUNDATION TRUST","Community Inpatient Services"]
[null,null,null,null,null,null,null,null,null,null,null,null,null,null,null,null,null,null,null,"QOQ","RV9","HUMBER TEACHING NHS FOUNDATION TRUST","Community Nursing Services"]
[null,null,null,null,null,null,null,null,null,null,null,null,null,null,null,null,null,null,null,"QOQ","RJL","NORTHERN LINCOLNSHIRE AND GOOLE NHS FOUNDATION TRUST","Children & Family Services"]
[null,null,null,null,null,null,null,null,null,null,null,null,null,null,null,null,null,null,null,"QOQ","RJL","NORTHERN LINCOLNSHIRE AND GOOLE NHS FOUNDATION TRUST","Community Healthcare Other"]
[null,null,null,null,null,null,null,null,null,null,null,null,null,null,null,null,null,null,null,"QOQ","RJL","NORTHERN LINCOLNSHIRE AND GOOLE NHS FOUNDATION TRUST","Community Nursing Services"]
[null,null,null,null,null,null,null,null,null,null,null,null,null,null,null,null,null,null,null,"QOQ","RJL","NORTHERN LINCOLNSHIRE AND GOOLE NHS FOUNDATION TRUST","Rehabilitation & Therapy Services"]
[null,null,null,null,null,null,null,null,null,null,null,null,null,null,null,null,null,null,null,"QOQ","RCB","YORK AND SCARBOROUGH TEACHING HOSPITALS NHS FOUNDATION TRUST","Community Inpatient Services"]
[null,null,null,null,null,null,null,null,null,null,null,null,null,null,null,null,null,null,null,"QPM","RP1","NORTHAMPTONSHIRE HEALTHCARE NHS FOUNDATION TRUST","Children & Family Services"]
[null,null,null,null,null,null,null,null,null,null,null,null,null,null,null,null,null,null,null,"QPM","RP1","NORTHAMPTONSHIRE HEALTHCARE NHS FOUNDATION TRUST","Community Healthcare Other"]
[null,null,null,null,null,null,null,null,null,null,null,null,null,null,null,null,null,null,null,"QPM","RP1","NORTHAMPTONSHIRE HEALTHCARE NHS FOUNDATION TRUST","Community Inpatient Services"]
[null,null,null,null,null,null,null,null,null,null,null,null,null,null,null,null,null,null,null,"QPM","RP1","NORTHAMPTONSHIRE HEALTHCARE NHS FOUNDATION TRUST","Community Nursing Services"]
[null,null,null,null,null,null,null,null,null,null,null,null,null,null,null,null,null,null,null,"QPM","RP1","NORTHAMPTONSHIRE HEALTHCARE NHS FOUNDATION TRUST","Rehabilitation & Therapy Services"]
[null,null,null,null,null,null,null,null,null,null,null,null,null,null,null,null,null,null,null,"QPM","RP1","NORTHAMPTONSHIRE HEALTHCARE NHS FOUNDATION TRUST","Specialist Services"]
[null,null,null,null,null,null,null,null,null,null,null,null,null,null,null,null,null,null,null,"QR1","RTQ","GLOUCESTERSHIRE HEALTH AND CARE NHS FOUNDATION TRUST","Children & Family Services"]
[null,null,null,null,null,null,null,null,null,null,null,null,null,null,null,null,null,null,null,"QR1","RTQ","GLOUCESTERSHIRE HEALTH AND CARE NHS FOUNDATION TRUST","Community Healthcare Other"]
[null,null,null,null,null,null,null,null,null,null,null,null,null,null,null,null,null,null,null,"QR1","RTQ","GLOUCESTERSHIRE HEALTH AND CARE NHS FOUNDATION TRUST","Community Inpatient Services"]
[null,null,null,null,null,null,null,null,null,null,null,null,null,null,null,null,null,null,null,"QR1","RTQ","GLOUCESTERSHIRE HEALTH AND CARE NHS FOUNDATION TRUST","Community Nursing Services"]
[null,null,null,null,null,null,null,null,null,null,null,null,null,null,null,null,null,null,null,"QR1","RTQ","GLOUCESTERSHIRE HEALTH AND CARE NHS FOUNDATION TRUST","Rehabilitation & Therapy Services"]
[null,null,null,null,null,null,null,null,null,null,null,null,null,null,null,null,null,null,null,"QR1","RTQ","GLOUCESTERSHIRE HEALTH AND CARE NHS FOUNDATION TRUST","Specialist Services"]
[null,null,null,null,null,null,null,null,null,null,null,null,null,null,null,null,null,null,null,"QRL","R1F","ISLE OF WIGHT NHS TRUST","Children & Family Services"]
[null,null,null,null,null,null,null,null,null,null,null,null,null,null,null,null,null,null,null,"QRL","R1F","ISLE OF WIGHT NHS TRUST","Community Healthcare Other"]
[null,null,null,null,null,null,null,null,null,null,null,null,null,null,null,null,null,null,null,"QRL","R1F","ISLE OF WIGHT NHS TRUST","Community Inpatient Services"]
[null,null,null,null,null,null,null,null,null,null,null,null,null,null,null,null,null,null,null,"QRL","R1F","ISLE OF WIGHT NHS TRUST","Community Nursing Services"]
[null,null,null,null,null,null,null,null,null,null,null,null,null,null,null,null,null,null,null,"QRL","R1F","ISLE OF WIGHT NHS TRUST","Rehabilitation & Therapy Services"]
[null,null,null,null,null,null,null,null,null,null,null,null,null,null,null,null,null,null,null,"QRL","R1F","ISLE OF WIGHT NHS TRUST","Specialist Services"]
[null,null,null,null,null,null,null,null,null,null,null,null,null,null,null,null,null,null,null,"QRL","R1C","SOLENT NHS TRUST","Children & Family Services"]
[null,null,null,null,null,null,null,null,null,null,null,null,null,null,null,null,null,null,null,"QRL","R1C","SOLENT NHS TRUST","Community Healthcare Other"]
[null,null,null,null,null,null,null,null,null,null,null,null,null,null,null,null,null,null,null,"QRL","R1C","SOLENT NHS TRUST","Community Inpatient Services"]
[null,null,null,null,null,null,null,null,null,null,null,null,null,null,null,null,null,null,null,"QRL","R1C","SOLENT NHS TRUST","Community Nursing Services"]
[null,null,null,null,null,null,null,null,null,null,null,null,null,null,null,null,null,null,null,"QRL","R1C","SOLENT NHS TRUST","Rehabilitation & Therapy Services"]
[null,null,null,null,null,null,null,null,null,null,null,null,null,null,null,null,null,null,null,"QRL","R1C","SOLENT NHS TRUST","Specialist Services"]
[null,null,null,null,null,null,null,null,null,null,null,null,null,null,null,null,null,null,null,"QRL","RW1","SOUTHERN HEALTH NHS FOUNDATION TRUST","Children & Family Services"]
[null,null,null,null,null,null,null,null,null,null,null,null,null,null,null,null,null,null,null,"QRL","RW1","SOUTHERN HEALTH NHS FOUNDATION TRUST","Community Healthcare Other"]
[null,null,null,null,null,null,null,null,null,null,null,null,null,null,null,null,null,null,null,"QRL","RW1","SOUTHERN HEALTH NHS FOUNDATION TRUST","Community Inpatient Services"]
[null,null,null,null,null,null,null,null,null,null,null,null,null,null,null,null,null,null,null,"QRL","RW1","SOUTHERN HEALTH NHS FOUNDATION TRUST","Community Nursing Services"]
[null,null,null,null,null,null,null,null,null,null,null,null,null,null,null,null,null,null,null,"QRL","RW1","SOUTHERN HEALTH NHS FOUNDATION TRUST","Rehabilitation & Therapy Services"]
[null,null,null,null,null,null,null,null,null,null,null,null,null,null,null,null,null,null,null,"QRV","RYX","CENTRAL LONDON COMMUNITY HEALTHCARE NHS TRUST","Children & Family Services"]
[null,null,null,null,null,null,null,null,null,null,null,null,null,null,null,null,null,null,null,"QRV","RYX","CENTRAL LONDON COMMUNITY HEALTHCARE NHS TRUST","Community Healthcare Other"]
[null,null,null,null,null,null,null,null,null,null,null,null,null,null,null,null,null,null,null,"QRV","RYX","CENTRAL LONDON COMMUNITY HEALTHCARE NHS TRUST","Community Inpatient Services"]
[null,null,null,null,null,null,null,null,null,null,null,null,null,null,null,null,null,null,null,"QRV","RYX","CENTRAL LONDON COMMUNITY HEALTHCARE NHS TRUST","Community Nursing Services"]
[null,null,null,null,null,null,null,null,null,null,null,null,null,null,null,null,null,null,null,"QRV","RYX","CENTRAL LONDON COMMUNITY HEALTHCARE NHS TRUST","Rehabilitation & Therapy Services"]
[null,null,null,null,null,null,null,null,null,null,null,null,null,null,null,null,null,null,null,"QRV","RYX","CENTRAL LONDON COMMUNITY HEALTHCARE NHS TRUST","Specialist Services"]
[null,null,null,null,null,null,null,null,null,null,null,null,null,null,null,null,null,null,null,"QRV","RQM","CHELSEA AND WESTMINSTER HOSPITAL NHS FOUNDATION TRUST","Specialist Services"]
[null,null,null,null,null,null,null,null,null,null,null,null,null,null,null,null,null,null,null,"QRV","R1K","LONDON NORTH WEST UNIVERSITY HEALTHCARE NHS TRUST","Specialist Services"]
[null,null,null,null,null,null,null,null,null,null,null,null,null,null,null,null,null,null,null,"QRV","RKL","WEST LONDON NHS TRUST","Children & Family Services"]
[null,null,null,null,null,null,null,null,null,null,null,null,null,null,null,null,null,null,null,"QRV","RKL","WEST LONDON NHS TRUST","Community Inpatient Services"]
[null,null,null,null,null,null,null,null,null,null,null,null,null,null,null,null,null,null,null,"QRV","RKL","WEST LONDON NHS TRUST","Community Nursing Services"]
[null,null,null,null,null,null,null,null,null,null,null,null,null,null,null,null,null,null,null,"QRV","RKL","WEST LONDON NHS TRUST","Rehabilitation & Therapy Services"]
[null,null,null,null,null,null,null,null,null,null,null,null,null,null,null,null,null,null,null,"QRV","RKL","WEST LONDON NHS TRUST","Specialist Services"]
[null,null,null,null,null,null,null,null,null,null,null,null,null,null,null,null,null,null,null,"QT1","RX1","NOTTINGHAM UNIVERSITY HOSPITALS NHS TRUST","Community Healthcare Other"]
[null,null,null,null,null,null,null,null,null,null,null,null,null,null,null,null,null,null,null,"QT1","RHA","NOTTINGHAMSHIRE HEALTHCARE NHS FOUNDATION TRUST","Children & Family Services"]
[null,null,null,null,null,null,null,null,null,null,null,null,null,null,null,null,null,null,null,"QT1","RHA","NOTTINGHAMSHIRE HEALTHCARE NHS FOUNDATION TRUST","Community Healthcare Other"]
[null,null,null,null,null,null,null,null,null,null,null,null,null,null,null,null,null,null,null,"QT1","RHA","NOTTINGHAMSHIRE HEALTHCARE NHS FOUNDATION TRUST","Community Nursing Services"]
[null,null,null,null,null,null,null,null,null,null,null,null,null,null,null,null,null,null,null,"QT1","RHA","NOTTINGHAMSHIRE HEALTHCARE NHS FOUNDATION TRUST","Rehabilitation & Therapy Services"]
[null,null,null,null,null,null,null,null,null,null,null,null,null,null,null,null,null,null,null,"QT1","RHA","NOTTINGHAMSHIRE HEALTHCARE NHS FOUNDATION TRUST","Specialist Services"]
[null,null,null,null,null,null,null,null,null,null,null,null,null,null,null,null,null,null,null,"QT6","RJ8","CORNWALL PARTNERSHIP NHS FOUNDATION TRUST","Community Inpatient Services"]
[null,null,null,null,null,null,null,null,null,null,null,null,null,null,null,null,null,null,null,"QT6","RJ8","CORNWALL PARTNERSHIP NHS FOUNDATION TRUST","Community Nursing Services"]
[null,null,null,null,null,null,null,null,null,null,null,null,null,null,null,null,null,null,null,"QU9","RXQ","BUCKINGHAMSHIRE HEALTHCARE NHS TRUST","Children & Family Services"]
[null,null,null,null,null,null,null,null,null,null,null,null,null,null,null,null,null,null,null,"QU9","RXQ","BUCKINGHAMSHIRE HEALTHCARE NHS TRUST","Community Healthcare Other"]
[null,null,null,null,null,null,null,null,null,null,null,null,null,null,null,null,null,null,null,"QU9","RXQ","BUCKINGHAMSHIRE HEALTHCARE NHS TRUST","Community Nursing Services"]
[null,null,null,null,null,null,null,null,null,null,null,null,null,null,null,null,null,null,null,"QU9","RXQ","BUCKINGHAMSHIRE HEALTHCARE NHS TRUST","Rehabilitation & Therapy Services"]
[null,null,null,null,null,null,null,null,null,null,null,null,null,null,null,null,null,null,null,"QU9","RXQ","BUCKINGHAMSHIRE HEALTHCARE NHS TRUST","Specialist Services"]
[null,null,null,null,null,null,null,null,null,null,null,null,null,null,null,null,null,null,null,"QUA","TAJ","BLACK COUNTRY HEALTHCARE NHS FOUNDATION TRUST","Community Healthcare Other"]
[null,null,null,null,null,null,null,null,null,null,null,null,null,null,null,null,null,null,null,"QUA","RNA","THE DUDLEY GROUP NHS FOUNDATION TRUST","Community Nursing Services"]
[null,null,null,null,null,null,null,null,null,null,null,null,null,null,null,null,null,null,null,"QUA","RNA","THE DUDLEY GROUP NHS FOUNDATION TRUST","Rehabilitation & Therapy Services"]
[null,null,null,null,null,null,null,null,null,null,null,null,null,null,null,null,null,null,null,"QUA","RNA","THE DUDLEY GROUP NHS FOUNDATION TRUST","Specialist Services"]
[null,null,null,null,null,null,null,null,null,null,null,null,null,null,null,null,null,null,null,"QUA","RL4","THE ROYAL WOLVERHAMPTON NHS TRUST","Community Healthcare Other"]
[null,null,null,null,null,null,null,null,null,null,null,null,null,null,null,null,null,null,null,"QUA","RBK","WALSALL HEALTHCARE NHS TRUST","Community Healthcare Other"]
[null,null,null,null,null,null,null,null,null,null,null,null,null,null,null,null,null,null,null,"QUE","RT1","CAMBRIDGESHIRE AND PETERBOROUGH NHS FOUNDATION TRUST","Children & Family Services"]
[null,null,null,null,null,null,null,null,null,null,null,null,null,null,null,null,null,null,null,"QUE","RT1","CAMBRIDGESHIRE AND PETERBOROUGH NHS FOUNDATION TRUST","Community Healthcare Other"]
[null,null,null,null,null,null,null,null,null,null,null,null,null,null,null,null,null,null,null,"QUE","RT1","CAMBRIDGESHIRE AND PETERBOROUGH NHS FOUNDATION TRUST","Community Inpatient Services"]
[null,null,null,null,null,null,null,null,null,null,null,null,null,null,null,null,null,null,null,"QUE","RT1","CAMBRIDGESHIRE AND PETERBOROUGH NHS FOUNDATION TRUST","Community Nursing Services"]
[null,null,null,null,null,null,null,null,null,null,null,null,null,null,null,null,null,null,null,"QUE","RT1","CAMBRIDGESHIRE AND PETERBOROUGH NHS FOUNDATION TRUST","Rehabilitation & Therapy Services"]
[null,null,null,null,null,null,null,null,null,null,null,null,null,null,null,null,null,null,null,"QUE","RT1","CAMBRIDGESHIRE AND PETERBOROUGH NHS FOUNDATION TRUST","Specialist Services"]
[null,null,null,null,null,null,null,null,null,null,null,null,null,null,null,null,null,null,null,"QUE","RYV","CAMBRIDGESHIRE COMMUNITY SERVICES NHS TRUST","Children & Family Services"]
[null,null,null,null,null,null,null,null,null,null,null,null,null,null,null,null,null,null,null,"QUE","RYV","CAMBRIDGESHIRE COMMUNITY SERVICES NHS TRUST","Community Nursing Services"]
[null,null,null,null,null,null,null,null,null,null,null,null,null,null,null,null,null,null,null,"QUE","RYV","CAMBRIDGESHIRE COMMUNITY SERVICES NHS TRUST","Rehabilitation & Therapy Services"]
[null,null,null,null,null,null,null,null,null,null,null,null,null,null,null,null,null,null,null,"QUE","RYV","CAMBRIDGESHIRE COMMUNITY SERVICES NHS TRUST","Specialist Services"]
[null,null,null,null,null,null,null,null,null,null,null,null,null,null,null,null,null,null,null,"QVV","RDY","DORSET HEALTHCARE UNIVERSITY NHS FOUNDATION TRUST","Children & Family Services"]
[null,null,null,null,null,null,null,null,null,null,null,null,null,null,null,null,null,null,null,"QVV","RDY","DORSET HEALTHCARE UNIVERSITY NHS FOUNDATION TRUST","Community Healthcare Other"]
[null,null,null,null,null,null,null,null,null,null,null,null,null,null,null,null,null,null,null,"QVV","RDY","DORSET HEALTHCARE UNIVERSITY NHS FOUNDATION TRUST","Community Inpatient Services"]
[null,null,null,null,null,null,null,null,null,null,null,null,null,null,null,null,null,null,null,"QVV","RDY","DORSET HEALTHCARE UNIVERSITY NHS FOUNDATION TRUST","Community Nursing Services"]
[null,null,null,null,null,null,null,null,null,null,null,null,null,null,null,null,null,null,null,"QVV","RDY","DORSET HEALTHCARE UNIVERSITY NHS FOUNDATION TRUST","Rehabilitation & Therapy Services"]
[null,null,null,null,null,null,null,null,null,null,null,null,null,null,null,null,null,null,null,"QVV","RDY","DORSET HEALTHCARE UNIVERSITY NHS FOUNDATION TRUST","Specialist Services"]
[null,null,null,null,null,null,null,null,null,null,null,null,null,null,null,null,null,null,null,"QWE","RJ6","CROYDON HEALTH SERVICES NHS TRUST","Children & Family Services"]
[null,null,null,null,null,null,null,null,null,null,null,null,null,null,null,null,null,null,null,"QWE","RJ6","CROYDON HEALTH SERVICES NHS TRUST","Community Healthcare Other"]
[null,null,null,null,null,null,null,null,null,null,null,null,null,null,null,null,null,null,null,"QWE","RJ6","CROYDON HEALTH SERVICES NHS TRUST","Rehabilitation & Therapy Services"]
[null,null,null,null,null,null,null,null,null,null,null,null,null,null,null,null,null,null,null,"QWE","RVR","EPSOM AND ST HELIER UNIVERSITY HOSPITALS NHS TRUST","Children & Family Services"]
[null,null,null,null,null,null,null,null,null,null,null,null,null,null,null,null,null,null,null,"QWE","RVR","EPSOM AND ST HELIER UNIVERSITY HOSPITALS NHS TRUST","Community Healthcare Other"]
[null,null,null,null,null,null,null,null,null,null,null,null,null,null,null,null,null,null,null,"QWE","RVR","EPSOM AND ST HELIER UNIVERSITY HOSPITALS NHS TRUST","Community Inpatient Services"]
[null,null,null,null,null,null,null,null,null,null,null,null,null,null,null,null,null,null,null,"QWE","RVR","EPSOM AND ST HELIER UNIVERSITY HOSPITALS NHS TRUST","Community Nursing Services"]
[null,null,null,null,null,null,null,null,null,null,null,null,null,null,null,null,null,null,null,"QWE","RVR","EPSOM AND ST HELIER UNIVERSITY HOSPITALS NHS TRUST","Rehabilitation & Therapy Services"]
[null,null,null,null,null,null,null,null,null,null,null,null,null,null,null,null,null,null,null,"QWE","RVR","EPSOM AND ST HELIER UNIVERSITY HOSPITALS NHS TRUST","Specialist Services"]
[null,null,null,null,null,null,null,null,null,null,null,null,null,null,null,null,null,null,null,"QWE","RY9","HOUNSLOW AND RICHMOND COMMUNITY HEALTHCARE NHS TRUST","Children & Family Services"]
[null,null,null,null,null,null,null,null,null,null,null,null,null,null,null,null,null,null,null,"QWE","RY9","HOUNSLOW AND RICHMOND COMMUNITY HEALTHCARE NHS TRUST","Community Healthcare Other"]
[null,null,null,null,null,null,null,null,null,null,null,null,null,null,null,null,null,null,null,"QWE","RY9","HOUNSLOW AND RICHMOND COMMUNITY HEALTHCARE NHS TRUST","Community Inpatient Services"]
[null,null,null,null,null,null,null,null,null,null,null,null,null,null,null,null,null,null,null,"QWE","RY9","HOUNSLOW AND RICHMOND COMMUNITY HEALTHCARE NHS TRUST","Community Nursing Services"]
[null,null,null,null,null,null,null,null,null,null,null,null,null,null,null,null,null,null,null,"QWE","RY9","HOUNSLOW AND RICHMOND COMMUNITY HEALTHCARE NHS TRUST","Rehabilitation & Therapy Services"]
[null,null,null,null,null,null,null,null,null,null,null,null,null,null,null,null,null,null,null,"QWE","RY9","HOUNSLOW AND RICHMOND COMMUNITY HEALTHCARE NHS TRUST","Specialist Services"]
[null,null,null,null,null,null,null,null,null,null,null,null,null,null,null,null,null,null,null,"QWE","RJ7","ST GEORGE'S UNIVERSITY HOSPITALS NHS FOUNDATION TRUST","Rehabilitation & Therapy Services"]
[null,null,null,null,null,null,null,null,null,null,null,null,null,null,null,null,null,null,null,"QWO","RCF","AIREDALE NHS FOUNDATION TRUST","Community Healthcare Other"]
[null,null,null,null,null,null,null,null,null,null,null,null,null,null,null,null,null,null,null,"QWO","TAD","BRADFORD DISTRICT CARE NHS FOUNDATION TRUST","Children & Family Services"]
[null,null,null,null,null,null,null,null,null,null,null,null,null,null,null,null,null,null,null,"QWO","TAD","BRADFORD DISTRICT CARE NHS FOUNDATION TRUST","Community Nursing Services"]
[null,null,null,null,null,null,null,null,null,null,null,null,null,null,null,null,null,null,null,"QWO","TAD","BRADFORD DISTRICT CARE NHS FOUNDATION TRUST","Rehabilitation & Therapy Services"]
[null,null,null,null,null,null,null,null,null,null,null,null,null,null,null,null,null,null,null,"QWO","TAD","BRADFORD DISTRICT CARE NHS FOUNDATION TRUST","Specialist Services"]
[null,null,null,null,null,null,null,null,null,null,null,null,null,null,null,null,null,null,null,"QWO","RWY","CALDERDALE AND HUDDERSFIELD NHS FOUNDATION TRUST","Community Nursing Services"]
[null,null,null,null,null,null,null,null,null,null,null,null,null,null,null,null,null,null,null,"QWO","RWY","CALDERDALE AND HUDDERSFIELD NHS FOUNDATION TRUST","Rehabilitation & Therapy Services"]
[null,null,null,null,null,null,null,null,null,null,null,null,null,null,null,null,null,null,null,"QWO","RWY","CALDERDALE AND HUDDERSFIELD NHS FOUNDATION TRUST","Specialist Services"]
[null,null,null,null,null,null,null,null,null,null,null,null,null,null,null,null,null,null,null,"QWO","RY6","LEEDS COMMUNITY HEALTHCARE NHS TRUST","Children & Family Services"]
[null,null,null,null,null,null,null,null,null,null,null,null,null,null,null,null,null,null,null,"QWO","RY6","LEEDS COMMUNITY HEALTHCARE NHS TRUST","Community Inpatient Services"]
[null,null,null,null,null,null,null,null,null,null,null,null,null,null,null,null,null,null,null,"QWO","RY6","LEEDS COMMUNITY HEALTHCARE NHS TRUST","Community Nursing Services"]
[null,null,null,null,null,null,null,null,null,null,null,null,null,null,null,null,null,null,null,"QWO","RY6","LEEDS COMMUNITY HEALTHCARE NHS TRUST","Specialist Services"]
[null,null,null,null,null,null,null,null,null,null,null,null,null,null,null,null,null,null,null,"QWO","RXF","MID YORKSHIRE TEACHING NHS TRUST","Children & Family Services"]
[null,null,null,null,null,null,null,null,null,null,null,null,null,null,null,null,null,null,null,"QWO","RXF","MID YORKSHIRE TEACHING NHS TRUST","Community Inpatient Services"]
[null,null,null,null,null,null,null,null,null,null,null,null,null,null,null,null,null,null,null,"QWO","RXF","MID YORKSHIRE TEACHING NHS TRUST","Community Nursing Services"]
[null,null,null,null,null,null,null,null,null,null,null,null,null,null,null,null,null,null,null,"QWO","RXF","MID YORKSHIRE TEACHING NHS TRUST","Rehabilitation & Therapy Services"]
[null,null,null,null,null,null,null,null,null,null,null,null,null,null,null,null,null,null,null,"QWO","RXF","MID YORKSHIRE TEACHING NHS TRUST","Specialist Services"]
[null,null,null,null,null,null,null,null,null,null,null,null,null,null,null,null,null,null,null,"QWO","RXG","SOUTH WEST YORKSHIRE PARTNERSHIP NHS FOUNDATION TRUST","Children & Family Services"]
[null,null,null,null,null,null,null,null,null,null,null,null,null,null,null,null,null,null,null,"QWO","RXG","SOUTH WEST YORKSHIRE PARTNERSHIP NHS FOUNDATION TRUST","Community Healthcare Other"]
[null,null,null,null,null,null,null,null,null,null,null,null,null,null,null,null,null,null,null,"QWO","RXG","SOUTH WEST YORKSHIRE PARTNERSHIP NHS FOUNDATION TRUST","Community Inpatient Services"]
[null,null,null,null,null,null,null,null,null,null,null,null,null,null,null,null,null,null,null,"QWO","RXG","SOUTH WEST YORKSHIRE PARTNERSHIP NHS FOUNDATION TRUST","Community Nursing Services"]
[null,null,null,null,null,null,null,null,null,null,null,null,null,null,null,null,null,null,null,"QWO","RXG","SOUTH WEST YORKSHIRE PARTNERSHIP NHS FOUNDATION TRUST","Rehabilitation & Therapy Services"]
[null,null,null,null,null,null,null,null,null,null,null,null,null,null,null,null,null,null,null,"QWO","RXG","SOUTH WEST YORKSHIRE PARTNERSHIP NHS FOUNDATION TRUST","Specialist Services"]
[null,null,null,null,null,null,null,null,null,null,null,null,null,null,null,null,null,null,null,"QWU","RJC","SOUTH WARWICKSHIRE UNIVERSITY NHS FOUNDATION TRUST","Community Inpatient Services"]
[null,null,null,null,null,null,null,null,null,null,null,null,null,null,null,null,null,null,null,"QWU","RJC","SOUTH WARWICKSHIRE UNIVERSITY NHS FOUNDATION TRUST","Community Nursing Services"]
[null,null,null,null,null,null,null,null,null,null,null,null,null,null,null,null,null,null,null,"QWU","RJC","SOUTH WARWICKSHIRE UNIVERSITY NHS FOUNDATION TRUST","Rehabilitation & Therapy Services"]
[null,null,null,null,null,null,null,null,null,null,null,null,null,null,null,null,null,null,null,"QWU","RJC","SOUTH WARWICKSHIRE UNIVERSITY NHS FOUNDATION TRUST","Specialist Services"]
[null,null,null,null,null,null,null,null,null,null,null,null,null,null,null,null,null,null,null,"QXU","RA2","ROYAL SURREY COUNTY HOSPITAL NHS FOUNDATION TRUST","Community Healthcare Other"]
[null,null,null,null,null,null,null,null,null,null,null,null,null,null,null,null,null,null,null,"QXU","RA2","ROYAL SURREY COUNTY HOSPITAL NHS FOUNDATION TRUST","Community Inpatient Services"]
[null,null,null,null,null,null,null,null,null,null,null,null,null,null,null,null,null,null,null,"QXU","RA2","ROYAL SURREY COUNTY HOSPITAL NHS FOUNDATION TRUST","Rehabilitation & Therapy Services"]
[null,null,null,null,null,null,null,null,null,null,null,null,null,null,null,null,null,null,null,"QXU","RA2","ROYAL SURREY COUNTY HOSPITAL NHS FOUNDATION TRUST","Specialist Services"]
[null,null,null,null,null,null,null,null,null,null,null,null,null,null,null,null,null,null,null,"QYG","RBS","ALDER HEY CHILDREN'S NHS FOUNDATION TRUST","Children & Family Services"]
[null,null,null,null,null,null,null,null,null,null,null,null,null,null,null,null,null,null,null,"QYG","RY2","BRIDGEWATER COMMUNITY HEALTHCARE NHS FOUNDATION TRUST","Children & Family Services"]
[null,null,null,null,null,null,null,null,null,null,null,null,null,null,null,null,null,null,null,"QYG","RY2","BRIDGEWATER COMMUNITY HEALTHCARE NHS FOUNDATION TRUST","Community Healthcare Other"]
[null,null,null,null,null,null,null,null,null,null,null,null,null,null,null,null,null,null,null,"QYG","RY2","BRIDGEWATER COMMUNITY HEALTHCARE NHS FOUNDATION TRUST","Community Nursing Services"]
[null,null,null,null,null,null,null,null,null,null,null,null,null,null,null,null,null,null,null,"QYG","RY2","BRIDGEWATER COMMUNITY HEALTHCARE NHS FOUNDATION TRUST","Rehabilitation & Therapy Services"]
[null,null,null,null,null,null,null,null,null,null,null,null,null,null,null,null,null,null,null,"QYG","RY2","BRIDGEWATER COMMUNITY HEALTHCARE NHS FOUNDATION TRUST","Specialist Services"]
[null,null,null,null,null,null,null,null,null,null,null,null,null,null,null,null,null,null,null,"QYG","RXA","CHESHIRE AND WIRRAL PARTNERSHIP NHS FOUNDATION TRUST","Children & Family Services"]
[null,null,null,null,null,null,null,null,null,null,null,null,null,null,null,null,null,null,null,"QYG","RXA","CHESHIRE AND WIRRAL PARTNERSHIP NHS FOUNDATION TRUST","Community Healthcare Other"]
[null,null,null,null,null,null,null,null,null,null,null,null,null,null,null,null,null,null,null,"QYG","RXA","CHESHIRE AND WIRRAL PARTNERSHIP NHS FOUNDATION TRUST","Community Nursing Services"]
[null,null,null,null,null,null,null,null,null,null,null,null,null,null,null,null,null,null,null,"QYG","RXA","CHESHIRE AND WIRRAL PARTNERSHIP NHS FOUNDATION TRUST","Rehabilitation & Therapy Services"]
[null,null,null,null,null,null,null,null,null,null,null,null,null,null,null,null,null,null,null,"QYG","RXA","CHESHIRE AND WIRRAL PARTNERSHIP NHS FOUNDATION TRUST","Specialist Services"]
[null,null,null,null,null,null,null,null,null,null,null,null,null,null,null,null,null,null,null,"QYG","RJN","EAST CHESHIRE NHS TRUST","Children & Family Services"]
[null,null,null,null,null,null,null,null,null,null,null,null,null,null,null,null,null,null,null,"QYG","RJN","EAST CHESHIRE NHS TRUST","Community Nursing Services"]
[null,null,null,null,null,null,null,null,null,null,null,null,null,null,null,null,null,null,null,"QYG","RJN","EAST CHESHIRE NHS TRUST","Rehabilitation & Therapy Services"]
[null,null,null,null,null,null,null,null,null,null,null,null,null,null,null,null,null,null,null,"QYG","RJN","EAST CHESHIRE NHS TRUST","Specialist Services"]
[null,null,null,null,null,null,null,null,null,null,null,null,null,null,null,null,null,null,null,"QYG","RBN","MERSEY AND WEST LANCASHIRE TEACHING HOSPITALS NHS TRUST","Children & Family Services"]
[null,null,null,null,null,null,null,null,null,null,null,null,null,null,null,null,null,null,null,"QYG","RBN","MERSEY AND WEST LANCASHIRE TEACHING HOSPITALS NHS TRUST","Specialist Services"]
[null,null,null,null,null,null,null,null,null,null,null,null,null,null,null,null,null,null,null,"QYG","RW4","MERSEY CARE NHS FOUNDATION TRUST","Children & Family Services"]
[null,null,null,null,null,null,null,null,null,null,null,null,null,null,null,null,null,null,null,"QYG","RW4","MERSEY CARE NHS FOUNDATION TRUST","Community Healthcare Other"]
[null,null,null,null,null,null,null,null,null,null,null,null,null,null,null,null,null,null,null,"QYG","RW4","MERSEY CARE NHS FOUNDATION TRUST","Community Inpatient Services"]
[null,null,null,null,null,null,null,null,null,null,null,null,null,null,null,null,null,null,null,"QYG","RW4","MERSEY CARE NHS FOUNDATION TRUST","Community Nursing Services"]
[null,null,null,null,null,null,null,null,null,null,null,null,null,null,null,null,null,null,null,"QYG","RW4","MERSEY CARE NHS FOUNDATION TRUST","Rehabilitation & Therapy Services"]
[null,null,null,null,null,null,null,null,null,null,null,null,null,null,null,null,null,null,null,"QYG","RW4","MERSEY CARE NHS FOUNDATION TRUST","Specialist Services"]
[null,null,null,null,null,null,null,null,null,null,null,null,null,null,null,null,null,null,null,"QYG","RBT","MID CHESHIRE HOSPITALS NHS FOUNDATION TRUST","Children & Family Services"]
[null,null,null,null,null,null,null,null,null,null,null,null,null,null,null,null,null,null,null,"QYG","RBT","MID CHESHIRE HOSPITALS NHS FOUNDATION TRUST","Community Healthcare Other"]
[null,null,null,null,null,null,null,null,null,null,null,null,null,null,null,null,null,null,null,"QYG","RBT","MID CHESHIRE HOSPITALS NHS FOUNDATION TRUST","Community Nursing Services"]
[null,null,null,null,null,null,null,null,null,null,null,null,null,null,null,null,null,null,null,"QYG","RBT","MID CHESHIRE HOSPITALS NHS FOUNDATION TRUST","Rehabilitation & Therapy Services"]
[null,null,null,null,null,null,null,null,null,null,null,null,null,null,null,null,null,null,null,"QYG","RY7","WIRRAL COMMUNITY HEALTH AND CARE NHS FOUNDATION TRUST","Children & Family Services"]
[null,null,null,null,null,null,null,null,null,null,null,null,null,null,null,null,null,null,null,"QYG","RY7","WIRRAL COMMUNITY HEALTH AND CARE NHS FOUNDATION TRUST","Community Healthcare Other"]
[null,null,null,null,null,null,null,null,null,null,null,null,null,null,null,null,null,null,null,"QYG","RY7","WIRRAL COMMUNITY HEALTH AND CARE NHS FOUNDATION TRUST","Community Inpatient Services"]
[null,null,null,null,null,null,null,null,null,null,null,null,null,null,null,null,null,null,null,"QYG","RY7","WIRRAL COMMUNITY HEALTH AND CARE NHS FOUNDATION TRUST","Community Nursing Services"]
[null,null,null,null,null,null,null,null,null,null,null,null,null,null,null,null,null,null,null,"QYG","RY7","WIRRAL COMMUNITY HEALTH AND CARE NHS FOUNDATION TRUST","Rehabilitation & Therapy Services"]
[null,null,null,null,null,null,null,null,null,null,null,null,null,null,null,null,null,null,null,"QYG","RY7","WIRRAL COMMUNITY HEALTH AND CARE NHS FOUNDATION TRUST","Specialist Services"]
[null,null,null,null,null,null,null,null,null,null,null,null,null,null,null,null,null,null,null,"IS1","NEC","ALLIED HEALTH PROFESSIONALS SUFFOLK CIC","Rehabilitation & Therapy Services"]
[null,null,null,null,null,null,null,null,null,null,null,null,null,null,null,null,null,null,null,"IS1","8J094","BADGER LTD","Community Healthcare Other"]
[null,null,null,null,null,null,null,null,null,null,null,null,null,null,null,null,null,null,null,"IS1","DVG","BARDOC","Community Healthcare Other"]
[null,null,null,null,null,null,null,null,null,null,null,null,null,null,null,null,null,null,null,"IS1","AT7H","BRITISH RED CROSS SOCIETY","Community Inpatient Services"]
[null,null,null,null,null,null,null,null,null,null,null,null,null,null,null,null,null,null,null,"IS1","NQV","BROMLEY HEALTHCARE","Children & Family Services"]
[null,null,null,null,null,null,null,null,null,null,null,null,null,null,null,null,null,null,null,"IS1","NQV","BROMLEY HEALTHCARE","Community Healthcare Other"]
[null,null,null,null,null,null,null,null,null,null,null,null,null,null,null,null,null,null,null,"IS1","NQV","BROMLEY HEALTHCARE","Community Nursing Services"]
[null,null,null,null,null,null,null,null,null,null,null,null,null,null,null,null,null,null,null,"IS1","NQV","BROMLEY HEALTHCARE","Rehabilitation & Therapy Services"]
[null,null,null,null,null,null,null,null,null,null,null,null,null,null,null,null,null,null,null,"IS1","NQV","BROMLEY HEALTHCARE","Specialist Services"]
[null,null,null,null,null,null,null,null,null,null,null,null,null,null,null,null,null,null,null,"IS1","NL3","CARE PLUS GROUP","Community Healthcare Other"]
[null,null,null,null,null,null,null,null,null,null,null,null,null,null,null,null,null,null,null,"IS1","NL3","CARE PLUS GROUP","Community Nursing Services"]
[null,null,null,null,null,null,null,null,null,null,null,null,null,null,null,null,null,null,null,"IS1","NL3","CARE PLUS GROUP","Rehabilitation & Therapy Services"]
[null,null,null,null,null,null,null,null,null,null,null,null,null,null,null,null,null,null,null,"IS1","NL3","CARE PLUS GROUP","Specialist Services"]
[null,null,null,null,null,null,null,null,null,null,null,null,null,null,null,null,null,null,null,"IS1","NNF","CITY HEALTH CARE PARTNERSHIP CIC","Children & Family Services"]
[null,null,null,null,null,null,null,null,null,null,null,null,null,null,null,null,null,null,null,"IS1","NNF","CITY HEALTH CARE PARTNERSHIP CIC","Community Healthcare Other"]
[null,null,null,null,null,null,null,null,null,null,null,null,null,null,null,null,null,null,null,"IS1","NNF","CITY HEALTH CARE PARTNERSHIP CIC","Community Inpatient Services"]
[null,null,null,null,null,null,null,null,null,null,null,null,null,null,null,null,null,null,null,"IS1","NNF","CITY HEALTH CARE PARTNERSHIP CIC","Community Nursing Services"]
[null,null,null,null,null,null,null,null,null,null,null,null,null,null,null,null,null,null,null,"IS1","NNF","CITY HEALTH CARE PARTNERSHIP CIC","Rehabilitation & Therapy Services"]
[null,null,null,null,null,null,null,null,null,null,null,null,null,null,null,null,null,null,null,"IS1","NNF","CITY HEALTH CARE PARTNERSHIP CIC","Specialist Services"]
[null,null,null,null,null,null,null,null,null,null,null,null,null,null,null,null,null,null,null,"IS1","NMG","CONNECT HEALTH LIMITED","Community Healthcare Other"]
[null,null,null,null,null,null,null,null,null,null,null,null,null,null,null,null,null,null,null,"IS1","NY6","CONNECT HEALTH PAIN SERVICES","Community Healthcare Other"]
[null,null,null,null,null,null,null,null,null,null,null,null,null,null,null,null,null,null,null,"IS1","NTV","CSH SURREY","Children & Family Services"]
[null,null,null,null,null,null,null,null,null,null,null,null,null,null,null,null,null,null,null,"IS1","NTV","CSH SURREY","Community Healthcare Other"]
[null,null,null,null,null,null,null,null,null,null,null,null,null,null,null,null,null,null,null,"IS1","NTV","CSH SURREY","Community Inpatient Services"]
[null,null,null,null,null,null,null,null,null,null,null,null,null,null,null,null,null,null,null,"IS1","NTV","CSH SURREY","Community Nursing Services"]
[null,null,null,null,null,null,null,null,null,null,null,null,null,null,null,null,null,null,null,"IS1","NTV","CSH SURREY","Rehabilitation & Therapy Services"]
[null,null,null,null,null,null,null,null,null,null,null,null,null,null,null,null,null,null,null,"IS1","8HE44","DR KERSHAWS HOSPICE","Community Healthcare Other"]
[null,null,null,null,null,null,null,null,null,null,null,null,null,null,null,null,null,null,null,"IS1","8HE44","DR KERSHAWS HOSPICE","Community Inpatient Services"]
[null,null,null,null,null,null,null,null,null,null,null,null,null,null,null,null,null,null,null,"IS1","8HE44","DR KERSHAWS HOSPICE","Community Nursing Services"]
[null,null,null,null,null,null,null,null,null,null,null,null,null,null,null,null,null,null,null,"IS1","NAX","EAST COAST COMMUNITY HEALTHCARE C.I.C","Community Healthcare Other"]
[null,null,null,null,null,null,null,null,null,null,null,null,null,null,null,null,null,null,null,"IS1","NAX","EAST COAST COMMUNITY HEALTHCARE C.I.C","Community Inpatient Services"]
[null,null,null,null,null,null,null,null,null,null,null,null,null,null,null,null,null,null,null,"IS1","NAX","EAST COAST COMMUNITY HEALTHCARE C.I.C","Community Nursing Services"]
[null,null,null,null,null,null,null,null,null,null,null,null,null,null,null,null,null,null,null,"IS1","NAX","EAST COAST COMMUNITY HEALTHCARE C.I.C","Rehabilitation & Therapy Services"]
[null,null,null,null,null,null,null,null,null,null,null,null,null,null,null,null,null,null,null,"IS1","NAX","EAST COAST COMMUNITY HEALTHCARE C.I.C","Specialist Services"]
[null,null,null,null,null,null,null,null,null,null,null,null,null,null,null,null,null,null,null,"IS1","DY6","EASTLEIGH SOUTHERN PARISHES NETWORK LTD","Community Healthcare Other"]
[null,null,null,null,null,null,null,null,null,null,null,null,null,null,null,null,null,null,null,"IS1","NDJ","FIRST COMMUNITY HEALTH AND CARE CIC","Children & Family Services"]
[null,null,null,null,null,null,null,null,null,null,null,null,null,null,null,null,null,null,null,"IS1","NDJ","FIRST COMMUNITY HEALTH AND CARE CIC","Community Healthcare Other"]
[null,null,null,null,null,null,null,null,null,null,null,null,null,null,null,null,null,null,null,"IS1","NDJ","FIRST COMMUNITY HEALTH AND CARE CIC","Community Nursing Services"]
[null,null,null,null,null,null,null,null,null,null,null,null,null,null,null,null,null,null,null,"IS1","NDJ","FIRST COMMUNITY HEALTH AND CARE CIC","Rehabilitation & Therapy Services"]
[null,null,null,null,null,null,null,null,null,null,null,null,null,null,null,null,null,null,null,"IS1","NDJ","FIRST COMMUNITY HEALTH AND CARE CIC","Specialist Services"]
[null,null,null,null,null,null,null,null,null,null,null,null,null,null,null,null,null,null,null,"IS1","NDK","FRESHNEY PELHAM CARE LIMITED","Community Nursing Services"]
[null,null,null,null,null,null,null,null,null,null,null,null,null,null,null,null,null,null,null,"IS1","NWV01","GP CARE UK","Community Healthcare Other"]
[null,null,null,null,null,null,null,null,null,null,null,null,null,null,null,null,null,null,null,"IS1","NW0","GTD HEALTHCARE","Community Healthcare Other"]
[null,null,null,null,null,null,null,null,null,null,null,null,null,null,null,null,null,null,null,"IS1","NQT","HCRG CARE LTD","Children & Family Services"]
[null,null,null,null,null,null,null,null,null,null,null,null,null,null,null,null,null,null,null,"IS1","NQT","HCRG CARE LTD","Community Healthcare Other"]
[null,null,null,null,null,null,null,null,null,null,null,null,null,null,null,null,null,null,null,"IS1","NQT","HCRG CARE LTD","Community Inpatient Services"]
[null,null,null,null,null,null,null,null,null,null,null,null,null,null,null,null,null,null,null,"IS1","NQT","HCRG CARE LTD","Community Nursing Services"]
[null,null,null,null,null,null,null,null,null,null,null,null,null,null,null,null,null,null,null,"IS1","NQT","HCRG CARE LTD","Rehabilitation & Therapy Services"]
[null,null,null,null,null,null,null,null,null,null,null,null,null,null,null,null,null,null,null,"IS1","NQT","HCRG CARE LTD","Specialist Services"]
[null,null,null,null,null,null,null,null,null,null,null,null,null,null,null,null,null,null,null,"IS1","NDA","HCRG CARE SERVICES LTD","Community Healthcare Other"]
[null,null,null,null,null,null,null,null,null,null,null,null,null,null,null,null,null,null,null,"IS1","NDA","HCRG CARE SERVICES LTD","Community Nursing Services"]
[null,null,null,null,null,null,null,null,null,null,null,null,null,null,null,null,null,null,null,"IS1","NDA","HCRG CARE SERVICES LTD","Rehabilitation & Therapy Services"]
[null,null,null,null,null,null,null,null,null,null,null,null,null,null,null,null,null,null,null,"IS1","NDA","HCRG CARE SERVICES LTD","Specialist Services"]
[null,null,null,null,null,null,null,null,null,null,null,null,null,null,null,null,null,null,null,"IS1","NHA","INSIDEVUE LIMITED","Community Inpatient Services"]
[null,null,null,null,null,null,null,null,null,null,null,null,null,null,null,null,null,null,null,"IS1","NLE01","LANCASTER HOUSE CONSULTING DIAGNOSTICS SURGICAL LTD HQ","Community Healthcare Other"]
[null,null,null,null,null,null,null,null,null,null,null,null,null,null,null,null,null,null,null,"IS1","NR5","LIVEWELL SOUTHWEST","Children & Family Services"]
[null,null,null,null,null,null,null,null,null,null,null,null,null,null,null,null,null,null,null,"IS1","NR5","LIVEWELL SOUTHWEST","Community Healthcare Other"]
[null,null,null,null,null,null,null,null,null,null,null,null,null,null,null,null,null,null,null,"IS1","NR5","LIVEWELL SOUTHWEST","Community Nursing Services"]
[null,null,null,null,null,null,null,null,null,null,null,null,null,null,null,null,null,null,null,"IS1","NR5","LIVEWELL SOUTHWEST","Rehabilitation & Therapy Services"]
[null,null,null,null,null,null,null,null,null,null,null,null,null,null,null,null,null,null,null,"IS1","DAY","LLR PATIENT CARE LOCALLY","Community Healthcare Other"]
[null,null,null,null,null,null,null,null,null,null,null,null,null,null,null,null,null,null,null,"IS1","NL8","LOCALA COMMUNITY PARTNERSHIPS CIC","Children & Family Services"]
[null,null,null,null,null,null,null,null,null,null,null,null,null,null,null,null,null,null,null,"IS1","NL8","LOCALA COMMUNITY PARTNERSHIPS CIC","Community Healthcare Other"]
[null,null,null,null,null,null,null,null,null,null,null,null,null,null,null,null,null,null,null,"IS1","NL8","LOCALA COMMUNITY PARTNERSHIPS CIC","Community Inpatient Services"]
[null,null,null,null,null,null,null,null,null,null,null,null,null,null,null,null,null,null,null,"IS1","NL8","LOCALA COMMUNITY PARTNERSHIPS CIC","Community Nursing Services"]
[null,null,null,null,null,null,null,null,null,null,null,null,null,null,null,null,null,null,null,"IS1","NL8","LOCALA COMMUNITY PARTNERSHIPS CIC","Rehabilitation & Therapy Services"]
[null,null,null,null,null,null,null,null,null,null,null,null,null,null,null,null,null,null,null,"IS1","NL8","LOCALA COMMUNITY PARTNERSHIPS CIC","Specialist Services"]
[null,null,null,null,null,null,null,null,null,null,null,null,null,null,null,null,null,null,null,"IS1","NCE","MASTERCALL HEALTHCARE","Community Healthcare Other"]
[null,null,null,null,null,null,null,null,null,null,null,null,null,null,null,null,null,null,null,"IS1","NQ7","MEDWAY COMMUNITY HEALTHCARE","Children & Family Services"]
[null,null,null,null,null,null,null,null,null,null,null,null,null,null,null,null,null,null,null,"IS1","NQ7","MEDWAY COMMUNITY HEALTHCARE","Community Healthcare Other"]
[null,null,null,null,null,null,null,null,null,null,null,null,null,null,null,null,null,null,null,"IS1","NQ7","MEDWAY COMMUNITY HEALTHCARE","Community Nursing Services"]
[null,null,null,null,null,null,null,null,null,null,null,null,null,null,null,null,null,null,null,"IS1","NQ7","MEDWAY COMMUNITY HEALTHCARE","Rehabilitation & Therapy Services"]
[null,null,null,null,null,null,null,null,null,null,null,null,null,null,null,null,null,null,null,"IS1","NQ7","MEDWAY COMMUNITY HEALTHCARE","Specialist Services"]
[null,null,null,null,null,null,null,null,null,null,null,null,null,null,null,null,null,null,null,"IS1","ARA","MID HAMPSHIRE HEALTHCARE LIMITED","Community Healthcare Other"]
[null,null,null,null,null,null,null,null,null,null,null,null,null,null,null,null,null,null,null,"IS1","ARA","MID HAMPSHIRE HEALTHCARE LIMITED","Community Nursing Services"]
[null,null,null,null,null,null,null,null,null,null,null,null,null,null,null,null,null,null,null,"IS1","NPH","MILTON KEYNES URGENT CARE SERVICES CIC HQ","Community Healthcare Other"]
[null,null,null,null,null,null,null,null,null,null,null,null,null,null,null,null,null,null,null,"IS1","NHX","NORTH HAMPSHIRE URGENT CARE","Community Healthcare Other"]
[null,null,null,null,null,null,null,null,null,null,null,null,null,null,null,null,null,null,null,"IS1","NQH","NOVUS HEALTH LTD","Community Healthcare Other"]
[null,null,null,null,null,null,null,null,null,null,null,null,null,null,null,null,null,null,null,"IS1","NQH","NOVUS HEALTH LTD","Rehabilitation & Therapy Services"]
[null,null,null,null,null,null,null,null,null,null,null,null,null,null,null,null,null,null,null,"IS1","DCF","OZONE HEALTH","Community Healthcare Other"]
[null,null,null,null,null,null,null,null,null,null,null,null,null,null,null,null,null,null,null,"IS1","NLF","PENNINE MUSCULOSKELETAL PARTNERSHIP (ICATS)","Community Healthcare Other"]
[null,null,null,null,null,null,null,null,null,null,null,null,null,null,null,null,null,null,null,"IS1","NTP","PRACTICE PLUS GROUP","Community Healthcare Other"]
[null,null,null,null,null,null,null,null,null,null,null,null,null,null,null,null,null,null,null,"IS1","NQA","PROVIDE","Children & Family Services"]
[null,null,null,null,null,null,null,null,null,null,null,null,null,null,null,null,null,null,null,"IS1","NQA","PROVIDE","Community Healthcare Other"]
[null,null,null,null,null,null,null,null,null,null,null,null,null,null,null,null,null,null,null,"IS1","NQA","PROVIDE","Community Inpatient Services"]
[null,null,null,null,null,null,null,null,null,null,null,null,null,null,null,null,null,null,null,"IS1","NQA","PROVIDE","Community Nursing Services"]
[null,null,null,null,null,null,null,null,null,null,null,null,null,null,null,null,null,null,null,"IS1","NQA","PROVIDE","Rehabilitation & Therapy Services"]
[null,null,null,null,null,null,null,null,null,null,null,null,null,null,null,null,null,null,null,"IS1","NQA","PROVIDE","Specialist Services"]
[null,null,null,null,null,null,null,null,null,null,null,null,null,null,null,null,null,null,null,"IS1","NLX","SIRONA CARE & HEALTH","Children & Family Services"]
[null,null,null,null,null,null,null,null,null,null,null,null,null,null,null,null,null,null,null,"IS1","NLX","SIRONA CARE & HEALTH","Community Healthcare Other"]
[null,null,null,null,null,null,null,null,null,null,null,null,null,null,null,null,null,null,null,"IS1","NLX","SIRONA CARE & HEALTH","Community Nursing Services"]
[null,null,null,null,null,null,null,null,null,null,null,null,null,null,null,null,null,null,null,"IS1","NLX","SIRONA CARE & HEALTH","Rehabilitation & Therapy Services"]
[null,null,null,null,null,null,null,null,null,null,null,null,null,null,null,null,null,null,null,"IS1","NLX","SIRONA CARE & HEALTH","Specialist Services"]
[null,null,null,null,null,null,null,null,null,null,null,null,null,null,null,null,null,null,null,"IS1","NNC","SOLENT MEDICAL SERVICES LIMITED","Community Healthcare Other"]
[null,null,null,null,null,null,null,null,null,null,null,null,null,null,null,null,null,null,null,"IS1","NDL","SUFFOLK GP FEDERATION","Community Healthcare Other"]
[null,null,null,null,null,null,null,null,null,null,null,null,null,null,null,null,null,null,null,"IS1","NYG","SUSSEX COMMUNITY DERMATOLOGY SERVICE","Community Healthcare Other"]
[null,null,null,null,null,null,null,null,null,null,null,null,null,null,null,null,null,null,null,"IS1","NGX","TAURUS HEALTHCARE LTD","Community Healthcare Other"]
[null,null,null,null,null,null,null,null,null,null,null,null,null,null,null,null,null,null,null,"IS1","NN1","THE ROYAL HOSPITAL FOR NEURO-DISABILITY","Community Inpatient Services"]
[null,null,null,null,null,null,null,null,null,null,null,null,null,null,null,null,null,null,null,"IS1","8HN95","THE STROKE ASSOCIATION","Community Healthcare Other"]
[null,null,null,null,null,null,null,null,null,null,null,null,null,null,null,null,null,null,null,"IS1","VLN99","TURNING POINT - BIRCHWOOD NURSING HOME","Community Healthcare Other"]
[null,null,null,null,null,null,null,null,null,null,null,null,null,null,null,null,null,null,null,"IS1","AXG","WILTSHIRE HEALTH & CARE","Community Healthcare Other"]
[null,null,null,null,null,null,null,null,null,null,null,null,null,null,null,null,null,null,null,"IS1","AXG","WILTSHIRE HEALTH & CARE","Community Inpatient Services"]
[null,null,null,null,null,null,null,null,null,null,null,null,null,null,null,null,null,null,null,"IS1","AXG","WILTSHIRE HEALTH & CARE","Community Nursing Services"]
[null,null,null,null,null,null,null,null,null,null,null,null,null,null,null,null,null,null,null,"IS1","AXG","WILTSHIRE HEALTH & CARE","Rehabilitation & Therapy Services"]
[null,null,null,null,null,null,null,null,null,null,null,null,null,null,null,null,null,null,null,"IS1","AXG","WILTSHIRE HEALTH & CARE","Specialist Services"]
[null,null,null,null,null,null,null,null,null,null,null,null,null,null,null,null,null,null,null,"IS1","NNV","YOUR HEALTHCARE","Children & Family Services"]
[null,null,null,null,null,null,null,null,null,null,null,null,null,null,null,null,null,null,null,"IS1","NNV","YOUR HEALTHCARE","Community Inpatient Services"]
[null,null,null,null,null,null,null,null,null,null,null,null,null,null,null,null,null,null,null,"IS1","NNV","YOUR HEALTHCARE","Community Nursing Services"]
[null,null,null,null,null,null,null,null,null,null,null,null,null,null,null,null,null,null,null,"IS1","NNV","YOUR HEALTHCARE","Rehabilitation & Therapy Services"]
[null,null,null,null,null,null,null,null,null,null,null,null,null,null,null,null,null,null,null,"IS1","NNV","YOUR HEALTHCARE","Specialist Services"]